Workbook

Sheet Main
B10: 2023-11-01
B12: Sheet No. | C12: Template Name | D12: Summary
B13: 1 | C13: Future Intra | D13: For Intraday trading in F&O segment
B14: 2 | C14: Cash Intra | D14: For Intraday trading in cash market segment
B15: 3 | C15: Mid-cap Intra | D15: For Intraday trading in Mid-cap stocks
B16: 4 | C16: Bulk Deals | D16: Reveals Bulk Deals carried on NSE & BSE
B17: 5 | C17: Call Tracker
K27: `

Sheet Future Intra
M5: Back to Main Page
A6: FOR INTRA DAY TRADING | L6: =Main!B10 -> 2023-11-01
A9: Sr.no | B9: Sector | C9: Scrip | D9: Expiry Date | E9: CLOSE RATE | F9: Pivot Point | G9: Supports | J9: Resistances
E10: Point | F10: Point | G10: S1 | H10: S2 | I10: S3 | J10: R1 | K10: R2 | L10: R3 | M10: HIGH | N10: LOW | O10: OI | P10: % Change in OI
A11: 1 | B11: Index | C11: NIFTY | D11: 2023-11-30 | E11: 19158.20 | F11: 19185.73 | G11: 19092.47 | H11: 19026.73 | I11: 18933.47 | J11: 19251.47 | K11: 19344.73 | L11: 19410.47 | M11: 19279 | N11: 19120 | O11: 11982750 | P11: 1.60%
A12: 2 | B12: Index | C12: BANKNIFTY | D12: 2023-11-30 | E12: 43076.85 | F12: 43233.43 | G12: 42863.82 | H12: 42650.78 | I12: 42281.17 | J12: 43446.47 | K12: 43816.08 | L12: 44029.12 | M12: 43603.05 | N12: 43020.4 | O12: 2644890 | P12: 0.17%
A13: 3 | B13: Index | C13: FINNIFTY | D13: 2023-11-28 | E13: 19340.50 | F13: 19368.48 | G13: 19287.02 | H13: 19233.53 | I13: 19152.07 | J13: 19421.97 | K13: 19503.43 | L13: 19556.92 | M13: 19449.95 | N13: 19315 | O13: 157560 | P13: 61.17%
A14: 4 | B14: Index | C14: MIDCPNIFTY | D14: 2023-11-24 | E14: 8722.50 | F14: 8719.73 | G14: 8671.02 | H14: 8619.53 | I14: 8570.82 | J14: 8771.22 | K14: 8819.93 | L14: 8871.42 | M14: 8768.45 | N14: 8668.25 | O14: 658650 | P14: -33.74%
A15: 5 | B15: Chemical | C15: AARTIIND | D15: 2023-11-30 | E15: 457.40 | F15: 459.20 | G15: 454.80 | H15: 452.20 | I15: 447.80 | J15: 461.80 | K15: 466.20 | L15: 468.80 | M15: 463.6 | N15: 456.6 | O15: 14928000 | P15: 1.46%
A16: 6 | B16: Capital_Goods | C16: ABB | D16: 2023-11-30 | E16: 4133.25 | F16: 4113.02 | G16: 4075.98 | H16: 4018.72 | I16: 3981.68 | J16: 4170.28 | K16: 4207.32 | L16: 4264.58 | M16: 4150.05 | N16: 4055.75 | O16: 1412125 | P16: 6.75%
A17: 7 | B17: Pharma | C17: ABBOTINDIA | D17: 2023-11-30 | E17: 22498.80 | F17: 22551.23 | G17: 22386.92 | H17: 22275.03 | I17: 22110.72 | J17: 22663.12 | K17: 22827.43 | L17: 22939.32 | M17: 22715.55 | N17: 22439.35 | O17: 70840 | P17: -0.23%
A18: 8 | B18: Others | C18: ABCAPITAL | D18: 2023-11-30 | E18: 173.65 | F18: 174.12 | G18: 171.83 | H18: 170.02 | I18: 167.73 | J18: 175.93 | K18: 178.22 | L18: 180.03 | M18: 176.4 | N18: 172.3 | O18: 43745400 | P18: 2.53%
A19: 9 | B19: Textile | C19: ABFRL | D19: 2023-11-30 | E19: 214.65 | F19: 215.40 | G19: 212.65 | H19: 210.65 | I19: 207.90 | J19: 217.40 | K19: 220.15 | L19: 222.15 | M19: 218.15 | N19: 213.4 | O19: 32448000 | P19: -1.14%
A20: 10 | B20: Cement | C20: ACC | D20: 2023-11-30 | E20: 1896.75 | F20: 1898.13 | G20: 1886.67 | H20: 1876.58 | I20: 1865.12 | J20: 1908.22 | K20: 1919.68 | L20: 1929.77 | M20: 1909.6 | N20: 1888.05 | O20: 5402100 | P20: 0.01%
A21: 11 | B21: Others | C21: ADANIENT | D21: 2023-11-30 | E21: 2307.20 | F21: 2306.20 | G21: 2285.40 | H21: 2263.60 | I21: 2242.80 | J21: 2328.00 | K21: 2348.80 | L21: 2370.60 | M21: 2327 | N21: 2284.4 | O21: 9147000 | P21: -1.07%
A22: 12 | B22: Others | C22: ADANIPORTS | D22: 2023-11-30 | E22: 789.95 | F22: 790.87 | G22: 786.13 | H22: 782.32 | I22: 777.58 | J22: 794.68 | K22: 799.42 | L22: 803.23 | M22: 795.6 | N22: 787.05 | O22: 57528000 | P22: -0.13%
A23: 13 | B23: Pharma | C23: ALKEM | D23: 2023-11-30 | E23: 3744.25 | F23: 3733.77 | G23: 3707.98 | H23: 3671.72 | I23: 3645.93 | J23: 3770.03 | K23: 3795.82 | L23: 3832.08 | M23: 3759.55 | N23: 3697.5 | O23: 769000 | P23: 8.80%
A24: 14 | B24: Cement | C24: AMBUJACEM | D24: 2023-11-30 | E24: 426.85 | F24: 426.52 | G24: 423.13 | H24: 419.42 | I24: 416.03 | J24: 430.23 | K24: 433.62 | L24: 437.33 | M24: 429.9 | N24: 422.8 | O24: 59130000 | P24: 0.26%
A25: 15 | B25: Others | C25: APOLLOHOSP | D25: 2023-11-30 | E25: 4850.70 | F25: 4872.53 | G25: 4816.27 | H25: 4781.83 | I25: 4725.57 | J25: 4906.97 | K25: 4963.23 | L25: 4997.67 | M25: 4928.8 | N25: 4838.1 | O25: 2183000 | P25: -0.23%
A26: 16 | B26: Automobile | C26: APOLLOTYRE | D26: 2023-11-30 | E26: 380.80 | F26: 378.70 | G26: 375.15 | H26: 369.50 | I26: 365.95 | J26: 384.35 | K26: 387.90 | L26: 393.55 | M26: 382.25 | N26: 373.05 | O26: 12532400 | P26: -1.13%
A27: 17 | B27: Automobile | C27: ASHOKLEY | D27: 2023-11-30 | E27: 168.65 | F27: 169.03 | G27: 167.57 | H27: 166.48 | I27: 165.02 | J27: 170.12 | K27: 171.58 | L27: 172.67 | M27: 170.5 | N27: 167.95 | O27: 68200000 | P27: 0.18%
A28: 18 | B28: FMCG | C28: ASIANPAINT | D28: 2023-11-30 | E28: 3008.80 | F28: 3005.15 | G28: 2983.55 | H28: 2958.30 | I28: 2936.70 | J28: 3030.40 | K28: 3052.00 | L28: 3077.25 | M28: 3026.75 | N28: 2979.9 | O28: 5581600 | P28: 1.50%
A29: 19 | B29: Others | C29: ASTRAL | D29: 2023-11-30 | E29: 1849.00 | F29: 1842.88 | G29: 1832.27 | H29: 1815.53 | I29: 1804.92 | J29: 1859.62 | K29: 1870.23 | L29: 1886.97 | M29: 1853.5 | N29: 1826.15 | O29: 3252354 | P29: -0.16%
A30: 20 | B30: Others | C30: ATUL | D30: 2023-11-30 | E30: 6267.65 | F30: 6277.22 | G30: 6240.43 | H30: 6213.22 | I30: 6176.43 | J30: 6304.43 | K30: 6341.22 | L30: 6368.43 | M30: 6314 | N30: 6250 | O30: 406125 | P30: -0.88%
A31: 21 | B31: Banking | C31: AUBANK | D31: 2023-11-30 | E31: 670.35 | F31: 671.75 | G31: 658.65 | H31: 646.95 | I31: 633.85 | J31: 683.45 | K31: 696.55 | L31: 708.25 | M31: 684.85 | N31: 660.05 | O31: 13978000 | P31: -1.40%
A32: 22 | B32: Pharma | C32: AUROPHARMA | D32: 2023-11-30 | E32: 852.75 | F32: 858.63 | G32: 844.32 | H32: 835.88 | I32: 821.57 | J32: 867.07 | K32: 881.38 | L32: 889.82 | M32: 872.95 | N32: 850.2 | O32: 15858700 | P32: 2.38%
A33: 23 | B33: Banking | C33: AXISBANK | D33: 2023-11-30 | E33: 985.20 | F33: 988.53 | G33: 978.12 | H33: 971.03 | I33: 960.62 | J33: 995.62 | K33: 1006.03 | L33: 1013.12 | M33: 998.95 | N33: 981.45 | O33: 48325000 | P33: -2.28%
A34: 24 | B34: Automobile | C34: BAJAJ-AUTO | D34: 2023-11-30 | E34: 5344.10 | F34: 5348.05 | G34: 5311.10 | H34: 5278.10 | I34: 5241.15 | J34: 5381.05 | K34: 5418.00 | L34: 5451.00 | M34: 5385 | N34: 5315.05 | O34: 2413875 | P34: -0.54%
A35: 25 | B35: Finance | C35: BAJAJFINSV | D35: 2023-11-30 | E35: 1575.80 | F35: 1574.72 | G35: 1563.78 | H35: 1551.77 | I35: 1540.83 | J35: 1586.73 | K35: 1597.67 | L35: 1609.68 | M35: 1585.65 | N35: 1562.7 | O35: 8047500 | P35: -1.58%
A36: 26 | B36: Finance | C36: BAJFINANCE | D36: 2023-11-30 | E36: 7517.00 | F36: 7534.13 | G36: 7463.87 | H36: 7410.73 | I36: 7340.47 | J36: 7587.27 | K36: 7657.53 | L36: 7710.67 | M36: 7604.4 | N36: 7481 | O36: 4438750 | P36: 3.95%
A37: 27 | B37: Automobile | C37: BALKRISIND | D37: 2023-11-30 | E37: 2567.90 | F37: 2579.57 | G37: 2548.43 | H37: 2528.97 | I37: 2497.83 | J37: 2599.03 | K37: 2630.17 | L37: 2649.63 | M37: 2610.7 | N37: 2560.1 | O37: 1887300 | P37: -1.66%
A38: 28 | B38: Others | C38: BALRAMCHIN | D38: 2023-11-30 | E38: 415.25 | F38: 415.85 | G38: 412.90 | H38: 410.55 | I38: 407.60 | J38: 418.20 | K38: 421.15 | L38: 423.50 | M38: 418.8 | N38: 413.5 | O38: 10742400 | P38: -0.19%
A39: 29 | B39: Banking | C39: BANDHANBNK | D39: 2023-11-30 | E39: 215.30 | F39: 216.48 | G39: 213.67 | H39: 212.03 | I39: 209.22 | J39: 218.12 | K39: 220.93 | L39: 222.57 | M39: 219.3 | N39: 214.85 | O39: 63525000 | P39: -1.14%
A40: 30 | B40: Banking | C40: BANKBARODA | D40: 2023-11-30 | E40: 197.40 | F40: 198.08 | G40: 195.62 | H40: 193.83 | I40: 191.37 | J40: 199.87 | K40: 202.33 | L40: 204.12 | M40: 200.55 | N40: 196.3 | O40: 119717325 | P40: -0.95%
A41: 31 | B41: FMCG | C41: BATAINDIA | D41: 2023-11-30 | E41: 1569.35 | F41: 1568.35 | G41: 1558.00 | H41: 1546.65 | I41: 1536.30 | J41: 1579.70 | K41: 1590.05 | L41: 1601.40 | M41: 1578.7 | N41: 1557 | O41: 1378875 | P41: 0.66%
A42: 32 | B42: Capital_Goods | C42: BEL | D42: 2023-11-30 | E42: 133.70 | F42: 132.97 | G42: 131.88 | H42: 130.07 | I42: 128.98 | J42: 134.78 | K42: 135.87 | L42: 137.68 | M42: 134.05 | N42: 131.15 | O42: 55831500 | P42: -0.22%
A43: 33 | B43: FMCG | C43: BERGEPAINT | D43: 2023-11-30 | E43: 559.35 | F43: 557.62 | G43: 551.88 | H43: 544.42 | I43: 538.68 | J43: 565.08 | K43: 570.82 | L43: 578.28 | M43: 563.35 | N43: 550.15 | O43: 9662400 | P43: 1.64%
A44: 34 | B44: Automobile | C44: BHARATFORG | D44: 2023-11-30 | E44: 1024.60 | F44: 1030.18 | G44: 1015.52 | H44: 1006.43 | I44: 991.77 | J44: 1039.27 | K44: 1053.93 | L44: 1063.02 | M44: 1044.85 | N44: 1021.1 | O44: 8689000 | P44: 0.45%
A45: 35 | B45: Telecom | C45: BHARTIARTL | D45: 2023-11-30 | E45: 920.00 | F45: 921.97 | G45: 916.23 | H45: 912.47 | I45: 906.73 | J45: 925.73 | K45: 931.47 | L45: 935.23 | M45: 927.7 | N45: 918.2 | O45: 32337050 | P45: -0.75%
A46: 36 | B46: Capital_Goods | C46: BHEL | D46: 2023-11-30 | E46: 121.55 | F46: 121.35 | G46: 119.95 | H46: 118.35 | I46: 116.95 | J46: 122.95 | K46: 124.35 | L46: 125.95 | M46: 122.75 | N46: 119.75 | O46: 94379250 | P46: -0.16%
A47: 37 | B47: Pharma | C47: BIOCON | D47: 2023-11-30 | E47: 221.00 | F47: 221.30 | G47: 217.90 | H47: 214.80 | I47: 211.40 | J47: 224.40 | K47: 227.80 | L47: 230.90 | M47: 224.7 | N47: 218.2 | O47: 36782500 | P47: 3.88%
A48: 38 | B48: Automobile | C48: BOSCHLTD | D48: 2023-11-30 | E48: 19493.35 | F48: 19487.78 | G48: 19325.57 | H48: 19157.78 | I48: 18995.57 | J48: 19655.57 | K48: 19817.78 | L48: 19985.57 | M48: 19650 | N48: 19320 | O48: 116400 | P48: 4.02%
A49: 39 | B49: Oil_Gas | C49: BPCL | D49: 2023-11-30 | E49: 351.60 | F49: 351.02 | G49: 347.13 | H49: 342.67 | I49: 338.78 | J49: 355.48 | K49: 359.37 | L49: 363.83 | M49: 354.9 | N49: 346.55 | O49: 24915600 | P49: 1.58%
A50: 40 | B50: FMCG | C50: BRITANNIA | D50: 2023-11-30 | E50: 4455.15 | F50: 4452.63 | G50: 4412.27 | H50: 4369.38 | I50: 4329.02 | J50: 4495.52 | K50: 4535.88 | L50: 4578.77 | M50: 4493 | N50: 4409.75 | O50: 2146000 | P50: 2.27%
A51: 41 | B51: Technology | C51: BSOFT | D51: 2023-11-30 | E51: 547.95 | F51: 546.98 | G51: 540.97 | H51: 533.98 | I51: 527.97 | J51: 553.97 | K51: 559.98 | L51: 566.97 | M51: 553 | N51: 540 | O51: 8376000 | P51: 1.36%
A52: 42 | B52: Banking | C52: CANBK | D52: 2023-11-30 | E52: 386.70 | F52: 388.50 | G52: 383.75 | H52: 380.80 | I52: 376.05 | J52: 391.45 | K52: 396.20 | L52: 399.15 | M52: 393.25 | N52: 385.55 | O52: 48041100 | P52: -2.20%
A53: 43 | B53: Finance | C53: CANFINHOME | D53: 2023-11-30 | E53: 768.85 | F53: 765.18 | G53: 758.97 | H53: 749.08 | I53: 742.87 | J53: 775.07 | K53: 781.28 | L53: 791.17 | M53: 771.4 | N53: 755.3 | O53: 3804450 | P53: -3.27%
A54: 44 | B54: Others | C54: CHAMBLFERT | D54: 2023-11-30 | E54: 288.15 | F54: 286.53 | G54: 282.12 | H54: 276.08 | I54: 271.67 | J54: 292.57 | K54: 296.98 | L54: 303.02 | M54: 290.95 | N54: 280.5 | O54: 14780100 | P54: 4.98%
A55: 45 | B55: Finance | C55: CHOLAFIN | D55: 2023-11-30 | E55: 1142.20 | F55: 1148.38 | G55: 1124.87 | H55: 1107.53 | I55: 1084.02 | J55: 1165.72 | K55: 1189.23 | L55: 1206.57 | M55: 1171.9 | N55: 1131.05 | O55: 12451250 | P55: 1.17%
A56: 46 | B56: Pharma | C56: CIPLA | D56: 2023-11-30 | E56: 1205.15 | F56: 1203.08 | G56: 1196.67 | H56: 1188.18 | I56: 1181.77 | J56: 1211.57 | K56: 1217.98 | L56: 1226.47 | M56: 1209.5 | N56: 1194.6 | O56: 9209850 | P56: -5.96%
A57: 47 | B57: Others | C57: COALINDIA | D57: 2023-11-30 | E57: 315.30 | F57: 314.53 | G57: 311.92 | H57: 308.53 | I57: 305.92 | J57: 317.92 | K57: 320.53 | L57: 323.92 | M57: 317.15 | N57: 311.15 | O57: 60834900 | P57: -2.59%
A58: 48 | B58: Technology | C58: COFORGE | D58: 2023-11-30 | E58: 4996.65 | F58: 4993.07 | G58: 4955.98 | H58: 4915.32 | I58: 4878.23 | J58: 5033.73 | K58: 5070.82 | L58: 5111.48 | M58: 5030.15 | N58: 4952.4 | O58: 1158750 | P58: 1.17%
A59: 49 | B59: FMCG | C59: COLPAL | D59: 2023-11-30 | E59: 2105.00 | F59: 2090.80 | G59: 2063.20 | H59: 2021.40 | I59: 1993.80 | J59: 2132.60 | K59: 2160.20 | L59: 2202.00 | M59: 2118.4 | N59: 2049 | O59: 3276000 | P59: 2.03%
A60: 50 | B60: Others | C60: CONCOR | D60: 2023-11-30 | E60: 685.70 | F60: 687.38 | G60: 681.72 | H60: 677.73 | I60: 672.07 | J60: 691.37 | K60: 697.03 | L60: 701.02 | M60: 693.05 | N60: 683.4 | O60: 5712000 | P60: 0.88%
A61: 51 | B61: Others | C61: COROMANDEL | D61: 2023-11-30 | E61: 1040.45 | F61: 1043.77 | G61: 1032.08 | H61: 1023.72 | I61: 1012.03 | J61: 1052.13 | K61: 1063.82 | L61: 1072.18 | M61: 1055.45 | N61: 1035.4 | O61: 1640100 | P61: 9.33%
A62: 52 | B62: Capital_Goods | C62: CROMPTON | D62: 2023-11-30 | E62: 283.60 | F62: 283.70 | G62: 280.45 | H62: 277.30 | I62: 274.05 | J62: 286.85 | K62: 290.10 | L62: 293.25 | M62: 286.95 | N62: 280.55 | O62: 12465000 | P62: -0.16%
A63: 53 | B63: Banking | C63: CUB | D63: 2023-11-30 | E63: 139.10 | F63: 137.93 | G63: 136.07 | H63: 133.03 | I63: 131.17 | J63: 140.97 | K63: 142.83 | L63: 145.87 | M63: 139.8 | N63: 134.9 | O63: 36835000 | P63: -2.69%
A64: 54 | B64: Capital_Goods | C64: CUMMINSIND | D64: 2023-11-30 | E64: 1678.50 | F64: 1682.20 | G64: 1667.40 | H64: 1656.30 | I64: 1641.50 | J64: 1693.30 | K64: 1708.10 | L64: 1719.20 | M64: 1697 | N64: 1671.1 | O64: 3933900 | P64: 0.58%
A65: 55 | B65: FMCG | C65: DABUR | D65: 2023-11-30 | E65: 529.40 | F65: 527.83 | G65: 524.27 | H65: 519.13 | I65: 515.57 | J65: 532.97 | K65: 536.53 | L65: 541.67 | M65: 531.4 | N65: 522.7 | O65: 20536250 | P65: 1.53%
A66: 56 | B66: Cement | C66: DALBHARAT | D66: 2023-11-30 | E66: 2110.95 | F66: 2095.87 | G66: 2075.13 | H66: 2039.32 | I66: 2018.58 | J66: 2131.68 | K66: 2152.42 | L66: 2188.23 | M66: 2116.6 | N66: 2060.05 | O66: 2295000 | P66: -3.68%
A67: 57 | B67: Chemical | C67: DEEPAKNTR | D67: 2023-11-30 | E67: 1999.90 | F67: 2007.35 | G67: 1987.95 | H67: 1976.00 | I67: 1956.60 | J67: 2019.30 | K67: 2038.70 | L67: 2050.65 | M67: 2026.75 | N67: 1995.4 | O67: 2380500 | P67: 1.34%
A68: 58 | B68: Others | C68: DELTACORP | D68: 2023-11-30 | E68: 128.65 | F68: 128.77 | G68: 127.13 | H68: 125.62 | I68: 123.98 | J68: 130.28 | K68: 131.92 | L68: 133.43 | M68: 130.4 | N68: 127.25 | O68: 11726000 | P68: 1.31%
A69: 59 | B69: Pharma | C69: DIVISLAB | D69: 2023-11-30 | E69: 3409.25 | F69: 3415.77 | G69: 3386.53 | H69: 3363.82 | I69: 3334.58 | J69: 3438.48 | K69: 3467.72 | L69: 3490.43 | M69: 3445 | N69: 3393.05 | O69: 2286600 | P69: 1.43%
A70: 60 | B70: Others | C70: DIXON | D70: 2023-11-30 | E70: 5121.05 | F70: 5163.08 | G70: 5068.17 | H70: 5015.28 | I70: 4920.37 | J70: 5215.97 | K70: 5310.88 | L70: 5363.77 | M70: 5258 | N70: 5110.2 | O70: 1122800 | P70: -1.69%
A71: 61 | B71: Realty | C71: DLF | D71: 2023-11-30 | E71: 567.05 | F71: 566.48 | G71: 560.52 | H71: 553.98 | I71: 548.02 | J71: 573.02 | K71: 578.98 | L71: 585.52 | M71: 572.45 | N71: 559.95 | O71: 35611950 | P71: 1.02%
A72: 62 | B72: Pharma | C72: DRREDDY | D72: 2023-11-30 | E72: 5403.10 | F72: 5420.37 | G72: 5371.73 | H72: 5340.37 | I72: 5291.73 | J72: 5451.73 | K72: 5500.37 | L72: 5531.73 | M72: 5469 | N72: 5389 | O72: 2818500 | P72: 3.37%
A73: 63 | B73: Automobile | C73: EICHERMOT | D73: 2023-11-30 | E73: 3309.25 | F73: 3330.15 | G73: 3284.10 | H73: 3258.95 | I73: 3212.90 | J73: 3355.30 | K73: 3401.35 | L73: 3426.50 | M73: 3376.2 | N73: 3305 | O73: 3033625 | P73: 4.84%
A74: 64 | B74: Automobile | C74: ESCORTS | D74: 2023-11-30 | E74: 3151.35 | F74: 3163.12 | G74: 3131.23 | H74: 3111.12 | I74: 3079.23 | J74: 3183.23 | K74: 3215.12 | L74: 3235.23 | M74: 3195 | N74: 3143 | O74: 1725350 | P74: 0.82%
A75: 65 | B75: Automobile | C75: EXIDEIND | D75: 2023-11-30 | E75: 257.10 | F75: 257.53 | G75: 254.62 | H75: 252.13 | I75: 249.22 | J75: 260.02 | K75: 262.93 | L75: 265.42 | M75: 260.45 | N75: 255.05 | O75: 16336800 | P75: 0.80%
A76: 66 | B76: Banking | C76: FEDERALBNK | D76: 2023-11-30 | E76: 141.10 | F76: 141.18 | G76: 140.12 | H76: 139.13 | I76: 138.07 | J76: 142.17 | K76: 143.23 | L76: 144.22 | M76: 142.25 | N76: 140.2 | O76: 105185000 | P76: -0.63%
A77: 67 | B77: Oil_Gas | C77: GAIL | D77: 2023-11-30 | E77: 120.10 | F77: 119.48 | G77: 117.22 | H77: 114.33 | I77: 112.07 | J77: 122.37 | K77: 124.63 | L77: 127.52 | M77: 121.75 | N77: 116.6 | O77: 156547350 | P77: 6.46%
A78: 68 | B78: Pharma | C78: GLENMARK | D78: 2023-11-30 | E78: 752.75 | F78: 755.45 | G78: 744.60 | H78: 736.45 | I78: 725.60 | J78: 763.60 | K78: 774.45 | L78: 782.60 | M78: 766.3 | N78: 747.3 | O78: 8681875 | P78: -0.48%
A79: 69 | B79: Infrastructure | C79: GMRINFRA | D79: 2023-11-30 | E79: 54.90 | F79: 55.13 | G79: 54.42 | H79: 53.93 | I79: 53.22 | J79: 55.62 | K79: 56.33 | L79: 56.82 | M79: 55.85 | N79: 54.65 | O79: 130421250 | P79: -0.38%
A80: 70 | B80: Others | C80: GNFC | D80: 2023-11-30 | E80: 695.50 | F80: 699.38 | G80: 687.77 | H80: 680.03 | I80: 668.42 | J80: 707.12 | K80: 718.73 | L80: 726.47 | M80: 711 | N80: 691.65 | O80: 11876800 | P80: 12.78%
A81: 71 | B81: FMCG | C81: GODREJCP | D81: 2023-11-30 | E81: 993.85 | F81: 994.15 | G81: 986.50 | H81: 979.15 | I81: 971.50 | J81: 1001.50 | K81: 1009.15 | L81: 1016.50 | M81: 1001.8 | N81: 986.8 | O81: 8415500 | P81: -0.48%
A82: 72 | B82: Realty | C82: GODREJPROP | D82: 2023-11-30 | E82: 1669.20 | F82: 1665.85 | G82: 1654.85 | H82: 1640.50 | I82: 1629.50 | J82: 1680.20 | K82: 1691.20 | L82: 1705.55 | M82: 1676.85 | N82: 1651.5 | O82: 3716875 | P82: -3.30%
A83: 73 | B83: Pharma | C83: GRANULES | D83: 2023-11-30 | E83: 327.35 | F83: 326.62 | G83: 323.48 | H83: 319.62 | I83: 316.48 | J83: 330.48 | K83: 333.62 | L83: 337.48 | M83: 329.75 | N83: 322.75 | O83: 8878000 | P83: 2.80%
A84: 74 | B84: Cement | C84: GRASIM | D84: 2023-11-30 | E84: 1894.05 | F84: 1888.68 | G84: 1879.42 | H84: 1864.78 | I84: 1855.52 | J84: 1903.32 | K84: 1912.58 | L84: 1927.22 | M84: 1897.95 | N84: 1874.05 | O84: 9623500 | P84: -0.22%
A85: 75 | B85: Oil_Gas | C85: GUJGASLTD | D85: 2023-11-30 | E85: 409.90 | F85: 408.87 | G85: 406.53 | H85: 403.17 | I85: 400.83 | J85: 412.23 | K85: 414.57 | L85: 417.93 | M85: 411.2 | N85: 405.5 | O85: 9145000 | P85: -1.97%
A86: 76 | B86: Others | C86: HAL | D86: 2023-11-30 | E86: 1831.45 | F86: 1837.87 | G86: 1821.58 | H86: 1811.72 | I86: 1795.43 | J86: 1847.73 | K86: 1864.02 | L86: 1873.88 | M86: 1854.15 | N86: 1828 | O86: 8097600 | P86: 1.68%
A87: 77 | B87: Capital_Goods | C87: HAVELLS | D87: 2023-11-30 | E87: 1254.45 | F87: 1262.68 | G87: 1244.27 | H87: 1234.08 | I87: 1215.67 | J87: 1272.87 | K87: 1291.28 | L87: 1301.47 | M87: 1281.1 | N87: 1252.5 | O87: 5850500 | P87: 4.52%
A88: 78 | B88: Technology | C88: HCLTECH | D88: 2023-11-30 | E88: 1279.10 | F88: 1273.55 | G88: 1264.90 | H88: 1250.70 | I88: 1242.05 | J88: 1287.75 | K88: 1296.40 | L88: 1310.60 | M88: 1282.2 | N88: 1259.35 | O88: 11054400 | P88: 5.31%
A89: 79 | B89: Finance | C89: HDFCAMC | D89: 2023-11-30 | E89: 2741.90 | F89: 2731.92 | G89: 2708.98 | H89: 2676.07 | I89: 2653.13 | J89: 2764.83 | K89: 2787.77 | L89: 2820.68 | M89: 2754.85 | N89: 2699 | O89: 3418500 | P89: -1.46%
A90: 80 | B90: Banking | C90: HDFCBANK | D90: 2023-11-30 | E90: 1484.65 | F90: 1491.45 | G90: 1475.65 | H90: 1466.65 | I90: 1450.85 | J90: 1500.45 | K90: 1516.25 | L90: 1525.25 | M90: 1507.25 | N90: 1482.45 | O90: 153230550 | P90: -0.47%
A91: 81 | B91: Finance | C91: HDFCLIFE | D91: 2023-11-30 | E91: 620.95 | F91: 616.80 | G91: 611.15 | H91: 601.35 | I91: 595.70 | J91: 626.60 | K91: 632.25 | L91: 642.05 | M91: 622.45 | N91: 607 | O91: 14963300 | P91: -3.37%
A92: 82 | B92: Automobile | C92: HEROMOTOCO | D92: 2023-11-30 | E92: 3107.75 | F92: 3121.23 | G92: 3086.52 | H92: 3065.28 | I92: 3030.57 | J92: 3142.47 | K92: 3177.18 | L92: 3198.42 | M92: 3155.95 | N92: 3100 | O92: 3243600 | P92: -1.05%
A93: 83 | B93: Metals | C93: HINDALCO | D93: 2023-11-30 | E93: 462.40 | F93: 460.98 | G93: 456.47 | H93: 450.53 | I93: 446.02 | J93: 466.92 | K93: 471.43 | L93: 477.37 | M93: 465.5 | N93: 455.05 | O93: 31374000 | P93: 2.41%
A94: 84 | B94: Metals | C94: HINDCOPPER | D94: 2023-11-30 | E94: 143.80 | F94: 144.72 | G94: 142.28 | H94: 140.77 | I94: 138.33 | J94: 146.23 | K94: 148.67 | L94: 150.18 | M94: 147.15 | N94: 143.2 | O94: 32012000 | P94: 0.10%
A95: 85 | B95: Oil_Gas | C95: HINDPETRO | D95: 2023-11-30 | E95: 249.45 | F95: 248.87 | G95: 246.83 | H95: 244.22 | I95: 242.18 | J95: 251.48 | K95: 253.52 | L95: 256.13 | M95: 250.9 | N95: 246.25 | O95: 49380300 | P95: 0.96%
A96: 86 | B96: FMCG | C96: HINDUNILVR | D96: 2023-11-30 | E96: 2481.05 | F96: 2478.62 | G96: 2468.43 | H96: 2455.82 | I96: 2445.63 | J96: 2491.23 | K96: 2501.42 | L96: 2514.03 | M96: 2488.8 | N96: 2466 | O96: 7912800 | P96: 1.54%
A97: 87 | B97: Finance | C97: IBULHSGFIN | D97: 2023-11-30 | E97: 162.95 | F97: 162.62 | G97: 159.23 | H97: 155.52 | I97: 152.13 | J97: 166.33 | K97: 169.72 | L97: 173.43 | M97: 166 | N97: 158.9 | O97: 55977600 | P97: 1.98%
A98: 88 | B98: Banking | C98: ICICIBANK | D98: 2023-11-30 | E98: 921.35 | F98: 925.77 | G98: 915.58 | H98: 909.82 | I98: 899.63 | J98: 931.53 | K98: 941.72 | L98: 947.48 | M98: 935.95 | N98: 920 | O98: 89680500 | P98: -0.05%
A99: 89 | B99: Finance | C99: ICICIGI | D99: 2023-11-30 | E99: 1382.90 | F99: 1375.63 | G99: 1359.32 | H99: 1335.73 | I99: 1319.42 | J99: 1399.22 | K99: 1415.53 | L99: 1439.12 | M99: 1391.95 | N99: 1352.05 | O99: 2767000 | P99: 2.24%
A100: 90 | B100: Finance | C100: ICICIPRULI | D100: 2023-11-30 | E100: 528.85 | F100: 527.62 | G100: 523.23 | H100: 517.62 | I100: 513.23 | J100: 533.23 | K100: 537.62 | L100: 543.23 | M100: 532 | N100: 522 | O100: 9249000 | P100: 1.75%
A101: 91 | B101: Telecom | C101: IDEA | D101: 2023-11-30 | E101: 12.00 | F101: 12.02 | G101: 11.73 | H101: 11.47 | I101: 11.18 | J101: 12.28 | K101: 12.57 | L101: 12.83 | M101: 12.3 | N101: 11.75 | O101: 1546160000 | P101: 1.52%
A102: 92 | B102: Finance | C102: IDFC | D102: 2023-11-30 | E102: 114.85 | F102: 115.43 | G102: 113.97 | H102: 113.08 | I102: 111.62 | J102: 116.32 | K102: 117.78 | L102: 118.67 | M102: 116.9 | N102: 114.55 | O102: 83820000 | P102: 2.56%
A103: 93 | B103: Banking | C103: IDFCFIRSTB | D103: 2023-11-30 | E103: 82.90 | F103: 83.08 | G103: 82.07 | H103: 81.23 | I103: 80.22 | J103: 83.92 | K103: 84.93 | L103: 85.77 | M103: 84.1 | N103: 82.25 | O103: 252855000 | P103: -1.11%
A104: 94 | B104: Others | C104: IEX | D104: 2023-11-30 | E104: 126.35 | F104: 126.07 | G104: 125.28 | H104: 124.22 | I104: 123.43 | J104: 127.13 | K104: 127.92 | L104: 128.98 | M104: 126.85 | N104: 125 | O104: 50047500 | P104: -1.64%
A105: 95 | B105: Oil_Gas | C105: IGL | D105: 2023-11-30 | E105: 382.15 | F105: 383.32 | G105: 380.13 | H105: 378.12 | I105: 374.93 | J105: 385.33 | K105: 388.52 | L105: 390.53 | M105: 386.5 | N105: 381.3 | O105: 17730625 | P105: 4.12%
A106: 96 | B106: Infrastructure | C106: INDHOTEL | D106: 2023-11-30 | E106: 385.15 | F106: 385.42 | G106: 382.23 | H106: 379.32 | I106: 376.13 | J106: 388.33 | K106: 391.52 | L106: 394.43 | M106: 388.6 | N106: 382.5 | O106: 24234000 | P106: -1.41%
A107: 97 | B107: Cement | C107: INDIACEM | D107: 2023-11-30 | E107: 210.65 | F107: 211.32 | G107: 208.68 | H107: 206.72 | I107: 204.08 | J107: 213.28 | K107: 215.92 | L107: 217.88 | M107: 213.95 | N107: 209.35 | O107: 21950100 | P107: -0.36%
A108: 98 | B108: Others | C108: INDIAMART | D108: 2023-11-30 | E108: 2624.40 | F108: 2609.35 | G108: 2589.05 | H108: 2553.70 | I108: 2533.40 | J108: 2644.70 | K108: 2665.00 | L108: 2700.35 | M108: 2629.65 | N108: 2574 | O108: 715500 | P108: -2.97%
A109: 99 | B109: Others | C109: INDIGO | D109: 2023-11-30 | E109: 2467.80 | F109: 2485.88 | G109: 2440.37 | H109: 2412.93 | I109: 2367.42 | J109: 2513.32 | K109: 2558.83 | L109: 2586.27 | M109: 2531.4 | N109: 2458.45 | O109: 6120000 | P109: -3.49%
A110: 100 | B110: Banking | C110: INDUSINDBK | D110: 2023-11-30 | E110: 1446.45 | F110: 1452.47 | G110: 1436.93 | H110: 1427.42 | I110: 1411.88 | J110: 1461.98 | K110: 1477.52 | L110: 1487.03 | M110: 1468 | N110: 1442.95 | O110: 23559500 | P110: 0.39%
A111: 101 | B111: Telecom | C111: INDUSTOWER | D111: 2023-11-30 | E111: 173.50 | F111: 173.70 | G111: 170.90 | H111: 168.30 | I111: 165.50 | J111: 176.30 | K111: 179.10 | L111: 181.70 | M111: 176.5 | N111: 171.1 | O111: 79226800 | P111: 2.77%
A112: 102 | B112: Technology | C112: INFY | D112: 2023-11-30 | E112: 1374.15 | F112: 1376.48 | G112: 1364.87 | H112: 1355.58 | I112: 1343.97 | J112: 1385.77 | K112: 1397.38 | L112: 1406.67 | M112: 1388.1 | N112: 1367.2 | O112: 24718000 | P112: 2.11%
A113: 103 | B113: Oil_Gas | C113: IOC | D113: 2023-11-30 | E113: 90.30 | F113: 89.58 | G113: 88.57 | H113: 86.83 | I113: 85.82 | J113: 91.32 | K113: 92.33 | L113: 94.07 | M113: 90.6 | N113: 87.85 | O113: 109131750 | P113: 6.07%
A114: 104 | B114: Pharma | C114: IPCALAB | D114: 2023-11-30 | E114: 985.05 | F114: 990.88 | G114: 978.07 | H114: 971.08 | I114: 958.27 | J114: 997.87 | K114: 1010.68 | L114: 1017.67 | M114: 1003.7 | N114: 983.9 | O114: 2267200 | P114: 1.37%
A115: 105 | B115: Others | C115: IRCTC | D115: 2023-11-30 | E115: 664.45 | F115: 664.67 | G115: 661.68 | H115: 658.92 | I115: 655.93 | J115: 667.43 | K115: 670.42 | L115: 673.18 | M115: 667.65 | N115: 661.9 | O115: 11899125 | P115: -0.23%
A116: 106 | B116: FMCG | C116: ITC | D116: 2023-11-30 | E116: 431.10 | F116: 432.10 | G116: 429.65 | H116: 428.20 | I116: 425.75 | J116: 433.55 | K116: 436.00 | L116: 437.45 | M116: 434.55 | N116: 430.65 | O116: 54091200 | P116: 1.28%
A117: 107 | B117: Metals | C117: JINDALSTEL | D117: 2023-11-30 | E117: 636.40 | F117: 639.42 | G117: 627.98 | H117: 619.57 | I117: 608.13 | J117: 647.83 | K117: 659.27 | L117: 667.68 | M117: 650.85 | N117: 631 | O117: 25333750 | P117: 2.70%
A118: 108 | B118: Cement | C118: JKCEMENT | D118: 2023-11-30 | E118: 3161.90 | F118: 3144.08 | G118: 3114.92 | H118: 3067.93 | I118: 3038.77 | J118: 3191.07 | K118: 3220.23 | L118: 3267.22 | M118: 3173.25 | N118: 3097.1 | O118: 604250 | P118: -3.59%
A119: 109 | B119: Metals | C119: JSWSTEEL | D119: 2023-11-30 | E119: 739.30 | F119: 736.95 | G119: 732.50 | H119: 725.70 | I119: 721.25 | J119: 743.75 | K119: 748.20 | L119: 755.00 | M119: 741.4 | N119: 730.15 | O119: 15991425 | P119: -1.17%
A120: 110 | B120: Others | C120: JUBLFOOD | D120: 2023-11-30 | E120: 499.30 | F120: 497.35 | G120: 490.35 | H120: 481.40 | I120: 474.40 | J120: 506.30 | K120: 513.30 | L120: 522.25 | M120: 504.35 | N120: 488.4 | O120: 23310000 | P120: -0.58%
A121: 111 | B121: Banking | C121: KOTAKBANK | D121: 2023-11-30 | E121: 1745.55 | F121: 1740.33 | G121: 1727.87 | H121: 1710.18 | I121: 1697.72 | J121: 1758.02 | K121: 1770.48 | L121: 1788.17 | M121: 1752.8 | N121: 1722.65 | O121: 25534000 | P121: -5.66%
A122: 112 | B122: Finance | C122: L&TFH | D122: 2023-11-30 | E122: 133.40 | F122: 133.27 | G122: 131.68 | H122: 129.97 | I122: 128.38 | J122: 134.98 | K122: 136.57 | L122: 138.28 | M122: 134.85 | N122: 131.55 | O122: 58795774 | P122: -0.67%
A123: 113 | B123: Others | C123: LALPATHLAB | D123: 2023-11-30 | E123: 2421.30 | F123: 2412.13 | G123: 2393.57 | H123: 2365.83 | I123: 2347.27 | J123: 2439.87 | K123: 2458.43 | L123: 2486.17 | M123: 2430.7 | N123: 2384.4 | O123: 882000 | P123: -7.58%
A124: 114 | B124: Pharma | C124: LAURUSLABS | D124: 2023-11-30 | E124: 361.65 | F124: 362.80 | G124: 359.85 | H124: 358.05 | I124: 355.10 | J124: 364.60 | K124: 367.55 | L124: 369.35 | M124: 365.75 | N124: 361 | O124: 15589000 | P124: 1.47%
A125: 115 | B125: Finance | C125: LICHSGFIN | D125: 2023-11-30 | E125: 461.65 | F125: 459.02 | G125: 453.53 | H125: 445.42 | I125: 439.93 | J125: 467.13 | K125: 472.62 | L125: 480.73 | M125: 464.5 | N125: 450.9 | O125: 22862000 | P125: 2.80%
A126: 116 | B126: Capital_Goods | C126: LT | D126: 2023-11-30 | E126: 2944.30 | F126: 2943.18 | G126: 2921.12 | H126: 2897.93 | I126: 2875.87 | J126: 2966.37 | K126: 2988.43 | L126: 3011.62 | M126: 2965.25 | N126: 2920 | O126: 8880300 | P126: 1.29%
A127: 117 | B127: Technology | C127: LTIM | D127: 2023-11-30 | E127: 5093.15 | F127: 5119.83 | G127: 5049.62 | H127: 5006.08 | I127: 4935.87 | J127: 5163.37 | K127: 5233.58 | L127: 5277.12 | M127: 5190.05 | N127: 5076.3 | O127: 1491900 | P127: 8.77%
A128: 118 | B128: Technology | C128: LTTS | D128: 2023-11-30 | E128: 4211.65 | F128: 4209.65 | G128: 4184.35 | H128: 4157.05 | I128: 4131.75 | J128: 4236.95 | K128: 4262.25 | L128: 4289.55 | M128: 4234.95 | N128: 4182.35 | O128: 929600 | P128: -0.19%
A129: 119 | B129: Pharma | C129: LUPIN | D129: 2023-11-30 | E129: 1134.75 | F129: 1140.12 | G129: 1124.83 | H129: 1114.92 | I129: 1099.63 | J129: 1150.03 | K129: 1165.32 | L129: 1175.23 | M129: 1155.4 | N129: 1130.2 | O129: 5678850 | P129: 4.36%
A130: 120 | B130: Automobile | C130: M&M | D130: 2023-11-30 | E130: 1468.10 | F130: 1478.00 | G130: 1453.50 | H130: 1438.90 | I130: 1414.40 | J130: 1492.60 | K130: 1517.10 | L130: 1531.70 | M130: 1502.5 | N130: 1463.4 | O130: 14840000 | P130: 4.63%
A131: 121 | B131: Finance | C131: M&MFIN | D131: 2023-11-30 | E131: 246.00 | F131: 246.78 | G131: 243.42 | H131: 240.83 | I131: 237.47 | J131: 249.37 | K131: 252.73 | L131: 255.32 | M131: 250.15 | N131: 244.2 | O131: 40554000 | P131: 1.09%
A132: 122 | B132: Finance | C132: MANAPPURAM | D132: 2023-11-30 | E132: 137.40 | F132: 135.85 | G132: 133.70 | H132: 130.00 | I132: 127.85 | J132: 139.55 | K132: 141.70 | L132: 145.40 | M132: 138 | N132: 132.15 | O132: 74424000 | P132: 1.70%
A133: 123 | B133: FMCG | C133: MARICO | D133: 2023-11-30 | E133: 535.80 | F133: 532.65 | G133: 524.65 | H133: 513.50 | I133: 505.50 | J133: 543.80 | K133: 551.80 | L133: 562.95 | M133: 540.65 | N133: 521.5 | O133: 11574000 | P133: 0.58%
A134: 124 | B134: Automobile | C134: MARUTI | D134: 2023-11-30 | E134: 10441.10 | F134: 10440.97 | G134: 10364.18 | H134: 10287.27 | I134: 10210.48 | J134: 10517.88 | K134: 10594.67 | L134: 10671.58 | M134: 10517.75 | N134: 10364.05 | O134: 2962950 | P134: -0.97%
A135: 125 | B135: FMCG | C135: MCDOWELL-N | D135: 2023-11-30 | E135: 1033.80 | F135: 1030.77 | G135: 1024.08 | H135: 1014.37 | I135: 1007.68 | J135: 1040.48 | K135: 1047.17 | L135: 1056.88 | M135: 1037.45 | N135: 1021.05 | O135: 8788500 | P135: 0.82%
A136: 126 | B136: Others | C136: MCX | D136: 2023-11-30 | E136: 2339.05 | F136: 2328.03 | G136: 2291.07 | H136: 2243.08 | I136: 2206.12 | J136: 2376.02 | K136: 2412.98 | L136: 2460.97 | M136: 2365 | N136: 2280.05 | O136: 2409600 | P136: 20.22%
A137: 127 | B137: Pharma | C137: METROPOLIS | D137: 2023-11-30 | E137: 1411.60 | F137: 1413.45 | G137: 1403.15 | H137: 1394.70 | I137: 1384.40 | J137: 1421.90 | K137: 1432.20 | L137: 1440.65 | M137: 1423.75 | N137: 1405 | O137: 1850800 | P137: -0.69%
A138: 128 | B138: Finance | C138: MFSL | D138: 2023-11-30 | E138: 920.15 | F138: 925.23 | G138: 912.67 | H138: 905.18 | I138: 892.62 | J138: 932.72 | K138: 945.28 | L138: 952.77 | M138: 937.8 | N138: 917.75 | O138: 6869600 | P138: 1.84%
A139: 129 | B139: Oil_Gas | C139: MGL | D139: 2023-11-30 | E139: 1038.85 | F139: 1030.47 | G139: 1016.98 | H139: 995.12 | I139: 981.63 | J139: 1052.33 | K139: 1065.82 | L139: 1087.68 | M139: 1043.95 | N139: 1008.6 | O139: 2412800 | P139: -3.43%
A140: 130 | B140: Automobile | C140: MOTHERSON | D140: 2023-11-30 | E140: 92.35 | F140: 92.57 | G140: 91.88 | H140: 91.42 | I140: 90.73 | J140: 93.03 | K140: 93.72 | L140: 94.18 | M140: 93.25 | N140: 92.1 | O140: 74606800 | P140: 0.23%
A141: 131 | B141: Technology | C141: MPHASIS | D141: 2023-11-30 | E141: 2136.20 | F141: 2147.38 | G141: 2119.97 | H141: 2103.73 | I141: 2076.32 | J141: 2163.62 | K141: 2191.03 | L141: 2207.27 | M141: 2174.8 | N141: 2131.15 | O141: 2551450 | P141: 0.34%
A142: 132 | B142: Automobile | C142: MRF | D142: 2023-11-30 | E142: 108983.00 | F142: 109207.62 | G142: 108287.33 | H142: 107591.67 | I142: 106671.38 | J142: 109903.28 | K142: 110823.57 | L142: 111519.23 | M142: 110127.9 | N142: 108511.95 | O142: 40860 | P142: -2.41%
A143: 133 | B143: Finance | C143: MUTHOOTFIN | D143: 2023-11-30 | E143: 1295.85 | F143: 1309.03 | G143: 1273.07 | H143: 1250.28 | I143: 1214.32 | J143: 1331.82 | K143: 1367.78 | L143: 1390.57 | M143: 1345 | N143: 1286.25 | O143: 5492300 | P143: 0.29%
A144: 134 | B144: Metals | C144: NATIONALUM | D144: 2023-11-30 | E144: 92.90 | F144: 93.22 | G144: 91.98 | H144: 91.07 | I144: 89.83 | J144: 94.13 | K144: 95.37 | L144: 96.28 | M144: 94.45 | N144: 92.3 | O144: 62595000 | P144: -1.15%
A145: 135 | B145: Others | C145: NAUKRI | D145: 2023-11-30 | E145: 4107.75 | F145: 4113.25 | G145: 4084.50 | H145: 4061.25 | I145: 4032.50 | J145: 4136.50 | K145: 4165.25 | L145: 4188.50 | M145: 4142 | N145: 4090 | O145: 1555050 | P145: 4.50%
A146: 136 | B146: Chemical | C146: NAVINFLUOR | D146: 2023-11-30 | E146: 3437.45 | F146: 3449.80 | G146: 3414.65 | H146: 3391.85 | I146: 3356.70 | J146: 3472.60 | K146: 3507.75 | L146: 3530.55 | M146: 3484.95 | N146: 3427 | O146: 1109700 | P146: 1.40%
A147: 137 | B147: FMCG | C147: NESTLEIND | D147: 2023-11-30 | E147: 24248.05 | F147: 24211.50 | G147: 24136.55 | H147: 24025.05 | I147: 23950.10 | J147: 24323.00 | K147: 24397.95 | L147: 24509.45 | M147: 24286.45 | N147: 24100 | O147: 284200 | P147: 2.33%
A148: 138 | B148: Metals | C148: NMDC | D148: 2023-11-30 | E148: 155.10 | F148: 155.60 | G148: 153.40 | H148: 151.70 | I148: 149.50 | J148: 157.30 | K148: 159.50 | L148: 161.20 | M148: 157.8 | N148: 153.9 | O148: 91003500 | P148: 0.33%
A149: 139 | B149: Power | C149: NTPC | D149: 2023-11-30 | E149: 235.10 | F149: 234.48 | G149: 233.12 | H149: 231.13 | I149: 229.77 | J149: 236.47 | K149: 237.83 | L149: 239.82 | M149: 235.85 | N149: 232.5 | O149: 75027000 | P149: 0.90%
A150: 140 | B150: Realty | C150: OBEROIRLTY | D150: 2023-11-30 | E150: 1142.55 | F150: 1136.42 | G150: 1126.38 | H150: 1110.22 | I150: 1100.18 | J150: 1152.58 | K150: 1162.62 | L150: 1178.78 | M150: 1146.45 | N150: 1120.25 | O150: 7133700 | P150: 2.04%
A151: 141 | B151: Technology | C151: OFSS | D151: 2023-11-30 | E151: 3902.55 | F151: 3909.48 | G151: 3880.97 | H151: 3859.38 | I151: 3830.87 | J151: 3931.07 | K151: 3959.58 | L151: 3981.17 | M151: 3938 | N151: 3887.9 | O151: 284600 | P151: -0.84%
A152: 142 | B152: Oil_Gas | C152: ONGC | D152: 2023-11-30 | E152: 186.35 | F152: 186.67 | G152: 183.83 | H152: 181.32 | I152: 178.48 | J152: 189.18 | K152: 192.02 | L152: 194.53 | M152: 189.5 | N152: 184.15 | O152: 29190700 | P152: -3.59%
A153: 143 | B153: Textile | C153: PAGEIND | D153: 2023-11-30 | E153: 37843.45 | F153: 37797.72 | G153: 37445.93 | H153: 37048.42 | I153: 36696.63 | J153: 38195.23 | K153: 38547.02 | L153: 38944.53 | M153: 38149.5 | N153: 37400.2 | O153: 146895 | P153: 0.05%
A154: 144 | B154: Pharma | C154: PEL | D154: 2023-11-30 | E154: 979.10 | F154: 977.82 | G154: 970.78 | H154: 962.47 | I154: 955.43 | J154: 986.13 | K154: 993.17 | L154: 1001.48 | M154: 984.85 | N154: 969.5 | O154: 9402750 | P154: -0.10%
A155: 145 | B155: Technology | C155: PERSISTENT | D155: 2023-11-30 | E155: 6182.55 | F155: 6161.82 | G155: 6105.73 | H155: 6028.92 | I155: 5972.83 | J155: 6238.63 | K155: 6294.72 | L155: 6371.53 | M155: 6217.9 | N155: 6085 | O155: 1577225 | P155: 9.27%
A156: 146 | B156: Oil_Gas | C156: PETRONET | D156: 2023-11-30 | E156: 200.90 | F156: 199.98 | G156: 197.02 | H156: 193.13 | I156: 190.17 | J156: 203.87 | K156: 206.83 | L156: 210.72 | M156: 202.95 | N156: 196.1 | O156: 32544000 | P156: 11.62%
A157: 147 | B157: Finance | C157: PFC | D157: 2023-11-30 | E157: 246.40 | F157: 244.22 | G157: 241.13 | H157: 235.87 | I157: 232.78 | J157: 249.48 | K157: 252.57 | L157: 257.83 | M157: 247.3 | N157: 238.95 | O157: 60143875 | P157: -1.27%
A158: 148 | B158: FMCG | C158: PIDILITIND | D158: 2023-11-30 | E158: 2472.40 | F158: 2440.62 | G158: 2393.23 | H158: 2314.07 | I158: 2266.68 | J158: 2519.78 | K158: 2567.17 | L158: 2646.33 | M158: 2488 | N158: 2361.45 | O158: 2312250 | P158: -0.84%
A159: 149 | B159: Chemical | C159: PIIND | D159: 2023-11-30 | E159: 3412.65 | F159: 3403.18 | G159: 3384.47 | H159: 3356.28 | I159: 3337.57 | J159: 3431.37 | K159: 3450.08 | L159: 3478.27 | M159: 3421.9 | N159: 3375 | O159: 2305500 | P159: -2.13%
A160: 150 | B160: Banking | C160: PNB | D160: 2023-11-30 | E160: 73.35 | F160: 73.68 | G160: 72.77 | H160: 72.18 | I160: 71.27 | J160: 74.27 | K160: 75.18 | L160: 75.77 | M160: 74.6 | N160: 73.1 | O160: 271856000 | P160: -0.62%
A161: 151 | B161: Others | C161: POLYCAB | D161: 2023-11-30 | E161: 4951.40 | F161: 4963.30 | G161: 4909.15 | H161: 4866.90 | I161: 4812.75 | J161: 5005.55 | K161: 5059.70 | L161: 5101.95 | M161: 5017.45 | N161: 4921.05 | O161: 2905700 | P161: 0.45%
A162: 152 | B162: Power | C162: POWERGRID | D162: 2023-11-30 | E162: 200.85 | F162: 200.47 | G162: 199.43 | H162: 198.02 | I162: 196.98 | J162: 201.88 | K162: 202.92 | L162: 204.33 | M162: 201.5 | N162: 199.05 | O162: 46206000 | P162: -0.02%
A163: 153 | B163: Media | C163: PVRINOX | D163: 2023-11-30 | E163: 1609.80 | F163: 1608.17 | G163: 1597.63 | H163: 1585.47 | I163: 1574.93 | J163: 1620.33 | K163: 1630.87 | L163: 1643.03 | M163: 1618.7 | N163: 1596 | O163: 6035810 | P163: 0.34%
A164: 154 | B164: Cement | C164: RAMCOCEM | D164: 2023-11-30 | E164: 995.05 | F164: 994.15 | G164: 988.30 | H164: 981.55 | I164: 975.70 | J164: 1000.90 | K164: 1006.75 | L164: 1013.50 | M164: 1000 | N164: 987.4 | O164: 2769300 | P164: -1.72%
A165: 155 | B165: Banking | C165: RBLBANK | D165: 2023-11-30 | E165: 221.95 | F165: 223.25 | G165: 219.90 | H165: 217.85 | I165: 214.50 | J165: 225.30 | K165: 228.65 | L165: 230.70 | M165: 226.6 | N165: 221.2 | O165: 43610000 | P165: 2.11%
A166: 156 | B166: Power | C166: RECLTD | D166: 2023-11-30 | E166: 286.90 | F166: 283.73 | G166: 279.67 | H166: 272.43 | I166: 268.37 | J166: 290.97 | K166: 295.03 | L166: 302.27 | M166: 287.8 | N166: 276.5 | O166: 57580000 | P166: 0.96%
A167: 157 | B167: Oil_Gas | C167: RELIANCE | D167: 2023-11-30 | E167: 2302.60 | F167: 2311.70 | G167: 2288.55 | H167: 2274.50 | I167: 2251.35 | J167: 2325.75 | K167: 2348.90 | L167: 2362.95 | M167: 2334.85 | N167: 2297.65 | O167: 48590000 | P167: -0.36%
A168: 158 | B168: Metals | C168: SAIL | D168: 2023-11-30 | E168: 84.45 | F168: 84.55 | G168: 83.80 | H168: 83.15 | I168: 82.40 | J168: 85.20 | K168: 85.95 | L168: 86.60 | M168: 85.3 | N168: 83.9 | O168: 120904000 | P168: 0.51%
A169: 159 | B169: Banking | C169: SBICARD | D169: 2023-11-30 | E169: 749.10 | F169: 751.22 | G169: 743.98 | H169: 738.87 | I169: 731.63 | J169: 756.33 | K169: 763.57 | L169: 768.68 | M169: 758.45 | N169: 746.1 | O169: 11190400 | P169: -0.77%
A170: 160 | B170: Finance | C170: SBILIFE | D170: 2023-11-30 | E170: 1374.85 | F170: 1358.88 | G170: 1337.42 | H170: 1299.98 | I170: 1278.52 | J170: 1396.32 | K170: 1417.78 | L170: 1455.22 | M170: 1380.35 | N170: 1321.45 | O170: 6183750 | P170: 2.16%
A171: 161 | B171: Banking | C171: SBIN | D171: 2023-11-30 | E171: 567.75 | F171: 568.10 | G171: 564.85 | H171: 561.95 | I171: 558.70 | J171: 571.00 | K171: 574.25 | L171: 577.15 | M171: 571.35 | N171: 565.2 | O171: 88164000 | P171: -3.84%
A172: 162 | B172: Cement | C172: SHREECEM | D172: 2023-11-30 | E172: 25811.30 | F172: 25881.58 | G172: 25629.77 | H172: 25448.23 | I172: 25196.42 | J172: 26063.12 | K172: 26314.93 | L172: 26496.47 | M172: 26133.4 | N172: 25700.05 | O172: 176100 | P172: 0.34%
A173: 163 | B173: Capital_Goods | C173: SIEMENS | D173: 2023-11-30 | E173: 3349.70 | F173: 3347.13 | G173: 3268.57 | H173: 3187.43 | I173: 3108.87 | J173: 3428.27 | K173: 3506.83 | L173: 3587.97 | M173: 3425.7 | N173: 3266 | O173: 2441525 | P173: 12.31%
A174: 164 | B174: Textile | C174: SRF | D174: 2023-11-30 | E174: 2203.40 | F174: 2201.67 | G174: 2181.73 | H174: 2160.07 | I174: 2140.13 | J174: 2223.33 | K174: 2243.27 | L174: 2264.93 | M174: 2221.6 | N174: 2180 | O174: 3679125 | P174: -1.88%
A175: 165 | B175: Finance | C175: SHRIRAMFIN | D175: 2023-11-30 | E175: 1872.45 | F175: 1877.18 | G175: 1858.32 | H175: 1844.18 | I175: 1825.32 | J175: 1891.32 | K175: 1910.18 | L175: 1924.32 | M175: 1896.05 | N175: 1863.05 | O175: 7550400 | P175: 3.70%
A176: 166 | B176: Pharma | C176: SUNPHARMA | D176: 2023-11-30 | E176: 1091.90 | F176: 1096.08 | G176: 1067.82 | H176: 1043.73 | I176: 1015.47 | J176: 1120.17 | K176: 1148.43 | L176: 1172.52 | M176: 1124.35 | N176: 1072 | O176: 21877800 | P176: 2.30%
A177: 167 | B177: Media | C177: SUNTV | D177: 2023-11-30 | E177: 635.60 | F177: 635.83 | G177: 628.77 | H177: 621.93 | I177: 614.87 | J177: 642.67 | K177: 649.73 | L177: 656.57 | M177: 642.9 | N177: 629 | O177: 8461500 | P177: 3.89%
A178: 168 | B178: Pharma | C178: SYNGENE | D178: 2023-11-30 | E178: 684.40 | F178: 687.10 | G178: 679.25 | H178: 674.10 | I178: 666.25 | J178: 692.25 | K178: 700.10 | L178: 705.25 | M178: 694.95 | N178: 681.95 | O178: 4330000 | P178: -0.98%
A179: 169 | B179: Chemical | C179: TATACHEM | D179: 2023-11-30 | E179: 953.05 | F179: 955.77 | G179: 946.93 | H179: 940.82 | I179: 931.98 | J179: 961.88 | K179: 970.72 | L179: 976.83 | M179: 964.6 | N179: 949.65 | O179: 8328100 | P179: 1.12%
A180: 170 | B180: Telecom | C180: TATACOMM | D180: 2023-11-30 | E180: 1669.90 | F180: 1666.00 | G180: 1647.15 | H180: 1624.40 | I180: 1605.55 | J180: 1688.75 | K180: 1707.60 | L180: 1730.35 | M180: 1684.85 | N180: 1643.25 | O180: 6883000 | P180: -1.78%
A181: 171 | B181: FMCG | C181: TATACONSUM | D181: 2023-11-30 | E181: 906.50 | F181: 904.18 | G181: 899.37 | H181: 892.23 | I181: 887.42 | J181: 911.32 | K181: 916.13 | L181: 923.27 | M181: 909 | N181: 897.05 | O181: 9216000 | P181: 2.06%
A182: 172 | B182: Automobile | C182: TATAMOTORS | D182: 2023-11-30 | E182: 632.70 | F182: 635.63 | G182: 628.37 | H182: 624.03 | I182: 616.77 | J182: 639.97 | K182: 647.23 | L182: 651.57 | M182: 642.9 | N182: 631.3 | O182: 69390375 | P182: 2.80%
A183: 173 | B183: Power | C183: TATAPOWER | D183: 2023-11-30 | E183: 240.50 | F183: 240.73 | G183: 238.82 | H183: 237.13 | I183: 235.22 | J183: 242.42 | K183: 244.33 | L183: 246.02 | M183: 242.65 | N183: 239.05 | O183: 86862375 | P183: -0.36%
A184: 174 | B184: Metals | C184: TATASTEEL | D184: 2023-11-30 | E184: 119.40 | F184: 119.60 | G184: 118.60 | H184: 117.80 | I184: 116.80 | J184: 120.40 | K184: 121.40 | L184: 122.20 | M184: 120.6 | N184: 118.8 | O184: 204160000 | P184: 0.75%
A185: 175 | B185: Technology | C185: TCS | D185: 2023-11-30 | E185: 3387.55 | F185: 3387.63 | G185: 3366.32 | H185: 3345.08 | I185: 3323.77 | J185: 3408.87 | K185: 3430.18 | L185: 3451.42 | M185: 3408.95 | N185: 3366.4 | O185: 11012575 | P185: -0.35%
A186: 176 | B186: Technology | C186: TECHM | D186: 2023-11-30 | E186: 1128.25 | F186: 1123.42 | G186: 1115.33 | H186: 1102.42 | I186: 1094.33 | J186: 1136.33 | K186: 1144.42 | L186: 1157.33 | M186: 1131.5 | N186: 1110.5 | O186: 13886400 | P186: -2.75%
A187: 177 | B187: FMCG | C187: TITAN | D187: 2023-11-30 | E187: 3204.05 | F187: 3175.92 | G187: 3133.58 | H187: 3063.12 | I187: 3020.78 | J187: 3246.38 | K187: 3288.72 | L187: 3359.18 | M187: 3218.25 | N187: 3105.45 | O187: 5371475 | P187: 8.22%
A188: 178 | B188: Pharma | C188: TORNTPHARM | D188: 2023-11-30 | E188: 1937.00 | F188: 1938.13 | G188: 1926.87 | H188: 1916.73 | I188: 1905.47 | J188: 1948.27 | K188: 1959.53 | L188: 1969.67 | M188: 1949.4 | N188: 1928 | O188: 1896500 | P188: -0.29%
A189: 179 | B189: Others | C189: TRENT | D189: 2023-11-30 | E189: 2166.60 | F189: 2154.98 | G189: 2137.07 | H189: 2107.53 | I189: 2089.62 | J189: 2184.52 | K189: 2202.43 | L189: 2231.97 | M189: 2172.9 | N189: 2125.45 | O189: 3482800 | P189: -0.24%
A190: 180 | B190: Automobile | C190: TVSMOTOR | D190: 2023-11-30 | E190: 1587.70 | F190: 1605.52 | G190: 1561.38 | H190: 1535.07 | I190: 1490.93 | J190: 1631.83 | K190: 1675.97 | L190: 1702.28 | M190: 1649.65 | N190: 1579.2 | O190: 7212800 | P190: 9.19%
A191: 181 | B191: FMCG | C191: UBL | D191: 2023-11-30 | E191: 1621.80 | F191: 1626.10 | G191: 1612.70 | H191: 1603.60 | I191: 1590.20 | J191: 1635.20 | K191: 1648.60 | L191: 1657.70 | M191: 1639.5 | N191: 1617 | O191: 3002400 | P191: 5.63%
A192: 182 | B192: Cement | C192: ULTRACEMCO | D192: 2023-11-30 | E192: 8460.15 | F192: 8442.22 | G192: 8400.48 | H192: 8340.82 | I192: 8299.08 | J192: 8501.88 | K192: 8543.62 | L192: 8603.28 | M192: 8483.95 | N192: 8382.55 | O192: 1335400 | P192: -2.04%
A193: 183 | B193: Chemical | C193: UPL | D193: 2023-11-30 | E193: 543.65 | F193: 540.60 | G193: 534.55 | H193: 525.45 | I193: 519.40 | J193: 549.70 | K193: 555.75 | L193: 564.85 | M193: 546.65 | N193: 531.5 | O193: 34569600 | P193: -1.73%
A194: 184 | B194: Metals | C194: VEDL | D194: 2023-11-30 | E194: 218.05 | F194: 217.42 | G194: 215.83 | H194: 213.62 | I194: 212.03 | J194: 219.63 | K194: 221.22 | L194: 223.43 | M194: 219 | N194: 215.2 | O194: 68918200 | P194: 0.49%
A195: 185 | B195: Capital_Goods | C195: VOLTAS | D195: 2023-11-30 | E195: 837.25 | F195: 836.98 | G195: 832.92 | H195: 828.58 | I195: 824.52 | J195: 841.32 | K195: 845.38 | L195: 849.72 | M195: 841.05 | N195: 832.65 | O195: 6454800 | P195: -0.32%
A196: 186 | B196: Technology | C196: WIPRO | D196: 2023-11-30 | E196: 384.20 | F196: 383.67 | G196: 381.68 | H196: 379.17 | I196: 377.18 | J196: 386.18 | K196: 388.17 | L196: 390.68 | M196: 385.65 | N196: 381.15 | O196: 46312500 | P196: -0.44%
A197: 187 | B197: Media | C197: ZEEL | D197: 2023-11-30 | E197: 260.35 | F197: 258.47 | G197: 250.63 | H197: 240.92 | I197: 233.08 | J197: 268.18 | K197: 276.02 | L197: 285.73 | M197: 266.3 | N197: 248.75 | O197: 89652000 | P197: -0.12%
A198: 188 | B198: Pharma | C198: ZYDUSLIFE | D198: 2023-11-30 | E198: 577.40 | F198: 579.32 | G198: 573.83 | H198: 570.27 | I198: 564.78 | J198: 582.88 | K198: 588.37 | L198: 591.93 | M198: 584.8 | N198: 575.75 | O198: 6877800 | P198: 2.18%
A199: 189
A200: 190
A201: 191
A202: 192
A203: 193
A204: 194
A221: Pivot Point: This is trigger point for intra day buy/sell based on the price range of the previous day
A222: As per the tool,the trader should take BUY position just above Pivot and keep the stop loss of pivot point and the first target would be Resistance 1(R1)
... 13 more rows

Sheet Cash Intra
M5: Back to Main Page
A6: FOR INTRA DAY TRADING | K6: =Main!B10 -> 2023-11-01
A8: Sr.no | C8: CLOSE RATE | D8: Pivot Point | E8: Supports | H8: Resistances
E9: S1 | F9: S2 | G9: S3 | H9: R1 | I9: R2 | J9: R3 | K9: HIGH | L9: LOW | M9: Total Trade Quanity in Lakhs
A10: 1 | B10: Nifty 50 | C10: 19079.60 | D10: 19123.25 | E10: 19012.80 | F10: 18946.00 | G10: 18835.55 | H10: 19190.05 | I10: 19300.50 | J10: 19367.30 | K10: 19233.70 | L10: 19056.45
A11: 2 | B11: Nifty Bank | C11: 42845.95 | D11: 42999.98 | E11: 42643.12 | F11: 42440.28 | G11: 42083.42 | H11: 43202.82 | I11: 43559.68 | J11: 43762.52 | K11: 43356.85 | L11: 42797.15
A12: 3 | B12: Nifty CPSE | C12: 3882.45 | D12: 3882.43 | E12: 3862.42 | F12: 3842.38 | G12: 3822.37 | H12: 3902.47 | I12: 3922.48 | J12: 3942.52 | K12: 3902.45 | L12: 3862.40
A13: 4 | B13: Nifty Infra | C13: 6095.40 | D13: 6102.02 | E13: 6072.48 | F13: 6049.57 | G13: 6020.03 | H13: 6124.93 | I13: 6154.47 | J13: 6177.38 | K13: 6131.55 | L13: 6079.10
A14: 5 | B14: Nifty IT | C14: 30582.25 | D14: 30582.50 | E14: 30395.80 | F14: 30209.35 | G14: 30022.65 | H14: 30768.95 | I14: 30955.65 | J14: 31142.10 | K14: 30769.20 | L14: 30396.05
A15: 6 | B15: Nifty PSE | C15: 5887.40 | D15: 5873.93 | E15: 5847.62 | F15: 5807.83 | G15: 5781.52 | H15: 5913.72 | I15: 5940.03 | J15: 5979.82 | K15: 5900.25 | L15: 5834.15
A16: 7 | B16: Nifty Midcap 50 | C16: 11068.85 | D16: 11063.78 | E16: 11020.07 | F16: 10971.28 | G16: 10927.57 | H16: 11112.57 | I16: 11156.28 | J16: 11205.07 | K16: 11107.50 | L16: 11015.00
A17: 8 | B17: ABB | C17: 4109.3 | D17: 4087.72 | E17: 4050.43 | F17: 3991.57 | G17: 3954.28 | H17: 4146.58 | I17: 4183.87 | J17: 4242.73 | K17: 4125 | L17: 4028.85 | M17: 2.05697
A18: 9 | B18: ABBOTINDIA | C18: 22413.65 | D18: 22462.85 | E18: 22308.85 | F18: 22204.05 | G18: 22050.05 | H18: 22567.65 | I18: 22721.65 | J18: 22826.45 | K18: 22616.85 | L18: 22358.05 | M18: 0.05232
A19: 10 | B19: ABCAPITAL | C19: 172.45 | D19: 173.00 | E19: 170.70 | F19: 168.95 | G19: 166.65 | H19: 174.75 | I19: 177.05 | J19: 178.80 | K19: 175.3 | L19: 171.25 | M19: 31.73997
A20: 11 | B20: ABFRL | C20: 214.75 | D20: 215.98 | E20: 212.82 | F20: 210.88 | G20: 207.72 | H20: 217.92 | I20: 221.08 | J20: 223.02 | K20: 219.15 | L20: 214.05 | M20: 30.19234
A21: 12 | B21: ACC | C21: 1888.2 | D21: 1891.32 | E21: 1878.93 | F21: 1869.67 | G21: 1857.28 | H21: 1900.58 | I21: 1912.97 | J21: 1922.23 | K21: 1903.7 | L21: 1882.05 | M21: 1.17831
A22: 13 | B22: ADANIENT | C22: 2294.65 | D22: 2296.88 | E22: 2273.77 | F22: 2252.88 | G22: 2229.77 | H22: 2317.77 | I22: 2340.88 | J22: 2361.77 | K22: 2320 | L22: 2276 | M22: 11.5528
A23: 14 | B23: ADANIGREEN | C23: 911.65 | D23: 916.33 | E23: 899.32 | F23: 886.98 | G23: 869.97 | H23: 928.67 | I23: 945.68 | J23: 958.02 | K23: 933.35 | L23: 904 | M23: 7.13136
A24: 15 | B24: ADANIPORTS | C24: 784.75 | D24: 786.12 | E24: 781.13 | F24: 777.52 | G24: 772.53 | H24: 789.73 | I24: 794.72 | J24: 798.33 | K24: 791.1 | L24: 782.5 | M24: 28.2576
A25: 16 | B25: ADANIPOWER | C25: 363.05 | D25: 363.43 | E25: 358.97 | F25: 354.88 | G25: 350.42 | H25: 367.52 | I25: 371.98 | J25: 376.07 | K25: 367.9 | L25: 359.35 | M25: 70.80271
A26: 17 | B26: ALKEM | C26: 3721.85 | D26: 3712.27 | E26: 3689.53 | F26: 3657.22 | G26: 3634.48 | H26: 3744.58 | I26: 3767.32 | J26: 3799.63 | K26: 3735 | L26: 3679.95 | M26: 1.4071
A27: 18 | B27: AMBUJACEM | C27: 424.45 | D27: 424.30 | E27: 421.15 | F27: 417.85 | G27: 414.70 | H27: 427.60 | I27: 430.75 | J27: 434.05 | K27: 427.45 | L27: 421 | M27: 10.78687
A28: 19 | B28: APOLLOHOSP | C28: 4819.9 | D28: 4841.58 | E28: 4783.52 | F28: 4747.13 | G28: 4689.07 | H28: 4877.97 | I28: 4936.03 | J28: 4972.42 | K28: 4899.65 | L28: 4805.2 | M28: 2.7666
A29: 20 | B29: APOLLOTYRE | C29: 381.3 | D29: 379.77 | E29: 376.78 | F29: 372.27 | G29: 369.28 | H29: 384.28 | I29: 387.27 | J29: 391.78 | K29: 382.75 | L29: 375.25 | M29: 10.49364
A30: 21 | B30: ASHOKLEY | C30: 167.7 | D30: 168.25 | E30: 166.45 | F30: 165.20 | G30: 163.40 | H30: 169.50 | I30: 171.30 | J30: 172.55 | K30: 170.05 | L30: 167 | M30: 79.00834
A31: 22 | B31: ASIANPAINT | C31: 2995.7 | D31: 2991.48 | E31: 2970.22 | F31: 2944.73 | G31: 2923.47 | H31: 3016.97 | I31: 3038.23 | J31: 3063.72 | K31: 3012.75 | L31: 2966 | M31: 11.52306
A32: 23 | B32: ASTRAL | C32: 1850.75 | D32: 1842.30 | E32: 1829.60 | F32: 1808.45 | G32: 1795.75 | H32: 1863.45 | I32: 1876.15 | J32: 1897.30 | K32: 1855 | L32: 1821.15 | M32: 7.92115
A33: 24 | B33: ATGL | C33: 564.3 | D33: 566.58 | E33: 557.62 | F33: 550.93 | G33: 541.97 | H33: 573.27 | I33: 582.23 | J33: 588.92 | K33: 575.55 | L33: 559.9 | M33: 4.65372
A34: 25 | B34: AUBANK | C34: 669.1 | D34: 672.55 | E34: 659.40 | F34: 649.70 | G34: 636.55 | H34: 682.25 | I34: 695.40 | J34: 705.10 | K34: 685.7 | L34: 662.85 | M34: 25.98527
A35: 26 | B35: AUROPHARMA | C35: 849.5 | D35: 855.53 | E35: 840.82 | F35: 832.13 | G35: 817.42 | H35: 864.22 | I35: 878.93 | J35: 887.62 | K35: 870.25 | L35: 846.85 | M35: 10.02465
A36: 27 | B36: AWL | C36: 326.6 | D36: 327.88 | E36: 323.82 | F36: 321.03 | G36: 316.97 | H36: 330.67 | I36: 334.73 | J36: 337.52 | K36: 331.95 | L36: 325.1 | M36: 5.28865
A37: 28 | B37: AXISBANK | C37: 981.85 | D37: 985.95 | E37: 973.90 | F37: 965.95 | G37: 953.90 | H37: 993.90 | I37: 1005.95 | J37: 1013.90 | K37: 998 | L37: 978 | M37: 78.16805
A38: 29 | B38: BAJAJ-AUTO | C38: 5314.05 | D38: 5324.27 | E38: 5282.38 | F38: 5250.72 | G38: 5208.83 | H38: 5355.93 | I38: 5397.82 | J38: 5429.48 | K38: 5366.15 | L38: 5292.6 | M38: 4.00987
A39: 30 | B39: BAJAJFINSV | C39: 1569.55 | D39: 1567.80 | E39: 1554.15 | F39: 1538.75 | G39: 1525.10 | H39: 1583.20 | I39: 1596.85 | J39: 1612.25 | K39: 1581.45 | L39: 1552.4 | M39: 15.92788
A40: 31 | B40: BAJAJHLDNG | C40: 6926.45 | D40: 6893.97 | E40: 6838.03 | F40: 6749.62 | G40: 6693.68 | H40: 6982.38 | I40: 7038.32 | J40: 7126.73 | K40: 6949.9 | L40: 6805.55 | M40: 0.19889
A41: 32 | B41: BAJFINANCE | C41: 7492.65 | D41: 7510.95 | E41: 7442.20 | F41: 7391.75 | G41: 7323.00 | H41: 7561.40 | I41: 7630.15 | J41: 7680.60 | K41: 7579.7 | L41: 7460.5 | M41: 7.4941
A42: 33 | B42: BALKRISIND | C42: 2553.8 | D42: 2564.90 | E42: 2533.95 | F42: 2514.10 | G42: 2483.15 | H42: 2584.75 | I42: 2615.70 | J42: 2635.55 | K42: 2595.85 | L42: 2545.05 | M42: 1.90106
A43: 34 | B43: BANDHANBNK | C43: 214.15 | D43: 215.45 | E43: 212.40 | F43: 210.65 | G43: 207.60 | H43: 217.20 | I43: 220.25 | J43: 222.00 | K43: 218.5 | L43: 213.7 | M43: 45.47584
A44: 35 | B44: BANKBARODA | C44: 196.2 | D44: 197.20 | E44: 194.65 | F44: 193.10 | G44: 190.55 | H44: 198.75 | I44: 201.30 | J44: 202.85 | K44: 199.75 | L44: 195.65 | M44: 90.74535
A45: 36 | B45: BANKINDIA | C45: 95.85 | D45: 96.78 | E45: 94.47 | F45: 93.08 | G45: 90.77 | H45: 98.17 | I45: 100.48 | J45: 101.87 | K45: 99.1 | L45: 95.4 | M45: 132.79697
A46: 37 | B46: BATAINDIA | C46: 1566.05 | D46: 1571.17 | E46: 1555.78 | F46: 1545.52 | G46: 1530.13 | H46: 1581.43 | I46: 1596.82 | J46: 1607.08 | K46: 1586.55 | L46: 1560.9 | M46: 0.65568
A47: 38 | B47: BEL | C47: 133.25 | D47: 132.55 | E47: 131.45 | F47: 129.65 | G47: 128.55 | H47: 134.35 | I47: 135.45 | J47: 137.25 | K47: 133.65 | L47: 130.75 | M47: 80.98744
A48: 39 | B48: BERGEPAINT | C48: 558.6 | D48: 556.62 | E48: 550.23 | F48: 541.87 | G48: 535.48 | H48: 564.98 | I48: 571.37 | J48: 579.73 | K48: 563 | L48: 548.25 | M48: 13.54517
A49: 40 | B49: BHARATFORG | C49: 1019.35 | D49: 1024.55 | E49: 1009.80 | F49: 1000.25 | G49: 985.50 | H49: 1034.10 | I49: 1048.85 | J49: 1058.40 | K49: 1039.3 | L49: 1015 | M49: 3.46106
A50: 41 | B50: BHARTIARTL | C50: 914.4 | D50: 916.78 | E50: 910.02 | F50: 905.63 | G50: 898.87 | H50: 921.17 | I50: 927.93 | J50: 932.32 | K50: 923.55 | L50: 912.4 | M50: 56.97563
A51: 42 | B51: BHEL | C51: 120.85 | D51: 120.92 | E51: 119.43 | F51: 118.02 | G51: 116.53 | H51: 122.33 | I51: 123.82 | J51: 125.23 | K51: 122.4 | L51: 119.5 | M51: 135.04849
A52: 43 | B52: BIOCON | C52: 219.65 | D52: 220.20 | E52: 216.95 | F52: 214.25 | G52: 211.00 | H52: 222.90 | I52: 226.15 | J52: 228.85 | K52: 223.45 | L52: 217.5 | M52: 19.65042
A53: 44 | B53: BOSCHLTD | C53: 19450.95 | D53: 19474.10 | E53: 19339.35 | F53: 19227.75 | G53: 19093.00 | H53: 19585.70 | I53: 19720.45 | J53: 19832.05 | K53: 19608.85 | L53: 19362.5 | M53: 0.0837
A54: 45 | B54: BPCL | C54: 349.25 | D54: 349.28 | E54: 344.62 | F54: 339.98 | G54: 335.32 | H54: 353.92 | I54: 358.58 | J54: 363.22 | K54: 353.95 | L54: 344.65 | M54: 53.36593
A55: 46 | B55: BRITANNIA | C55: 4426.5 | D55: 4436.05 | E55: 4392.35 | F55: 4358.20 | G55: 4314.50 | H55: 4470.20 | I55: 4513.90 | J55: 4548.05 | K55: 4479.75 | L55: 4401.9 | M55: 5.04625
A56: 47 | B56: CANBK | C56: 384.35 | D56: 386.03 | E56: 381.42 | F56: 378.48 | G56: 373.87 | H56: 388.97 | I56: 393.58 | J56: 396.52 | K56: 390.65 | L56: 383.1 | M56: 98.87787
A57: 48 | B57: CGPOWER | C57: 390.1 | D57: 392.00 | E57: 386.50 | F57: 382.90 | G57: 377.40 | H57: 395.60 | I57: 401.10 | J57: 404.70 | K57: 397.5 | L57: 388.4 | M57: 11.75211
A58: 49 | B58: CHOLAFIN | C58: 1137.3 | D58: 1143.02 | E58: 1120.48 | F58: 1103.67 | G58: 1081.13 | H58: 1159.83 | I58: 1182.37 | J58: 1199.18 | K58: 1165.55 | L58: 1126.2 | M58: 15.0657
A59: 50 | B59: CIPLA | C59: 1200 | D59: 1199.07 | E59: 1192.03 | F59: 1184.07 | G59: 1177.03 | H59: 1207.03 | I59: 1214.07 | J59: 1222.03 | K59: 1206.1 | L59: 1191.1 | M59: 17.20955
A60: 51 | B60: COALINDIA | C60: 314.25 | D60: 313.93 | E60: 311.07 | F60: 307.88 | G60: 305.02 | H60: 317.12 | I60: 319.98 | J60: 323.17 | K60: 316.8 | L60: 310.75 | M60: 74.46586
A61: 52 | B61: COFORGE | C61: 4984.25 | D61: 4988.97 | E61: 4947.98 | F61: 4911.72 | G61: 4870.73 | H61: 5025.23 | I61: 5066.22 | J61: 5102.48 | K61: 5029.95 | L61: 4952.7 | M61: 2.24233
A62: 53 | B62: COLPAL | C62: 2113.8 | D62: 2097.08 | E62: 2066.72 | F62: 2019.63 | G62: 1989.27 | H62: 2144.17 | I62: 2174.53 | J62: 2221.62 | K62: 2127.45 | L62: 2050 | M62: 6.38945
A63: 54 | B63: CONCOR | C63: 688.2 | D63: 688.73 | E63: 682.87 | F63: 677.53 | G63: 671.67 | H63: 694.07 | I63: 699.93 | J63: 705.27 | K63: 694.6 | L63: 683.4 | M63: 5.68594
A64: 55 | B64: COROMANDEL | C64: 1043 | D64: 1045.97 | E64: 1031.93 | F64: 1020.87 | G64: 1006.83 | H64: 1057.03 | I64: 1071.07 | J64: 1082.13 | K64: 1060 | L64: 1034.9 | M64: 3.63055
A65: 56 | B65: CROMPTON | C65: 282 | D65: 282.25 | E65: 279.25 | F65: 276.50 | G65: 273.50 | H65: 285.00 | I65: 288.00 | J65: 290.75 | K65: 285.25 | L65: 279.5 | M65: 24.71218
A66: 57 | B66: CUMMINSIND | C66: 1676.55 | D66: 1677.05 | E66: 1665.10 | F66: 1653.65 | G66: 1641.70 | H66: 1688.50 | I66: 1700.45 | J66: 1711.90 | K66: 1689 | L66: 1665.6 | M66: 4.59147
A67: 58 | B67: DABUR | C67: 528.9 | D67: 527.40 | E67: 523.75 | F67: 518.60 | G67: 514.95 | H67: 532.55 | I67: 536.20 | J67: 541.35 | K67: 531.05 | L67: 522.25 | M67: 16.8712
A68: 59 | B68: DALBHARAT | C68: 2104.25 | D68: 2088.03 | E68: 2066.27 | F68: 2028.28 | G68: 2006.52 | H68: 2126.02 | I68: 2147.78 | J68: 2185.77 | K68: 2109.8 | L68: 2050.05 | M68: 4.8122
A69: 60 | B69: DEEPAKNTR | C69: 1986.75 | D69: 1994.55 | E69: 1975.20 | F69: 1963.65 | G69: 1944.30 | H69: 2006.10 | I69: 2025.45 | J69: 2037.00 | K69: 2013.9 | L69: 1983 | M69: 1.03168
A70: 61 | B70: DELHIVERY | C70: 413.35 | D70: 418.03 | E70: 405.57 | F70: 397.78 | G70: 385.32 | H70: 425.82 | I70: 438.28 | J70: 446.07 | K70: 430.5 | L70: 410.25 | M70: 8.9409
A71: 62 | B71: DEVYANI | C71: 179.8 | D71: 181.08 | E71: 177.52 | F71: 175.23 | G71: 171.67 | H71: 183.37 | I71: 186.93 | J71: 189.22 | K71: 184.65 | L71: 178.8 | M71: 14.9411
A72: 63 | B72: DIVISLAB | C72: 3388.35 | D72: 3394.53 | E72: 3366.12 | F72: 3343.88 | G72: 3315.47 | H72: 3416.77 | I72: 3445.18 | J72: 3467.42 | K72: 3422.95 | L72: 3372.3 | M72: 2.20543
A73: 64 | B73: DIXON | C73: 5101.6 | D73: 5144.45 | E73: 5046.50 | F73: 4991.40 | G73: 4893.45 | H73: 5199.55 | I73: 5297.50 | J73: 5352.60 | K73: 5242.4 | L73: 5089.35 | M73: 4.87039
A74: 65 | B74: DLF | C74: 563.5 | D74: 563.92 | E74: 557.28 | F74: 551.07 | G74: 544.43 | H74: 570.13 | I74: 576.77 | J74: 582.98 | K74: 570.55 | L74: 557.7 | M74: 107.12514
A75: 66 | B75: DMART | C75: 3633.4 | D75: 3641.55 | E75: 3611.85 | F75: 3590.30 | G75: 3560.60 | H75: 3663.10 | I75: 3692.80 | J75: 3714.35 | K75: 3671.25 | L75: 3620 | M75: 8.20386
A76: 67 | B76: DRREDDY | C76: 5367.55 | D76: 5387.20 | E76: 5333.45 | F76: 5299.35 | G76: 5245.60 | H76: 5421.30 | I76: 5475.05 | J76: 5509.15 | K76: 5440.95 | L76: 5353.1 | M76: 3.76814
A77: 68 | B77: EICHERMOT | C77: 3295.55 | D77: 3316.58 | E77: 3266.17 | F77: 3236.78 | G77: 3186.37 | H77: 3345.97 | I77: 3396.38 | J77: 3425.77 | K77: 3367 | L77: 3287.2 | M77: 4.09346
A78: 69 | B78: ESCORTS | C78: 3132.5 | D78: 3151.22 | E78: 3107.28 | F78: 3082.07 | G78: 3038.13 | H78: 3176.43 | I78: 3220.37 | J78: 3245.58 | K78: 3195.15 | L78: 3126 | M78: 1.35729
A79: 70 | B79: FEDERALBNK | C79: 140.65 | D79: 140.70 | E79: 139.65 | F79: 138.65 | G79: 137.60 | H79: 141.70 | I79: 142.75 | J79: 143.75 | K79: 141.75 | L79: 139.7 | M79: 66.92752
A80: 71 | B80: FLUOROCHEM | C80: 2773.6 | D80: 2763.53 | E80: 2728.07 | F80: 2682.53 | G80: 2647.07 | H80: 2809.07 | I80: 2844.53 | J80: 2890.07 | K80: 2799 | L80: 2718 | M80: 0.65786
A81: 72 | B81: FORTIS | C81: 322.95 | D81: 323.90 | E81: 319.20 | F81: 315.45 | G81: 310.75 | H81: 327.65 | I81: 332.35 | J81: 336.10 | K81: 328.6 | L81: 320.15 | M81: 3.74266
A82: 73 | B82: GAIL | C82: 119.5 | D82: 119.02 | E82: 116.63 | F82: 113.77 | G82: 111.38 | H82: 121.88 | I82: 124.27 | J82: 127.13 | K82: 121.4 | L82: 116.15 | M82: 332.12394
A83: 74 | B83: GLAND | C83: 1546 | D83: 1548.73 | E83: 1532.72 | F83: 1519.43 | G83: 1503.42 | H83: 1562.02 | I83: 1578.03 | J83: 1591.32 | K83: 1564.75 | L83: 1535.45 | M83: 1.27442
A84: 75 | B84: GODREJCP | C84: 991.85 | D84: 989.53 | E84: 981.27 | F84: 970.68 | G84: 962.42 | H84: 1000.12 | I84: 1008.38 | J84: 1018.97 | K84: 997.8 | L84: 978.95 | M84: 5.02123
A85: 76 | B85: GODREJPROP | C85: 1659.65 | D85: 1654.22 | E85: 1640.43 | F85: 1621.22 | G85: 1607.43 | H85: 1673.43 | I85: 1687.22 | J85: 1706.43 | K85: 1668 | L85: 1635 | M85: 6.16003
A86: 77 | B86: GRASIM | C86: 1886.7 | D86: 1881.22 | E86: 1870.48 | F86: 1854.27 | G86: 1843.53 | H86: 1897.43 | I86: 1908.17 | J86: 1924.38 | K86: 1891.95 | L86: 1865 | M86: 2.90022
A87: 78 | B87: GUJGASLTD | C87: 409.05 | D87: 408.82 | E87: 404.33 | F87: 399.62 | G87: 395.13 | H87: 413.53 | I87: 418.02 | J87: 422.73 | K87: 413.3 | L87: 404.1 | M87: 8.69665
A88: 79 | B88: HAL | C88: 1823.05 | D88: 1829.90 | E88: 1811.80 | F88: 1800.55 | G88: 1782.45 | H88: 1841.15 | I88: 1859.25 | J88: 1870.50 | K88: 1848 | L88: 1818.65 | M88: 6.91198
A89: 80 | B89: HAVELLS | C89: 1246.15 | D89: 1256.50 | E89: 1233.35 | F89: 1220.55 | G89: 1197.40 | H89: 1269.30 | I89: 1292.45 | J89: 1305.25 | K89: 1279.65 | L89: 1243.7 | M89: 11.91513
A90: 81 | B90: HCLTECH | C90: 1276 | D90: 1270.85 | E90: 1261.85 | F90: 1247.70 | G90: 1238.70 | H90: 1285.00 | I90: 1294.00 | J90: 1308.15 | K90: 1279.85 | L90: 1256.7 | M90: 25.2587
A91: 82 | B91: HDFCAMC | C91: 2734 | D91: 2737.30 | E91: 2705.60 | F91: 2677.20 | G91: 2645.50 | H91: 2765.70 | I91: 2797.40 | J91: 2825.80 | K91: 2769 | L91: 2708.9 | M91: 7.46578
A92: 83 | B92: HDFCBANK | C92: 1476.5 | D92: 1484.83 | E92: 1465.67 | F92: 1454.83 | G92: 1435.67 | H92: 1495.67 | I92: 1514.83 | J92: 1525.67 | K92: 1504 | L92: 1474 | M92: 163.17412
A93: 84 | B93: HDFCLIFE | C93: 618.35 | D93: 614.60 | E93: 608.20 | F93: 598.05 | G93: 591.65 | H93: 624.75 | I93: 631.15 | J93: 641.30 | K93: 621 | L93: 604.45 | M93: 26.61284
A94: 85 | B94: HEROMOTOCO | C94: 3088.35 | D94: 3102.70 | E94: 3065.80 | F94: 3043.25 | G94: 3006.35 | H94: 3125.25 | I94: 3162.15 | J94: 3184.70 | K94: 3139.6 | L94: 3080.15 | M94: 2.07132
A95: 86 | B95: HINDALCO | C95: 459.5 | D95: 459.25 | E95: 453.50 | F95: 447.50 | G95: 441.75 | H95: 465.25 | I95: 471.00 | J95: 477.00 | K95: 465 | L95: 453.25 | M95: 52.3606
A96: 87 | B96: HINDPETRO | C96: 247.7 | D96: 247.42 | E96: 245.48 | F96: 243.27 | G96: 241.33 | H96: 249.63 | I96: 251.57 | J96: 253.78 | K96: 249.35 | L96: 245.2 | M96: 20.72389
A97: 88 | B97: HINDUNILVR | C97: 2484 | D97: 2481.27 | E97: 2470.53 | F97: 2457.07 | G97: 2446.33 | H97: 2494.73 | I97: 2505.47 | J97: 2518.93 | K97: 2492 | L97: 2467.8 | M97: 9.20414
A98: 89 | B98: HINDZINC | C98: 295.55 | D98: 295.23 | E98: 293.42 | F98: 291.28 | G98: 289.47 | H98: 297.37 | I98: 299.18 | J98: 301.32 | K98: 297.05 | L98: 293.1 | M98: 2.28054
A99: 90 | B99: HONAUT | C99: 35997.5 | D99: 36050.65 | E99: 35866.90 | F99: 35736.30 | G99: 35552.55 | H99: 36181.25 | I99: 36365.00 | J99: 36495.60 | K99: 36234.4 | L99: 35920.05 | M99: 0.02404
A100: 91 | B100: ICICIBANK | C100: 915.35 | D100: 920.15 | E100: 909.30 | F100: 903.25 | G100: 892.40 | H100: 926.20 | I100: 937.05 | J100: 943.10 | K100: 931 | L100: 914.1 | M100: 172.11107
A101: 92 | B101: ICICIGI | C101: 1373.8 | D101: 1370.20 | E101: 1355.60 | F101: 1337.40 | G101: 1322.80 | H101: 1388.40 | I101: 1403.00 | J101: 1421.20 | K101: 1384.8 | L101: 1352 | M101: 5.19546
A102: 93 | B102: ICICIPRULI | C102: 525.25 | D102: 525.37 | E102: 520.78 | F102: 516.32 | G102: 511.73 | H102: 529.83 | I102: 534.42 | J102: 538.88 | K102: 529.95 | L102: 520.9 | M102: 13.75208
A103: 94 | B103: IDEA | C103: 11.85 | D103: 11.90 | E103: 11.60 | F103: 11.35 | G103: 11.05 | H103: 12.15 | I103: 12.45 | J103: 12.70 | K103: 12.2 | L103: 11.65 | M103: 3210.2939
A104: 95 | B104: IDFCFIRSTB | C104: 82.7 | D104: 83.07 | E104: 81.83 | F104: 80.97 | G104: 79.73 | H104: 83.93 | I104: 85.17 | J104: 86.03 | K104: 84.3 | L104: 82.2 | M104: 294.93792
A105: 96 | B105: IGL | C105: 382.35 | D105: 383.77 | E105: 380.23 | F105: 378.12 | G105: 374.58 | H105: 385.88 | I105: 389.42 | J105: 391.53 | K105: 387.3 | L105: 381.65 | M105: 18.01855
A106: 97 | B106: INDHOTEL | C106: 383.4 | D106: 383.13 | E106: 380.37 | F106: 377.33 | G106: 374.57 | H106: 386.17 | I106: 388.93 | J106: 391.97 | K106: 385.9 | L106: 380.1 | M106: 23.00685
A107: 98 | B107: INDIANB | C107: 420.05 | D107: 418.57 | E107: 414.63 | F107: 409.22 | G107: 405.28 | H107: 423.98 | I107: 427.92 | J107: 433.33 | K107: 422.5 | L107: 413.15 | M107: 12.02664
A108: 99 | B108: INDIGO | C108: 2453.85 | D108: 2473.12 | E108: 2426.23 | F108: 2398.62 | G108: 2351.73 | H108: 2500.73 | I108: 2547.62 | J108: 2575.23 | K108: 2520 | L108: 2445.5 | M108: 3.5995
A109: 100 | B109: INDUSINDBK | C109: 1441.3 | D109: 1445.95 | E109: 1431.90 | F109: 1422.50 | G109: 1408.45 | H109: 1455.35 | I109: 1469.40 | J109: 1478.80 | K109: 1460 | L109: 1436.55 | M109: 14.54345
A110: 101 | B110: INDUSTOWER | C110: 172.4 | D110: 172.68 | E110: 169.92 | F110: 167.43 | G110: 164.67 | H110: 175.17 | I110: 177.93 | J110: 180.42 | K110: 175.45 | L110: 170.2 | M110: 60.05792
A111: 102 | B111: INFY | C111: 1368.4 | D111: 1370.85 | E111: 1360.55 | F111: 1352.70 | G111: 1342.40 | H111: 1378.70 | I111: 1389.00 | J111: 1396.85 | K111: 1381.15 | L111: 1363 | M111: 34.51595
A112: 103 | B112: IOC | C112: 89.7 | D112: 89.12 | E112: 88.23 | F112: 86.77 | G112: 85.88 | H112: 90.58 | I112: 91.47 | J112: 92.93 | K112: 90 | L112: 87.65 | M112: 290.25469
A113: 104 | B113: IPCALAB | C113: 983.75 | D113: 988.47 | E113: 977.23 | F113: 970.72 | G113: 959.48 | H113: 994.98 | I113: 1006.22 | J113: 1012.73 | K113: 999.7 | L113: 981.95 | M113: 3.92014
A114: 105 | B114: IRCTC | C114: 665.35 | D114: 665.73 | E114: 662.57 | F114: 659.78 | G114: 656.62 | H114: 668.52 | I114: 671.68 | J114: 674.47 | K114: 668.9 | L114: 662.95 | M114: 6.03228
A115: 106 | B115: IRFC | C115: 72.6 | D115: 73.03 | E115: 71.67 | F115: 70.73 | G115: 69.37 | H115: 73.97 | I115: 75.33 | J115: 76.27 | K115: 74.4 | L115: 72.1 | M115: 446.1472
A116: 107 | B116: ITC | C116: 428.4 | D116: 429.88 | E116: 426.42 | F116: 424.43 | G116: 420.97 | H116: 431.87 | I116: 435.33 | J116: 437.32 | K116: 433.35 | L116: 427.9 | M116: 86.20154
A117: 108 | B117: JINDALSTEL | C117: 633.8 | D117: 636.88 | E117: 625.42 | F117: 617.03 | G117: 605.57 | H117: 645.27 | I117: 656.73 | J117: 665.12 | K117: 648.35 | L117: 628.5 | M117: 20.27458
A118: 109 | B118: JSWENERGY | C118: 385.8 | D118: 389.75 | E118: 379.05 | F118: 372.30 | G118: 361.60 | H118: 396.50 | I118: 407.20 | J118: 413.95 | K118: 400.45 | L118: 383 | M118: 23.4634
A119: 110 | B119: JSWSTEEL | C119: 736.35 | D119: 733.97 | E119: 729.38 | F119: 722.42 | G119: 717.83 | H119: 740.93 | I119: 745.52 | J119: 752.48 | K119: 738.55 | L119: 727 | M119: 13.63728
A120: 111 | B120: JUBLFOOD | C120: 500.95 | D120: 499.25 | E120: 493.70 | F120: 486.45 | G120: 480.90 | H120: 506.50 | I120: 512.05 | J120: 519.30 | K120: 504.8 | L120: 492 | M120: 13.51546
A121: 112 | B121: KOTAKBANK | C121: 1739.4 | D121: 1734.42 | E121: 1721.83 | F121: 1704.27 | G121: 1691.68 | H121: 1751.98 | I121: 1764.57 | J121: 1782.13 | K121: 1747 | L121: 1716.85 | M121: 48.39336
A122: 113 | B122: L&TFH | C122: 133 | D122: 132.88 | E122: 131.32 | F122: 129.63 | G122: 128.07 | H122: 134.57 | I122: 136.13 | J122: 137.82 | K122: 134.45 | L122: 131.2 | M122: 63.54129
A123: 114 | B123: LALPATHLAB | C123: 2419.2 | D123: 2406.12 | E123: 2383.08 | F123: 2346.97 | G123: 2323.93 | H123: 2442.23 | I123: 2465.27 | J123: 2501.38 | K123: 2429.15 | L123: 2370 | M123: 1.87457
A124: 115 | B124: LAURUSLABS | C124: 361.75 | D124: 362.37 | E124: 359.83 | F124: 357.92 | G124: 355.38 | H124: 364.28 | I124: 366.82 | J124: 368.73 | K124: 364.9 | L124: 360.45 | M124: 7.06396
A125: 116 | B125: LICHSGFIN | C125: 459.2 | D125: 456.27 | E125: 450.88 | F125: 442.57 | G125: 437.18 | H125: 464.58 | I125: 469.97 | J125: 478.28 | K125: 461.65 | L125: 447.95 | M125: 22.48693
A126: 117 | B126: LICI | C126: 602.25 | D126: 604.00 | E126: 598.45 | F126: 594.65 | G126: 589.10 | H126: 607.80 | I126: 613.35 | J126: 617.15 | K126: 609.55 | L126: 600.2 | M126: 5.36471
A127: 118 | B127: LT | C127: 2929.05 | D127: 2929.52 | E127: 2907.48 | F127: 2885.92 | G127: 2863.88 | H127: 2951.08 | I127: 2973.12 | J127: 2994.68 | K127: 2951.55 | L127: 2907.95 | M127: 15.56467
A128: 119 | B128: LTIM | C128: 5060.4 | D128: 5091.83 | E128: 5019.67 | F128: 4978.93 | G128: 4906.77 | H128: 5132.57 | I128: 5204.73 | J128: 5245.47 | K128: 5164 | L128: 5051.1 | M128: 2.59121
A129: 120 | B129: LTTS | C129: 4186.7 | D129: 4187.95 | E129: 4156.20 | F129: 4125.70 | G129: 4093.95 | H129: 4218.45 | I129: 4250.20 | J129: 4280.70 | K129: 4219.7 | L129: 4157.45 | M129: 0.76236
A130: 121 | B130: LUPIN | C130: 1128.15 | D130: 1134.07 | E130: 1117.08 | F130: 1106.02 | G130: 1089.03 | H130: 1145.13 | I130: 1162.12 | J130: 1173.18 | K130: 1151.05 | L130: 1123 | M130: 8.22793
A131: 122 | B131: M&M | C131: 1458.6 | D131: 1470.48 | E131: 1443.67 | F131: 1428.73 | G131: 1401.92 | H131: 1485.42 | I131: 1512.23 | J131: 1527.17 | K131: 1497.3 | L131: 1455.55 | M131: 25.55737
A132: 123 | B132: M&MFIN | C132: 245.35 | D132: 246.85 | E132: 241.80 | F132: 238.25 | G132: 233.20 | H132: 250.40 | I132: 255.45 | J132: 259.00 | K132: 251.9 | L132: 243.3 | M132: 99.06043
A133: 124 | B133: MANKIND | C133: 1741.55 | D133: 1749.42 | E133: 1725.83 | F133: 1710.12 | G133: 1686.53 | H133: 1765.13 | I133: 1788.72 | J133: 1804.43 | K133: 1773 | L133: 1733.7 | M133: 2.07461
A134: 125 | B134: MARICO | C134: 536.55 | D134: 533.37 | E134: 525.03 | F134: 513.52 | G134: 505.18 | H134: 544.88 | I134: 553.22 | J134: 564.73 | K134: 541.7 | L134: 521.85 | M134: 25.33458
A135: 126 | B135: MARUTI | C135: 10392.3 | D135: 10401.10 | E135: 10312.20 | F135: 10232.10 | G135: 10143.20 | H135: 10481.20 | I135: 10570.10 | J135: 10650.20 | K135: 10490 | L135: 10321 | M135: 4.39996
A136: 127 | B136: MAXHEALTH | C136: 573.75 | D136: 579.43 | E136: 565.32 | F136: 556.88 | G136: 542.77 | H136: 587.87 | I136: 601.98 | J136: 610.42 | K136: 593.55 | L136: 571 | M136: 8.88784
A137: 128 | B137: MCDOWELL-N | C137: 1032.2 | D137: 1030.08 | E137: 1020.52 | F137: 1008.83 | G137: 999.27 | H137: 1041.77 | I137: 1051.33 | J137: 1063.02 | K137: 1039.65 | L137: 1018.4 | M137: 4.69941
A138: 129 | B138: MFSL | C138: 914.1 | D138: 919.65 | E138: 905.90 | F138: 897.70 | G138: 883.95 | H138: 927.85 | I138: 941.60 | J138: 949.80 | K138: 933.4 | L138: 911.45 | M138: 3.11956
A139: 130 | B139: MOTHERSON | C139: 91.95 | D139: 92.38 | E139: 91.27 | F139: 90.58 | G139: 89.47 | H139: 93.07 | I139: 94.18 | J139: 94.87 | K139: 93.5 | L139: 91.7 | M139: 48.18193
A140: 131 | B140: MPHASIS | C140: 2123.4 | D140: 2135.67 | E140: 2105.28 | F140: 2087.17 | G140: 2056.78 | H140: 2153.78 | I140: 2184.17 | J140: 2202.28 | K140: 2166.05 | L140: 2117.55 | M140: 1.01591
A141: 132 | B141: MRF | C141: 108297.8 | D141: 108568.28 | E141: 107636.62 | F141: 106975.43 | G141: 106043.77 | H141: 109229.47 | I141: 110161.13 | J141: 110822.32 | K141: 109499.95 | L141: 107907.1 | M141: 0.08331
A142: 133 | B142: MSUMI | C142: 59.95 | D142: 60.22 | E142: 59.13 | F142: 58.32 | G142: 57.23 | H142: 61.03 | I142: 62.12 | J142: 62.93 | K142: 61.3 | L142: 59.4 | M142: 31.5992
A143: 134 | B143: MUTHOOTFIN | C143: 1298.7 | D143: 1307.85 | E143: 1276.35 | F143: 1254.00 | G143: 1222.50 | H143: 1330.20 | I143: 1361.70 | J143: 1384.05 | K143: 1339.35 | L143: 1285.5 | M143: 6.60662
A144: 135 | B144: NAUKRI | C144: 4084.25 | D144: 4092.77 | E144: 4056.53 | F144: 4028.82 | G144: 3992.58 | H144: 4120.48 | I144: 4156.72 | J144: 4184.43 | K144: 4129 | L144: 4065.05 | M144: 2.35896
A145: 136 | B145: NAVINFLUOR | C145: 3438.25 | D145: 3447.75 | E145: 3405.50 | F145: 3372.75 | G145: 3330.50 | H145: 3480.50 | I145: 3522.75 | J145: 3555.50 | K145: 3490 | L145: 3415 | M145: 2.08068
A146: 137 | B146: NESTLEIND | C146: 24234.8 | D146: 24228.95 | E146: 24127.90 | F146: 24021.00 | G146: 23919.95 | H146: 24335.85 | I146: 24436.90 | J146: 24543.80 | K146: 24330 | L146: 24122.05 | M146: 0.51639
A147: 138 | B147: NHPC | C147: 50.2 | D147: 50.48 | E147: 49.62 | F147: 49.03 | G147: 48.17 | H147: 51.07 | I147: 51.93 | J147: 52.52 | K147: 51.35 | L147: 49.9 | M147: 101.12337
A148: 139 | B148: NMDC | C148: 154.2 | D148: 155.15 | E148: 152.65 | F148: 151.10 | G148: 148.60 | H148: 156.70 | I148: 159.20 | J148: 160.75 | K148: 157.65 | L148: 153.6 | M148: 86.01461
A149: 140 | B149: NTPC | C149: 235.8 | D149: 235.52 | E149: 233.83 | F149: 231.87 | G149: 230.18 | H149: 237.48 | I149: 239.17 | J149: 241.13 | K149: 237.2 | L149: 233.55 | M149: 65.83581
A150: 141 | B150: NYKAA | C150: 139.35 | D150: 139.65 | E150: 137.80 | F150: 136.25 | G150: 134.40 | H150: 141.20 | I150: 143.05 | J150: 144.60 | K150: 141.5 | L150: 138.1 | M150: 9.40309
A151: 142 | B151: OBEROIRLTY | C151: 1137.85 | D151: 1132.48 | E151: 1122.87 | F151: 1107.88 | G151: 1098.27 | H151: 1147.47 | I151: 1157.08 | J151: 1172.07 | K151: 1142.1 | L151: 1117.5 | M151: 3.95162
A152: 143 | B152: OFSS | C152: 3877.65 | D152: 3889.15 | E152: 3857.75 | F152: 3837.85 | G152: 3806.45 | H152: 3909.05 | I152: 3940.45 | J152: 3960.35 | K152: 3920.55 | L152: 3869.25 | M152: 0.26556
A153: 144 | B153: OIL | C153: 298.85 | D153: 300.83 | E153: 294.67 | F153: 290.48 | G153: 284.32 | H153: 305.02 | I153: 311.18 | J153: 315.37 | K153: 307 | L153: 296.65 | M153: 8.30839
A154: 145 | B154: ONGC | C154: 186.15 | D154: 186.72 | E154: 183.63 | F154: 181.12 | G154: 178.03 | H154: 189.23 | I154: 192.32 | J154: 194.83 | K154: 189.8 | L154: 184.2 | M154: 94.04675
A155: 146 | B155: PAGEIND | C155: 37816.4 | D155: 37780.57 | E155: 37463.18 | F155: 37109.97 | G155: 36792.58 | H155: 38133.78 | I155: 38451.17 | J155: 38804.38 | K155: 38097.95 | L155: 37427.35 | M155: 0.20692
A156: 147 | B156: PATANJALI | C156: 1367.9 | D156: 1350.68 | E156: 1327.22 | F156: 1286.53 | G156: 1263.07 | H156: 1391.37 | I156: 1414.83 | J156: 1455.52 | K156: 1374.15 | L156: 1310 | M156: 5.98989
A157: 148 | B157: PAYTM | C157: 920.75 | D157: 928.55 | E157: 904.45 | F157: 888.15 | G157: 864.05 | H157: 944.85 | I157: 968.95 | J157: 985.25 | K157: 952.65 | L157: 912.25 | M157: 29.1398
A158: 149 | B158: PEL | C158: 975.35 | D158: 973.63 | E158: 966.72 | F158: 958.08 | G158: 951.17 | H158: 982.27 | I158: 989.18 | J158: 997.82 | K158: 980.55 | L158: 965 | M158: 3.86798
A159: 150 | B159: PERSISTENT | C159: 6160.2 | D159: 6142.80 | E159: 6085.60 | F159: 6011.00 | G159: 5953.80 | H159: 6217.40 | I159: 6274.60 | J159: 6349.20 | K159: 6200 | L159: 6068.2 | M159: 4.52711
A160: 151 | B160: PETRONET | C160: 199.6 | D160: 198.87 | E160: 195.83 | F160: 192.07 | G160: 189.03 | H160: 202.63 | I160: 205.67 | J160: 209.43 | K160: 201.9 | L160: 195.1 | M160: 148.2838
A161: 152 | B161: PFC | C161: 246.6 | D161: 244.68 | E161: 241.67 | F161: 236.73 | G161: 233.72 | H161: 249.62 | I161: 252.63 | J161: 257.57 | K161: 247.7 | L161: 239.75 | M161: 112.4749
A162: 153 | B162: PGHH | C162: 17540.7 | D162: 17319.62 | E162: 16966.23 | F162: 16391.77 | G162: 16038.38 | H162: 17894.08 | I162: 18247.47 | J162: 18821.93 | K162: 17673 | L162: 16745.15 | M162: 0.44193
A163: 154 | B163: PIDILITIND | C163: 2458 | D163: 2428.78 | E163: 2379.57 | F163: 2301.13 | G163: 2251.92 | H163: 2507.22 | I163: 2556.43 | J163: 2634.87 | K163: 2478 | L163: 2350.35 | M163: 23.14742
A164: 155 | B164: PIIND | C164: 3401.25 | D164: 3391.27 | E164: 3372.23 | F164: 3343.22 | G164: 3324.18 | H164: 3420.28 | I164: 3439.32 | J164: 3468.33 | K164: 3410.3 | L164: 3362.25 | M164: 1.54112
A165: 156 | B165: PNB | C165: 73 | D165: 73.35 | E165: 72.45 | F165: 71.90 | G165: 71.00 | H165: 73.90 | I165: 74.80 | J165: 75.35 | K165: 74.25 | L165: 72.8 | M165: 443.05596
A166: 157 | B166: POLICYBZR | C166: 700.7 | D166: 704.63 | E166: 693.07 | F166: 685.43 | G166: 673.87 | H166: 712.27 | I166: 723.83 | J166: 731.47 | K166: 716.2 | L166: 697 | M166: 19.43244
A167: 158 | B167: POLYCAB | C167: 4922.1 | D167: 4931.50 | E167: 4883.65 | F167: 4845.20 | G167: 4797.35 | H167: 4969.95 | I167: 5017.80 | J167: 5056.25 | K167: 4979.35 | L167: 4893.05 | M167: 3.47116
A168: 159 | B168: POONAWALLA | C168: 352.8 | D168: 354.25 | E168: 349.75 | F168: 346.70 | G168: 342.20 | H168: 357.30 | I168: 361.80 | J168: 364.85 | K168: 358.75 | L168: 351.2 | M168: 8.93829
A169: 160 | B169: POWERGRID | C169: 202.15 | D169: 201.88 | E169: 200.82 | F169: 199.48 | G169: 198.42 | H169: 203.22 | I169: 204.28 | J169: 205.62 | K169: 202.95 | L169: 200.55 | M169: 74.7477
A170: 161 | B170: PRESTIGE | C170: 765.7 | D170: 760.33 | E170: 742.17 | F170: 718.63 | G170: 700.47 | H170: 783.87 | I170: 802.03 | J170: 825.57 | K170: 778.5 | L170: 736.8 | M170: 10.20355
A171: 162 | B171: RAMCOCEM | C171: 991.7 | D171: 989.13 | E171: 983.62 | F171: 975.53 | G171: 970.02 | H171: 997.22 | I171: 1002.73 | J171: 1010.82 | K171: 994.65 | L171: 981.05 | M171: 1.55209
A172: 163 | B172: RECLTD | C172: 287.6 | D172: 284.62 | E172: 280.38 | F172: 273.17 | G172: 268.93 | H172: 291.83 | I172: 296.07 | J172: 303.28 | K172: 288.85 | L172: 277.4 | M172: 140.86055
A173: 164 | B173: RELIANCE | C173: 2287.9 | D173: 2299.60 | E173: 2271.20 | F173: 2254.50 | G173: 2226.10 | H173: 2316.30 | I173: 2344.70 | J173: 2361.40 | K173: 2328 | L173: 2282.9 | M173: 64.04219
A174: 165 | B174: SAIL | C174: 83.85 | D174: 84.17 | E174: 83.38 | F174: 82.92 | G174: 82.13 | H174: 84.63 | I174: 85.42 | J174: 85.88 | K174: 84.95 | L174: 83.7 | M174: 96.35615
A175: 166 | B175: SBICARD | C175: 746.15 | D175: 751.28 | E175: 738.87 | F175: 731.58 | G175: 719.17 | H175: 758.57 | I175: 770.98 | J175: 778.27 | K175: 763.7 | L175: 744 | M175: 22.68047
A176: 167 | B176: SBILIFE | C176: 1367.85 | D176: 1354.25 | E176: 1333.10 | F176: 1298.35 | G176: 1277.20 | H176: 1389.00 | I176: 1410.15 | J176: 1444.90 | K176: 1375.4 | L176: 1319.5 | M176: 22.87988
A177: 168 | B177: SBIN | C177: 565.55 | D177: 566.07 | E177: 562.63 | F177: 559.72 | G177: 556.28 | H177: 568.98 | I177: 572.42 | J177: 575.33 | K177: 569.5 | L177: 563.15 | M177: 130.39696
A178: 169 | B178: SHREECEM | C178: 25655.05 | D178: 25762.52 | E178: 25443.58 | F178: 25232.12 | G178: 24913.18 | H178: 25973.98 | I178: 26292.92 | J178: 26504.38 | K178: 26081.45 | L178: 25551.05 | M178: 0.22304
A179: 170 | B179: SHRIRAMFIN | C179: 1879.85 | D179: 1885.83 | E179: 1864.72 | F179: 1849.58 | G179: 1828.47 | H179: 1900.97 | I179: 1922.08 | J179: 1937.22 | K179: 1906.95 | L179: 1870.7 | M179: 16.91067
A180: 171 | B180: SIEMENS | C180: 3330.95 | D180: 3335.65 | E180: 3241.30 | F180: 3151.65 | G180: 3057.30 | H180: 3425.30 | I180: 3519.65 | J180: 3609.30 | K180: 3430 | L180: 3246 | M180: 11.72326
A181: 172 | B181: SONACOMS | C181: 541.5 | D181: 546.23 | E181: 535.42 | F181: 529.33 | G181: 518.52 | H181: 552.32 | I181: 563.13 | J181: 569.22 | K181: 557.05 | L181: 540.15 | M181: 14.00438
A182: 173 | B182: SRF | C182: 2195.3 | D182: 2193.43 | E182: 2172.87 | F182: 2150.43 | G182: 2129.87 | H182: 2215.87 | I182: 2236.43 | J182: 2258.87 | K182: 2214 | L182: 2171 | M182: 2.73868
A183: 174 | B183: SUNPHARMA | C183: 1088.6 | D183: 1092.18 | E183: 1064.77 | F183: 1040.93 | G183: 1013.52 | H183: 1116.02 | I183: 1143.43 | J183: 1167.27 | K183: 1119.6 | L183: 1068.35 | M183: 64.75786
A184: 175 | B184: SUNTV | C184: 633.95 | D184: 634.63 | E184: 627.57 | F184: 621.18 | G184: 614.12 | H184: 641.02 | I184: 648.08 | J184: 654.47 | K184: 641.7 | L184: 628.25 | M184: 7.14611
A185: 176 | B185: SYNGENE | C185: 680.3 | D185: 683.35 | E185: 674.45 | F185: 668.60 | G185: 659.70 | H185: 689.20 | I185: 698.10 | J185: 703.95 | K185: 692.25 | L185: 677.5 | M185: 5.50711
A186: 177 | B186: TATACHEM | C186: 959.2 | D186: 958.65 | E186: 952.55 | F186: 945.90 | G186: 939.80 | H186: 965.30 | I186: 971.40 | J186: 978.05 | K186: 964.75 | L186: 952 | M186: 4.32972
A187: 178 | B187: TATACOMM | C187: 1663.25 | D187: 1659.28 | E187: 1639.97 | F187: 1616.68 | G187: 1597.37 | H187: 1682.57 | I187: 1701.88 | J187: 1725.17 | K187: 1678.6 | L187: 1636 | M187: 14.67544
A188: 179 | B188: TATACONSUM | C188: 900.5 | D188: 898.63 | E188: 893.87 | F188: 887.23 | G188: 882.47 | H188: 905.27 | I188: 910.03 | J188: 916.67 | K188: 903.4 | L188: 892 | M188: 10.8251
A189: 180 | B189: TATAELXSI | C189: 7625.2 | D189: 7630.38 | E189: 7579.82 | F189: 7534.43 | G189: 7483.87 | H189: 7675.77 | I189: 7726.33 | J189: 7771.72 | K189: 7680.95 | L189: 7585 | M189: 0.61348
A190: 181 | B190: TATAMOTORS | C190: 628.65 | D190: 632.65 | E190: 623.30 | F190: 617.95 | G190: 608.60 | H190: 638.00 | I190: 647.35 | J190: 652.70 | K190: 642 | L190: 627.3 | M190: 113.95766
A191: 182 | B191: TATAPOWER | C191: 239.35 | D191: 239.82 | E191: 237.78 | F191: 236.22 | G191: 234.18 | H191: 241.38 | I191: 243.42 | J191: 244.98 | K191: 241.85 | L191: 238.25 | M191: 62.66858
A192: 183 | B192: TATASTEEL | C192: 118.75 | D192: 119.10 | E192: 118.05 | F192: 117.35 | G192: 116.30 | H192: 119.80 | I192: 120.85 | J192: 121.55 | K192: 120.15 | L192: 118.4 | M192: 223.1995
A193: 184 | B193: TCS | C193: 3368.75 | D193: 3372.60 | E193: 3346.20 | F193: 3323.65 | G193: 3297.25 | H193: 3395.15 | I193: 3421.55 | J193: 3444.10 | K193: 3399 | L193: 3350.05 | M193: 9.99811
A194: 185 | B194: TECHM | C194: 1133.15 | D194: 1128.62 | E194: 1120.08 | F194: 1107.02 | G194: 1098.48 | H194: 1141.68 | I194: 1150.22 | J194: 1163.28 | K194: 1137.15 | L194: 1115.55 | M194: 11.94765
A195: 186 | B195: TIINDIA | C195: 3150.2 | D195: 3134.78 | E195: 3090.57 | F195: 3030.93 | G195: 2986.72 | H195: 3194.42 | I195: 3238.63 | J195: 3298.27 | K195: 3179 | L195: 3075.15 | M195: 2.16954
A196: 187 | B196: TITAN | C196: 3189.65 | D196: 3161.10 | E196: 3116.40 | F196: 3043.15 | G196: 2998.45 | H196: 3234.35 | I196: 3279.05 | J196: 3352.30 | K196: 3205.8 | L196: 3087.85 | M196: 12.35478
A197: 188 | B197: TORNTPHARM | C197: 1924.25 | D197: 1929.02 | E197: 1913.23 | F197: 1902.22 | G197: 1886.43 | H197: 1940.03 | I197: 1955.82 | J197: 1966.83 | K197: 1944.8 | L197: 1918 | M197: 1.84243
A198: 189 | B198: TORNTPOWER | C198: 726.9 | D198: 726.13 | E198: 718.77 | F198: 710.63 | G198: 703.27 | H198: 734.27 | I198: 741.63 | J198: 749.77 | K198: 733.5 | L198: 718 | M198: 9.21823
A199: 190 | B199: TRENT | C199: 2154.7 | D199: 2146.27 | E199: 2127.53 | F199: 2100.37 | G199: 2081.63 | H199: 2173.43 | I199: 2192.17 | J199: 2219.33 | K199: 2165 | L199: 2119.1 | M199: 7.49792
A200: 191 | B200: TRIDENT | C200: 34.9 | D200: 35.07 | E200: 34.53 | F200: 34.17 | G200: 33.63 | H200: 35.43 | I200: 35.97 | J200: 36.33 | K200: 35.6 | L200: 34.7 | M200: 59.55095
A201: 192 | B201: TTML | C201: 86.05 | D201: 86.50 | E201: 85.05 | F201: 84.05 | G201: 82.60 | H201: 87.50 | I201: 88.95 | J201: 89.95 | K201: 87.95 | L201: 85.5 | M201: 17.73585
A202: 193 | B202: TVSMOTOR | C202: 1590.8 | D202: 1603.42 | E202: 1572.83 | F202: 1554.87 | G202: 1524.28 | H202: 1621.38 | I202: 1651.97 | J202: 1669.93 | K202: 1634 | L202: 1585.45 | M202: 23.89756
A203: 194 | B203: UBL | C203: 1615.15 | D203: 1616.45 | E203: 1601.70 | F203: 1588.25 | G203: 1573.50 | H203: 1629.90 | I203: 1644.65 | J203: 1658.10 | K203: 1631.2 | L203: 1603 | M203: 1.02136
A204: 195 | B204: ULTRACEMCO | C204: 8422.25 | D204: 8408.48 | E204: 8364.87 | F204: 8307.48 | G204: 8263.87 | H204: 8465.87 | I204: 8509.48 | J204: 8566.87 | K204: 8452.1 | L204: 8351.1 | M204: 2.18908
A205: 196 | B205: UNIONBANK | C205: 101.6 | D205: 102.08 | E205: 100.57 | F205: 99.53 | G205: 98.02 | H205: 103.12 | I205: 104.63 | J205: 105.67 | K205: 103.6 | L205: 101.05 | M205: 266.92147
... 28 more rows

Sheet MidCap Intra
L5: Back To Main Page
A6: FOR INTRA DAY TRADING | K6: =Main!B10 -> 2023-11-01
A9: Sr.no | B9: Scrip | C9: CLOSE RATE | D9: Pivot Point | E9: Supports | H9: Resistances
E10: S1 | F10: S2 | G10: S3 | H10: R1 | I10: R2 | J10: R3 | K10: HIGH | L10: LOW | M10: Total Trade Quanity in Lakhs
A11: 1 | B11: 360ONE | C11: 525.1 | D11: 524.53 | E11: 518.72 | F11: 512.33 | G11: 506.52 | H11: 530.92 | I11: 536.73 | J11: 543.12 | K11: 530.35 | L11: 518.15 | M11: 3.69884
A12: 2 | B12: 3MINDIA | C12: 29762.7 | D12: 29710.88 | E12: 29551.82 | F12: 29340.93 | G12: 29181.87 | H12: 29921.77 | I12: 30080.83 | J12: 30291.72 | K12: 29869.95 | L12: 29500 | M12: 0.01045
A13: 3 | B13: AARTIDRUGS | C13: 469.45 | D13: 469.42 | E13: 465.83 | F13: 462.22 | G13: 458.63 | H13: 473.03 | I13: 476.62 | J13: 480.23 | K13: 473 | L13: 465.8 | M13: 1.25225
A14: 4 | B14: AARTIIND | C14: 454.45 | D14: 456.42 | E14: 451.13 | F14: 447.82 | G14: 442.53 | H14: 459.73 | I14: 465.02 | J14: 468.33 | K14: 461.7 | L14: 453.1 | M14: 5.64116
A15: 5 | B15: AAVAS | C15: 1407.8 | D15: 1423.65 | E15: 1387.30 | F15: 1366.80 | G15: 1330.45 | H15: 1444.15 | I15: 1480.50 | J15: 1501.00 | K15: 1460 | L15: 1403.15 | M15: 4.92788
A16: 6 | B16: ABB | C16: 4109.3 | D16: 4087.72 | E16: 4050.43 | F16: 3991.57 | G16: 3954.28 | H16: 4146.58 | I16: 4183.87 | J16: 4242.73 | K16: 4125 | L16: 4028.85 | M16: 2.05697
A17: 7 | B17: ABBOTINDIA | C17: 22413.65 | D17: 22462.85 | E17: 22308.85 | F17: 22204.05 | G17: 22050.05 | H17: 22567.65 | I17: 22721.65 | J17: 22826.45 | K17: 22616.85 | L17: 22358.05 | M17: 0.05232
A18: 8 | B18: ACC | C18: 1888.2 | D18: 1891.32 | E18: 1878.93 | F18: 1869.67 | G18: 1857.28 | H18: 1900.58 | I18: 1912.97 | J18: 1922.23 | K18: 1903.7 | L18: 1882.05 | M18: 1.17831
A19: 9 | B19: ADANIENT | C19: 2294.65 | D19: 2296.88 | E19: 2273.77 | F19: 2252.88 | G19: 2229.77 | H19: 2317.77 | I19: 2340.88 | J19: 2361.77 | K19: 2320 | L19: 2276 | M19: 11.5528
A20: 10 | B20: ADANIGREEN | C20: 911.65 | D20: 916.33 | E20: 899.32 | F20: 886.98 | G20: 869.97 | H20: 928.67 | I20: 945.68 | J20: 958.02 | K20: 933.35 | L20: 904 | M20: 7.13136
A21: 11 | B21: ADANIPORTS | C21: 784.75 | D21: 786.12 | E21: 781.13 | F21: 777.52 | G21: 772.53 | H21: 789.73 | I21: 794.72 | J21: 798.33 | K21: 791.1 | L21: 782.5 | M21: 28.2576
A22: 12 | B22: ADANIPOWER | C22: 363.05 | D22: 363.43 | E22: 358.97 | F22: 354.88 | G22: 350.42 | H22: 367.52 | I22: 371.98 | J22: 376.07 | K22: 367.9 | L22: 359.35 | M22: 70.80271
A23: 13 | B23: ATGL | C23: 564.3 | D23: 566.58 | E23: 557.62 | F23: 550.93 | G23: 541.97 | H23: 573.27 | I23: 582.23 | J23: 588.92 | K23: 575.55 | L23: 559.9 | M23: 4.65372
A24: 14 | B24: AWL | C24: 326.6 | D24: 327.88 | E24: 323.82 | F24: 321.03 | G24: 316.97 | H24: 330.67 | I24: 334.73 | J24: 337.52 | K24: 331.95 | L24: 325.1 | M24: 5.28865
A25: 15 | B25: ABCAPITAL | C25: 172.45 | D25: 173.00 | E25: 170.70 | F25: 168.95 | G25: 166.65 | H25: 174.75 | I25: 177.05 | J25: 178.80 | K25: 175.3 | L25: 171.25 | M25: 31.73997
A26: 16 | B26: ABFRL | C26: 214.75 | D26: 215.98 | E26: 212.82 | F26: 210.88 | G26: 207.72 | H26: 217.92 | I26: 221.08 | J26: 223.02 | K26: 219.15 | L26: 214.05 | M26: 30.19234
A27: 17 | B27: AEGISCHEM | C27: 292.4 | D27: 294.45 | E27: 288.95 | F27: 285.50 | G27: 280.00 | H27: 297.90 | I27: 303.40 | J27: 306.85 | K27: 299.95 | L27: 291 | M27: 2.20341
A28: 18 | B28: AETHER | C28: 880.3 | D28: 891.75 | E28: 848.80 | F28: 817.30 | G28: 774.35 | H28: 923.25 | I28: 966.20 | J28: 997.70 | K28: 934.7 | L28: 860.25 | M28: 0.80005
A29: 19 | B29: AFFLE | C29: 1051.35 | D29: 1055.32 | E29: 1044.03 | F29: 1036.72 | G29: 1025.43 | H29: 1062.63 | I29: 1073.92 | J29: 1081.23 | K29: 1066.6 | L29: 1048 | M29: 0.64335
A30: 20 | B30: AIAENG | C30: 3515.55 | D30: 3512.18 | E30: 3464.37 | F30: 3413.18 | G30: 3365.37 | H30: 3563.37 | I30: 3611.18 | J30: 3662.37 | K30: 3560 | L30: 3461 | M30: 0.28979
A31: 21 | B31: AJANTPHARM | C31: 1763.2 | D31: 1760.82 | E31: 1738.58 | F31: 1713.97 | G31: 1691.73 | H31: 1785.43 | I31: 1807.67 | J31: 1832.28 | K31: 1783.05 | L31: 1736.2 | M31: 3.64265
A32: 22 | B32: APLLTD | C32: 713.05 | D32: 719.50 | E32: 700.70 | F32: 688.35 | G32: 669.55 | H32: 731.85 | I32: 750.65 | J32: 763.00 | K32: 738.3 | L32: 707.15 | M32: 2.07596
A33: 23 | B33: ALKEM | C33: 3721.85 | D33: 3712.27 | E33: 3689.53 | F33: 3657.22 | G33: 3634.48 | H33: 3744.58 | I33: 3767.32 | J33: 3799.63 | K33: 3735 | L33: 3679.95 | M33: 1.4071
A34: 24 | B34: ALKYLAMINE | C34: 2142.6 | D34: 2150.63 | E34: 2130.47 | F34: 2118.33 | G34: 2098.17 | H34: 2162.77 | I34: 2182.93 | J34: 2195.07 | K34: 2170.8 | L34: 2138.5 | M34: 0.1778
A35: 25 | B35: ARE&M | C35: 613.2 | D35: 618.72 | E35: 603.48 | F35: 593.77 | G35: 578.53 | H35: 628.43 | I35: 643.67 | J35: 653.38 | K35: 633.95 | L35: 609 | M35: 4.28617
A36: 26 | B36: AMBER | C36: 2934.2 | D36: 2951.90 | E36: 2895.55 | F36: 2856.90 | G36: 2800.55 | H36: 2990.55 | I36: 3046.90 | J36: 3085.55 | K36: 3008.25 | L36: 2913.25 | M36: 0.60789
A37: 27 | B37: AMBUJACEM | C37: 424.45 | D37: 424.30 | E37: 421.15 | F37: 417.85 | G37: 414.70 | H37: 427.60 | I37: 430.75 | J37: 434.05 | K37: 427.45 | L37: 421 | M37: 10.78687
A38: 28 | B38: ANGELONE | C38: 2581.95 | D38: 2571.07 | E38: 2542.98 | F38: 2504.02 | G38: 2475.93 | H38: 2610.03 | I38: 2638.12 | J38: 2677.08 | K38: 2599.15 | L38: 2532.1 | M38: 8.07854
A39: 29 | B39: ANURAS | C39: 883.55 | D39: 881.30 | E39: 875.90 | F39: 868.25 | G39: 862.85 | H39: 888.95 | I39: 894.35 | J39: 902.00 | K39: 886.7 | L39: 873.65 | M39: 0.7477
A40: 30 | B40: APARINDS | C40: 5179.45 | D40: 5163.50 | E40: 5071.55 | F40: 4963.65 | G40: 4871.70 | H40: 5271.40 | I40: 5363.35 | J40: 5471.25 | K40: 5255.45 | L40: 5055.6 | M40: 1.10921
A41: 31 | B41: APLAPOLLO | C41: 1565.3 | D41: 1581.77 | E41: 1539.53 | F41: 1513.77 | G41: 1471.53 | H41: 1607.53 | I41: 1649.77 | J41: 1675.53 | K41: 1624 | L41: 1556 | M41: 11.94353
A42: 32 | B42: APOLLOHOSP | C42: 4819.9 | D42: 4841.58 | E42: 4783.52 | F42: 4747.13 | G42: 4689.07 | H42: 4877.97 | I42: 4936.03 | J42: 4972.42 | K42: 4899.65 | L42: 4805.2 | M42: 2.7666
A43: 33 | B43: APOLLOTYRE | C43: 381.3 | D43: 379.77 | E43: 376.78 | F43: 372.27 | G43: 369.28 | H43: 384.28 | I43: 387.27 | J43: 391.78 | K43: 382.75 | L43: 375.25 | M43: 10.49364
A44: 34 | B44: APTUS | C44: 288.75 | D44: 290.20 | E44: 285.95 | F44: 283.15 | G44: 278.90 | H44: 293.00 | I44: 297.25 | J44: 300.05 | K44: 294.45 | L44: 287.4 | M44: 3.54562
A45: 35 | B45: ACI | C45: 572.75 | D45: 580.87 | E45: 561.88 | F45: 551.02 | G45: 532.03 | H45: 591.73 | I45: 610.72 | J45: 621.58 | K45: 599.85 | L45: 570 | M45: 3.65936
A46: 36 | B46: ASAHIINDIA | C46: 559.1 | D46: 561.02 | E46: 554.08 | F46: 549.07 | G46: 542.13 | H46: 566.03 | I46: 572.97 | J46: 577.98 | K46: 567.95 | L46: 556 | M46: 0.57633
A47: 37 | B47: ASHOKLEY | C47: 167.7 | D47: 168.25 | E47: 166.45 | F47: 165.20 | G47: 163.40 | H47: 169.50 | I47: 171.30 | J47: 172.55 | K47: 170.05 | L47: 167 | M47: 79.00834
A48: 38 | B48: ASIANPAINT | C48: 2995.7 | D48: 2991.48 | E48: 2970.22 | F48: 2944.73 | G48: 2923.47 | H48: 3016.97 | I48: 3038.23 | J48: 3063.72 | K48: 3012.75 | L48: 2966 | M48: 11.52306
A49: 39 | B49: ASTERDM | C49: 329.65 | D49: 331.28 | E49: 326.77 | F49: 323.88 | G49: 319.37 | H49: 334.17 | I49: 338.68 | J49: 341.57 | K49: 335.8 | L49: 328.4 | M49: 1.06865
A50: 40 | B50: ASTRAL | C50: 1850.75 | D50: 1842.30 | E50: 1829.60 | F50: 1808.45 | G50: 1795.75 | H50: 1863.45 | I50: 1876.15 | J50: 1897.30 | K50: 1855 | L50: 1821.15 | M50: 7.92115
A51: 41 | B51: ATUL | C51: 6241.7 | D51: 6255.23 | E51: 6215.77 | F51: 6189.83 | G51: 6150.37 | H51: 6281.17 | I51: 6320.63 | J51: 6346.57 | K51: 6294.7 | L51: 6229.3 | M51: 0.18575
A52: 42 | B52: AUBANK | C52: 669.1 | D52: 672.55 | E52: 659.40 | F52: 649.70 | G52: 636.55 | H52: 682.25 | I52: 695.40 | J52: 705.10 | K52: 685.7 | L52: 662.85 | M52: 25.98527
A53: 43 | B53: AUROPHARMA | C53: 849.5 | D53: 855.53 | E53: 840.82 | F53: 832.13 | G53: 817.42 | H53: 864.22 | I53: 878.93 | J53: 887.62 | K53: 870.25 | L53: 846.85 | M53: 10.02465
A54: 44 | B54: AVANTIFEED | C54: 403.5 | D54: 403.05 | E54: 400.75 | F54: 398.00 | G54: 395.70 | H54: 405.80 | I54: 408.10 | J54: 410.85 | K54: 405.35 | L54: 400.3 | M54: 0.93951
A55: 45 | B55: DMART | C55: 3633.4 | D55: 3641.55 | E55: 3611.85 | F55: 3590.30 | G55: 3560.60 | H55: 3663.10 | I55: 3692.80 | J55: 3714.35 | K55: 3671.25 | L55: 3620 | M55: 8.20386
A56: 46 | B56: AXISBANK | C56: 981.85 | D56: 985.95 | E56: 973.90 | F56: 965.95 | G56: 953.90 | H56: 993.90 | I56: 1005.95 | J56: 1013.90 | K56: 998 | L56: 978 | M56: 78.16805
A57: 47 | B57: BAJAJ-AUTO | C57: 5314.05 | D57: 5324.27 | E57: 5282.38 | F57: 5250.72 | G57: 5208.83 | H57: 5355.93 | I57: 5397.82 | J57: 5429.48 | K57: 5366.15 | L57: 5292.6 | M57: 4.00987
A58: 48 | B58: BAJFINANCE | C58: 7492.65 | D58: 7510.95 | E58: 7442.20 | F58: 7391.75 | G58: 7323.00 | H58: 7561.40 | I58: 7630.15 | J58: 7680.60 | K58: 7579.7 | L58: 7460.5 | M58: 7.4941
A59: 49 | B59: BAJAJFINSV | C59: 1569.55 | D59: 1567.80 | E59: 1554.15 | F59: 1538.75 | G59: 1525.10 | H59: 1583.20 | I59: 1596.85 | J59: 1612.25 | K59: 1581.45 | L59: 1552.4 | M59: 15.92788
A60: 50 | B60: BAJAJHLDNG | C60: 6926.45 | D60: 6893.97 | E60: 6838.03 | F60: 6749.62 | G60: 6693.68 | H60: 6982.38 | I60: 7038.32 | J60: 7126.73 | K60: 6949.9 | L60: 6805.55 | M60: 0.19889
A61: 51 | B61: BALAMINES | C61: 2045.65 | D61: 2042.57 | E61: 2035.13 | F61: 2024.62 | G61: 2017.18 | H61: 2053.08 | I61: 2060.52 | J61: 2071.03 | K61: 2050 | L61: 2032.05 | M61: 0.17838
A62: 52 | B62: BALKRISIND | C62: 2553.8 | D62: 2564.90 | E62: 2533.95 | F62: 2514.10 | G62: 2483.15 | H62: 2584.75 | I62: 2615.70 | J62: 2635.55 | K62: 2595.85 | L62: 2545.05 | M62: 1.90106
A63: 53 | B63: BALRAMCHIN | C63: 413.15 | D63: 413.77 | E63: 411.03 | F63: 408.92 | G63: 406.18 | H63: 415.88 | I63: 418.62 | J63: 420.73 | K63: 416.5 | L63: 411.65 | M63: 5.86337
A64: 54 | B64: BANDHANBNK | C64: 214.15 | D64: 215.45 | E64: 212.40 | F64: 210.65 | G64: 207.60 | H64: 217.20 | I64: 220.25 | J64: 222.00 | K64: 218.5 | L64: 213.7 | M64: 45.47584
A65: 55 | B65: BANKBARODA | C65: 196.2 | D65: 197.20 | E65: 194.65 | F65: 193.10 | G65: 190.55 | H65: 198.75 | I65: 201.30 | J65: 202.85 | K65: 199.75 | L65: 195.65 | M65: 90.74535
A66: 56 | B66: BANKINDIA | C66: 95.85 | D66: 96.78 | E66: 94.47 | F66: 93.08 | G66: 90.77 | H66: 98.17 | I66: 100.48 | J66: 101.87 | K66: 99.1 | L66: 95.4 | M66: 132.79697
A67: 57 | B67: MAHABANK | C67: 41.75 | D67: 42.02 | E67: 41.28 | F67: 40.82 | G67: 40.08 | H67: 42.48 | I67: 43.22 | J67: 43.68 | K67: 42.75 | L67: 41.55 | M67: 222.98756
A68: 58 | B68: BASF | C68: 2524 | D68: 2519.37 | E68: 2485.73 | F68: 2447.47 | G68: 2413.83 | H68: 2557.63 | I68: 2591.27 | J68: 2629.53 | K68: 2553 | L68: 2481.1 | M68: 0.29567
A69: 59 | B69: BATAINDIA | C69: 1566.05 | D69: 1571.17 | E69: 1555.78 | F69: 1545.52 | G69: 1530.13 | H69: 1581.43 | I69: 1596.82 | J69: 1607.08 | K69: 1586.55 | L69: 1560.9 | M69: 0.65568
A70: 60 | B70: BAYERCROP | C70: 4920.75 | D70: 4924.10 | E70: 4899.20 | F70: 4877.65 | G70: 4852.75 | H70: 4945.65 | I70: 4970.55 | J70: 4992.10 | K70: 4949 | L70: 4902.55 | M70: 0.02841
A71: 61 | B71: BEML | C71: 2020.75 | D71: 2042.28 | E71: 1985.57 | F71: 1950.38 | G71: 1893.67 | H71: 2077.47 | I71: 2134.18 | J71: 2169.37 | K71: 2099 | L71: 2007.1 | M71: 2.12854
A72: 62 | B72: BERGEPAINT | C72: 558.6 | D72: 556.62 | E72: 550.23 | F72: 541.87 | G72: 535.48 | H72: 564.98 | I72: 571.37 | J72: 579.73 | K72: 563 | L72: 548.25 | M72: 13.54517
A73: 63 | B73: BDL | C73: 974.15 | D73: 971.47 | E73: 965.68 | F73: 957.22 | G73: 951.43 | H73: 979.93 | I73: 985.72 | J73: 994.18 | K73: 977.25 | L73: 963 | M73: 1.63344
A74: 64 | B74: BEL | C74: 133.25 | D74: 132.55 | E74: 131.45 | F74: 129.65 | G74: 128.55 | H74: 134.35 | I74: 135.45 | J74: 137.25 | K74: 133.65 | L74: 130.75 | M74: 80.98744
A75: 65 | B75: BHARATFORG | C75: 1019.35 | D75: 1024.55 | E75: 1009.80 | F75: 1000.25 | G75: 985.50 | H75: 1034.10 | I75: 1048.85 | J75: 1058.40 | K75: 1039.3 | L75: 1015 | M75: 3.46106
A76: 66 | B76: BHEL | C76: 120.85 | D76: 120.92 | E76: 119.43 | F76: 118.02 | G76: 116.53 | H76: 122.33 | I76: 123.82 | J76: 125.23 | K76: 122.4 | L76: 119.5 | M76: 135.04849
A77: 67 | B77: BPCL | C77: 349.25 | D77: 349.28 | E77: 344.62 | F77: 339.98 | G77: 335.32 | H77: 353.92 | I77: 358.58 | J77: 363.22 | K77: 353.95 | L77: 344.65 | M77: 53.36593
A78: 68 | B78: BHARTIARTL | C78: 914.4 | D78: 916.78 | E78: 910.02 | F78: 905.63 | G78: 898.87 | H78: 921.17 | I78: 927.93 | J78: 932.32 | K78: 923.55 | L78: 912.4 | M78: 56.97563
A79: 69 | B79: BIKAJI | C79: 473.1 | D79: 474.38 | E79: 468.77 | F79: 464.43 | G79: 458.82 | H79: 478.72 | I79: 484.33 | J79: 488.67 | K79: 480 | L79: 470.05 | M79: 1.17103
A80: 70 | B80: BIOCON | C80: 219.65 | D80: 220.20 | E80: 216.95 | F80: 214.25 | G80: 211.00 | H80: 222.90 | I80: 226.15 | J80: 228.85 | K80: 223.45 | L80: 217.5 | M80: 19.65042
A81: 71 | B81: BIRLACORPN | C81: 1273.2 | D81: 1259.40 | E81: 1234.80 | F81: 1196.40 | G81: 1171.80 | H81: 1297.80 | I81: 1322.40 | J81: 1360.80 | K81: 1284 | L81: 1221 | M81: 1.87907
A82: 72 | B82: BSOFT | C82: 547.65 | D82: 546.55 | E82: 541.10 | F82: 534.55 | G82: 529.10 | H82: 553.10 | I82: 558.55 | J82: 565.10 | K82: 552 | L82: 540 | M82: 13.69699
A83: 73 | B83: BLS | C83: 261.75 | D83: 260.37 | E83: 256.98 | F83: 252.22 | G83: 248.83 | H83: 265.13 | I83: 268.52 | J83: 273.28 | K83: 263.75 | L83: 255.6 | M83: 26.46479
A84: 74 | B84: BLUEDART | C84: 6579.6 | D84: 6541.52 | E84: 6434.08 | F84: 6288.57 | G84: 6181.13 | H84: 6687.03 | I84: 6794.47 | J84: 6939.98 | K84: 6648.95 | L84: 6396 | M84: 0.26319
A85: 75 | B85: BLUESTARCO | C85: 884.65 | D85: 884.55 | E85: 814.10 | F85: 743.55 | G85: 673.10 | H85: 955.10 | I85: 1025.55 | J85: 1096.10 | K85: 955 | L85: 814 | M85: 30.4113
A86: 76 | B86: BBTC | C86: 1353.85 | D86: 1375.72 | E86: 1310.68 | F86: 1267.52 | G86: 1202.48 | H86: 1418.88 | I86: 1483.92 | J86: 1527.08 | K86: 1440.75 | L86: 1332.55 | M86: 2.53222
A87: 77 | B87: BORORENEW | C87: 407.65 | D87: 408.93 | E87: 404.07 | F87: 400.48 | G87: 395.62 | H87: 412.52 | I87: 417.38 | J87: 420.97 | K87: 413.8 | L87: 405.35 | M87: 1.30798
A88: 78 | B88: BOSCHLTD | C88: 19450.95 | D88: 19474.10 | E88: 19339.35 | F88: 19227.75 | G88: 19093.00 | H88: 19585.70 | I88: 19720.45 | J88: 19832.05 | K88: 19608.85 | L88: 19362.5 | M88: 0.0837
A89: 79 | B89: BRIGADE | C89: 615.45 | D89: 616.68 | E89: 607.82 | F89: 600.18 | G89: 591.32 | H89: 624.32 | I89: 633.18 | J89: 640.82 | K89: 625.55 | L89: 609.05 | M89: 4.23222
A90: 80 | B90: BCG | C90: 16.75 | D90: 16.60 | E90: 16.30 | F90: 15.85 | G90: 15.55 | H90: 17.05 | I90: 17.35 | J90: 17.80 | K90: 16.9 | L90: 16.15 | M90: 141.40252
A91: 81 | B91: BRITANNIA | C91: 4426.5 | D91: 4436.05 | E91: 4392.35 | F91: 4358.20 | G91: 4314.50 | H91: 4470.20 | I91: 4513.90 | J91: 4548.05 | K91: 4479.75 | L91: 4401.9 | M91: 5.04625
A92: 82 | B92: BSE | C92: 1863 | D92: 1886.33 | E92: 1826.77 | F92: 1790.53 | G92: 1730.97 | H92: 1922.57 | I92: 1982.13 | J92: 2018.37 | K92: 1945.9 | L92: 1850.1 | M92: 20.9271
A93: 83 | B93: MAPMYINDIA | C93: 2082.9 | D93: 2088.78 | E93: 2047.57 | F93: 2012.23 | G93: 1971.02 | H93: 2124.12 | I93: 2165.33 | J93: 2200.67 | K93: 2130 | L93: 2053.45 | M93: 1.36263
A94: 84 | B94: CAMPUS | C94: 266.1 | D94: 266.90 | E94: 264.60 | F94: 263.10 | G94: 260.80 | H94: 268.40 | I94: 270.70 | J94: 272.20 | K94: 269.2 | L94: 265.4 | M94: 5.0822
A95: 85 | B95: CANFINHOME | C95: 763.45 | D95: 761.47 | E95: 754.73 | F95: 746.02 | G95: 739.28 | H95: 770.18 | I95: 776.92 | J95: 785.63 | K95: 768.2 | L95: 752.75 | M95: 5.37057
A96: 86 | B96: CANBK | C96: 384.35 | D96: 386.03 | E96: 381.42 | F96: 378.48 | G96: 373.87 | H96: 388.97 | I96: 393.58 | J96: 396.52 | K96: 390.65 | L96: 383.1 | M96: 98.87787
A97: 87 | B97: CGCL | C97: 761 | D97: 763.00 | E97: 756.05 | F97: 751.10 | G97: 744.15 | H97: 767.95 | I97: 774.90 | J97: 779.85 | K97: 769.95 | L97: 758.05 | M97: 1.14688
A98: 88 | B98: CARBORUNIV | C98: 1071.95 | D98: 1074.28 | E98: 1057.67 | F98: 1043.38 | G98: 1026.77 | H98: 1088.57 | I98: 1105.18 | J98: 1119.47 | K98: 1090.9 | L98: 1060 | M98: 1.49316
A99: 89 | B99: CASTROLIND | C99: 136.15 | D99: 137.40 | E99: 134.20 | F99: 132.25 | G99: 129.05 | H99: 139.35 | I99: 142.55 | J99: 144.50 | K99: 140.6 | L99: 135.45 | M99: 9.07368
A100: 90 | B100: CCL | C100: 590.15 | D100: 598.75 | E100: 576.90 | F100: 563.65 | G100: 541.80 | H100: 612.00 | I100: 633.85 | J100: 647.10 | K100: 620.6 | L100: 585.5 | M100: 3.6875
A101: 91 | B101: CEATLTD | C101: 2108.6 | D101: 2112.53 | E101: 2096.07 | F101: 2083.53 | G101: 2067.07 | H101: 2125.07 | I101: 2141.53 | J101: 2154.07 | K101: 2129 | L101: 2100 | M101: 1.43522
A102: 92 | B102: CENTRALBK | C102: 43.2 | D102: 43.68 | E102: 42.47 | F102: 41.73 | G102: 40.52 | H102: 44.42 | I102: 45.63 | J102: 46.37 | K102: 44.9 | L102: 42.95 | M102: 172.0095
A103: 93 | B103: CDSL | C103: 1456.15 | D103: 1433.47 | E103: 1397.73 | F103: 1339.32 | G103: 1303.58 | H103: 1491.88 | I103: 1527.62 | J103: 1586.03 | K103: 1469.2 | L103: 1375.05 | M103: 83.13094
A104: 94 | B104: CENTURYPLY | C104: 618.9 | D104: 617.53 | E104: 611.67 | F104: 604.43 | G104: 598.57 | H104: 624.77 | I104: 630.63 | J104: 637.87 | K104: 623.4 | L104: 610.3 | M104: 0.81332
A105: 95 | B105: CENTURYTEX | C105: 1082.8 | D105: 1085.50 | E105: 1070.90 | F105: 1059.00 | G105: 1044.40 | H105: 1097.40 | I105: 1112.00 | J105: 1123.90 | K105: 1100.1 | L105: 1073.6 | M105: 1.14763
A106: 96 | B106: CERA | C106: 8483.3 | D106: 8508.90 | E106: 8411.75 | F106: 8340.20 | G106: 8243.05 | H106: 8580.45 | I106: 8677.60 | J106: 8749.15 | K106: 8606.05 | L106: 8437.35 | M106: 0.07042
A107: 97 | B107: CESC | C107: 84.75 | D107: 84.87 | E107: 83.98 | F107: 83.22 | G107: 82.33 | H107: 85.63 | I107: 86.52 | J107: 87.28 | K107: 85.75 | L107: 84.1 | M107: 13.04819
A108: 98 | B108: CGPOWER | C108: 390.1 | D108: 392.00 | E108: 386.50 | F108: 382.90 | G108: 377.40 | H108: 395.60 | I108: 401.10 | J108: 404.70 | K108: 397.5 | L108: 388.4 | M108: 11.75211
A109: 99 | B109: CHALET | C109: 547.65 | D109: 547.82 | E109: 536.68 | F109: 525.72 | G109: 514.58 | H109: 558.78 | I109: 569.92 | J109: 580.88 | K109: 558.95 | L109: 536.85 | M109: 0.97568
A110: 100 | B110: CHAMBLFERT | C110: 288.55 | D110: 287.52 | E110: 283.13 | F110: 277.72 | G110: 273.33 | H110: 292.93 | I110: 297.32 | J110: 302.73 | K110: 291.9 | L110: 282.1 | M110: 30.23658
A111: 101 | B111: CHEMPLASTS | C111: 444.15 | D111: 448.10 | E111: 438.05 | F111: 431.95 | G111: 421.90 | H111: 454.20 | I111: 464.25 | J111: 470.35 | K111: 458.15 | L111: 442 | M111: 0.83714
A112: 102 | B112: CHOLAHLDNG | C112: 1138.2 | D112: 1143.32 | E112: 1117.88 | F112: 1097.57 | G112: 1072.13 | H112: 1163.63 | I112: 1189.07 | J112: 1209.38 | K112: 1168.75 | L112: 1123 | M112: 1.03967
A113: 103 | B113: CHOLAFIN | C113: 1137.3 | D113: 1143.02 | E113: 1120.48 | F113: 1103.67 | G113: 1081.13 | H113: 1159.83 | I113: 1182.37 | J113: 1199.18 | K113: 1165.55 | L113: 1126.2 | M113: 15.0657
A114: 104 | B114: CIEINDIA | C114: 460.15 | D114: 464.43 | E114: 454.97 | F114: 449.78 | G114: 440.32 | H114: 469.62 | I114: 479.08 | J114: 484.27 | K114: 473.9 | L114: 459.25 | M114: 4.93337
A115: 105 | B115: CIPLA | C115: 1200 | D115: 1199.07 | E115: 1192.03 | F115: 1184.07 | G115: 1177.03 | H115: 1207.03 | I115: 1214.07 | J115: 1222.03 | K115: 1206.1 | L115: 1191.1 | M115: 17.20955
A116: 106 | B116: CUB | C116: 138.1 | D116: 136.98 | E116: 135.02 | F116: 131.93 | G116: 129.97 | H116: 140.07 | I116: 142.03 | J116: 145.12 | K116: 138.95 | L116: 133.9 | M116: 90.32416
A117: 107 | B117: CLEAN | C117: 1304.2 | D117: 1304.98 | E117: 1297.27 | F117: 1290.33 | G117: 1282.62 | H117: 1311.92 | I117: 1319.63 | J117: 1326.57 | K117: 1312.7 | L117: 1298.05 | M117: 0.54504
A118: 108 | B118: COALINDIA | C118: 314.25 | D118: 313.93 | E118: 311.07 | F118: 307.88 | G118: 305.02 | H118: 317.12 | I118: 319.98 | J118: 323.17 | K118: 316.8 | L118: 310.75 | M118: 74.46586
A119: 109 | B119: COCHINSHIP | C119: 951.35 | D119: 956.67 | E119: 939.28 | F119: 927.22 | G119: 909.83 | H119: 968.73 | I119: 986.12 | J119: 998.18 | K119: 974.05 | L119: 944.6 | M119: 10.93002
A120: 110 | B120: COFORGE | C120: 4984.25 | D120: 4988.97 | E120: 4947.98 | F120: 4911.72 | G120: 4870.73 | H120: 5025.23 | I120: 5066.22 | J120: 5102.48 | K120: 5029.95 | L120: 4952.7 | M120: 2.24233
A121: 111 | B121: COLPAL | C121: 2113.8 | D121: 2097.08 | E121: 2066.72 | F121: 2019.63 | G121: 1989.27 | H121: 2144.17 | I121: 2174.53 | J121: 2221.62 | K121: 2127.45 | L121: 2050 | M121: 6.38945
A122: 112 | B122: CAMS | C122: 2246.9 | D122: 2260.28 | E122: 2226.62 | F122: 2206.33 | G122: 2172.67 | H122: 2280.57 | I122: 2314.23 | J122: 2334.52 | K122: 2293.95 | L122: 2240 | M122: 1.39337
A123: 113 | B123: CONCOR | C123: 688.2 | D123: 688.73 | E123: 682.87 | F123: 677.53 | G123: 671.67 | H123: 694.07 | I123: 699.93 | J123: 705.27 | K123: 694.6 | L123: 683.4 | M123: 5.68594
A124: 114 | B124: COROMANDEL | C124: 1043 | D124: 1045.97 | E124: 1031.93 | F124: 1020.87 | G124: 1006.83 | H124: 1057.03 | I124: 1071.07 | J124: 1082.13 | K124: 1060 | L124: 1034.9 | M124: 3.63055
A125: 115 | B125: CRAFTSMAN | C125: 4868.8 | D125: 4893.27 | E125: 4800.53 | F125: 4732.27 | G125: 4639.53 | H125: 4961.53 | I125: 5054.27 | J125: 5122.53 | K125: 4986 | L125: 4825 | M125: 0.72899
A126: 116 | B126: CREDITACC | C126: 1597.2 | D126: 1603.70 | E126: 1570.50 | F126: 1543.80 | G126: 1510.60 | H126: 1630.40 | I126: 1663.60 | J126: 1690.30 | K126: 1636.9 | L126: 1577 | M126: 2.96988
A127: 117 | B127: CRISIL | C127: 4097.05 | D127: 4075.00 | E127: 4005.00 | F127: 3912.95 | G127: 3842.95 | H127: 4167.05 | I127: 4237.05 | J127: 4329.10 | K127: 4145 | L127: 3982.95 | M127: 0.5688
A128: 118 | B128: CROMPTON | C128: 282 | D128: 282.25 | E128: 279.25 | F128: 276.50 | G128: 273.50 | H128: 285.00 | I128: 288.00 | J128: 290.75 | K128: 285.25 | L128: 279.5 | M128: 24.71218
A129: 119 | B129: CSBBANK | C129: 330.4 | D129: 331.38 | E129: 326.67 | F129: 322.93 | G129: 318.22 | H129: 335.12 | I129: 339.83 | J129: 343.57 | K129: 336.1 | L129: 327.65 | M129: 3.00891
A130: 120 | B130: CUMMINSIND | C130: 1676.55 | D130: 1677.05 | E130: 1665.10 | F130: 1653.65 | G130: 1641.70 | H130: 1688.50 | I130: 1700.45 | J130: 1711.90 | K130: 1689 | L130: 1665.6 | M130: 4.59147
A131: 121 | B131: CYIENT | C131: 1588.45 | D131: 1588.33 | E131: 1572.42 | F131: 1556.38 | G131: 1540.47 | H131: 1604.37 | I131: 1620.28 | J131: 1636.32 | K131: 1604.25 | L131: 1572.3 | M131: 3.78836
A132: 122 | B132: DABUR | C132: 528.9 | D132: 527.40 | E132: 523.75 | F132: 518.60 | G132: 514.95 | H132: 532.55 | I132: 536.20 | J132: 541.35 | K132: 531.05 | L132: 522.25 | M132: 16.8712
A133: 123 | B133: DALBHARAT | C133: 2104.25 | D133: 2088.03 | E133: 2066.27 | F133: 2028.28 | G133: 2006.52 | H133: 2126.02 | I133: 2147.78 | J133: 2185.77 | K133: 2109.8 | L133: 2050.05 | M133: 4.8122
A134: 124 | B134: DATAPATTNS | C134: 1867.4 | D134: 1883.33 | E134: 1838.17 | F134: 1808.93 | G134: 1763.77 | H134: 1912.57 | I134: 1957.73 | J134: 1986.97 | K134: 1928.5 | L134: 1854.1 | M134: 0.7854
A135: 125 | B135: DCMSHRIRAM | C135: 926.5 | D135: 933.28 | E135: 908.22 | F135: 889.93 | G135: 864.87 | H135: 951.57 | I135: 976.63 | J135: 994.92 | K135: 958.35 | L135: 915 | M135: 1.99129
A136: 126 | B136: DEEPAKFERT | C136: 642.45 | D136: 643.35 | E136: 635.10 | F136: 627.75 | G136: 619.50 | H136: 650.70 | I136: 658.95 | J136: 666.30 | K136: 651.6 | L136: 636 | M136: 4.53317
A137: 127 | B137: DEEPAKNTR | C137: 1986.75 | D137: 1994.55 | E137: 1975.20 | F137: 1963.65 | G137: 1944.30 | H137: 2006.10 | I137: 2025.45 | J137: 2037.00 | K137: 2013.9 | L137: 1983 | M137: 1.03168
A138: 128 | B138: DELHIVERY | C138: 413.35 | D138: 418.03 | E138: 405.57 | F138: 397.78 | G138: 385.32 | H138: 425.82 | I138: 438.28 | J138: 446.07 | K138: 430.5 | L138: 410.25 | M138: 8.9409
A139: 129 | B139: DELTACORP | C139: 127.85 | D139: 128.02 | E139: 126.43 | F139: 125.02 | G139: 123.43 | H139: 129.43 | I139: 131.02 | J139: 132.43 | K139: 129.6 | L139: 126.6 | M139: 28.35347
A140: 130 | B140: DEVYANI | C140: 179.8 | D140: 181.08 | E140: 177.52 | F140: 175.23 | G140: 171.67 | H140: 183.37 | I140: 186.93 | J140: 189.22 | K140: 184.65 | L140: 178.8 | M140: 14.9411
A141: 131 | B141: DIVISLAB | C141: 3388.35 | D141: 3394.53 | E141: 3366.12 | F141: 3343.88 | G141: 3315.47 | H141: 3416.77 | I141: 3445.18 | J141: 3467.42 | K141: 3422.95 | L141: 3372.3 | M141: 2.20543
A142: 132 | B142: DIXON | C142: 5101.6 | D142: 5144.45 | E142: 5046.50 | F142: 4991.40 | G142: 4893.45 | H142: 5199.55 | I142: 5297.50 | J142: 5352.60 | K142: 5242.4 | L142: 5089.35 | M142: 4.87039
A143: 133 | B143: DLF | C143: 563.5 | D143: 563.92 | E143: 557.28 | F143: 551.07 | G143: 544.43 | H143: 570.13 | I143: 576.77 | J143: 582.98 | K143: 570.55 | L143: 557.7 | M143: 107.12514
A144: 134 | B144: LALPATHLAB | C144: 2419.2 | D144: 2406.12 | E144: 2383.08 | F144: 2346.97 | G144: 2323.93 | H144: 2442.23 | I144: 2465.27 | J144: 2501.38 | K144: 2429.15 | L144: 2370 | M144: 1.87457
A145: 135 | B145: DRREDDY | C145: 5367.55 | D145: 5387.20 | E145: 5333.45 | F145: 5299.35 | G145: 5245.60 | H145: 5421.30 | I145: 5475.05 | J145: 5509.15 | K145: 5440.95 | L145: 5353.1 | M145: 3.76814
A146: 136 | B146: EIDPARRY | C146: 461.55 | D146: 464.37 | E146: 455.73 | F146: 449.92 | G146: 441.28 | H146: 470.18 | I146: 478.82 | J146: 484.63 | K146: 473 | L146: 458.55 | M146: 4.03656
A147: 137 | B147: EASEMYTRIP | C147: 39.55 | D147: 39.67 | E147: 39.33 | F147: 39.12 | G147: 38.78 | H147: 39.88 | I147: 40.22 | J147: 40.43 | K147: 40 | L147: 39.45 | M147: 31.85829
A148: 138 | B148: ECLERX | C148: 1958 | D148: 1964.88 | E148: 1935.32 | F148: 1912.63 | G148: 1883.07 | H148: 1987.57 | I148: 2017.13 | J148: 2039.82 | K148: 1994.45 | L148: 1942.2 | M148: 1.58002
A149: 139 | B149: EICHERMOT | C149: 3295.55 | D149: 3316.58 | E149: 3266.17 | F149: 3236.78 | G149: 3186.37 | H149: 3345.97 | I149: 3396.38 | J149: 3425.77 | K149: 3367 | L149: 3287.2 | M149: 4.09346
A150: 140 | B150: EIHOTEL | C150: 224.95 | D150: 226.82 | E150: 222.18 | F150: 219.42 | G150: 214.78 | H150: 229.58 | I150: 234.22 | J150: 236.98 | K150: 231.45 | L150: 224.05 | M150: 7.84524
A151: 141 | B151: ELGIEQUIP | C151: 505.35 | D151: 508.18 | E151: 500.17 | F151: 494.98 | G151: 486.97 | H151: 513.37 | I151: 521.38 | J151: 526.57 | K151: 516.2 | L151: 503 | M151: 6.53354
A152: 142 | B152: EMAMILTD | C152: 509.9 | D152: 511.42 | E152: 506.38 | F152: 502.87 | G152: 497.83 | H152: 514.93 | I152: 519.97 | J152: 523.48 | K152: 516.45 | L152: 507.9 | M152: 2.72123
A153: 143 | B153: ENDURANCE | C153: 1596.35 | D153: 1593.92 | E153: 1576.28 | F153: 1556.22 | G153: 1538.58 | H153: 1613.98 | I153: 1631.62 | J153: 1651.68 | K153: 1611.55 | L153: 1573.85 | M153: 2.88857
A154: 144 | B154: ENGINERSIN | C154: 123.7 | D154: 125.02 | E154: 120.48 | F154: 117.27 | G154: 112.73 | H154: 128.23 | I154: 132.77 | J154: 135.98 | K154: 129.55 | L154: 121.8 | M154: 38.75492
A155: 145 | B155: EPL | C155: 180.55 | D155: 181.08 | E155: 179.47 | F155: 178.38 | G155: 176.77 | H155: 182.17 | I155: 183.78 | J155: 184.87 | K155: 182.7 | L155: 180 | M155: 2.73253
A156: 146 | B156: EQUITASBNK | C156: 92.75 | D156: 92.82 | E156: 91.58 | F156: 90.42 | G156: 89.18 | H156: 93.98 | I156: 95.22 | J156: 96.38 | K156: 94.05 | L156: 91.65 | M156: 36.36809
A157: 147 | B157: ERIS | C157: 859.5 | D157: 859.53 | E157: 850.07 | F157: 840.63 | G157: 831.17 | H157: 868.97 | I157: 878.43 | J157: 887.87 | K157: 869 | L157: 850.1 | M157: 0.41525
A158: 148 | B158: ESCORTS | C158: 3132.5 | D158: 3151.22 | E158: 3107.28 | F158: 3082.07 | G158: 3038.13 | H158: 3176.43 | I158: 3220.37 | J158: 3245.58 | K158: 3195.15 | L158: 3126 | M158: 1.35729
A159: 149 | B159: EXIDEIND | C159: 255.4 | D159: 256.12 | E159: 253.28 | F159: 251.17 | G159: 248.33 | H159: 258.23 | I159: 261.07 | J159: 263.18 | K159: 258.95 | L159: 254 | M159: 13.20716
A160: 150 | B160: FDC | C160: 362.3 | D160: 363.12 | E160: 359.38 | F160: 356.47 | G160: 352.73 | H160: 366.03 | I160: 369.77 | J160: 372.68 | K160: 366.85 | L160: 360.2 | M160: 0.3545
A161: 151 | B161: FEDERALBNK | C161: 140.65 | D161: 140.70 | E161: 139.65 | F161: 138.65 | G161: 137.60 | H161: 141.70 | I161: 142.75 | J161: 143.75 | K161: 141.75 | L161: 139.7 | M161: 66.92752
A162: 152 | B162: FACT | C162: 756.05 | D162: 732.78 | E162: 709.52 | F162: 662.98 | G162: 639.72 | H162: 779.32 | I162: 802.58 | J162: 849.12 | K162: 756.05 | L162: 686.25 | M162: 41.08341
A163: 153 | B163: FINEORG | C163: 4419.7 | D163: 4444.23 | E163: 4380.47 | F163: 4341.23 | G163: 4277.47 | H163: 4483.47 | I163: 4547.23 | J163: 4586.47 | K163: 4508 | L163: 4405 | M163: 0.69287
A164: 154 | B164: FINCABLES | C164: 896.55 | D164: 909.58 | E164: 878.97 | F164: 861.38 | G164: 830.77 | H164: 927.17 | I164: 957.78 | J164: 975.37 | K164: 940.2 | L164: 892 | M164: 7.26376
A165: 155 | B165: FINPIPE | C165: 192.05 | D165: 193.12 | E165: 189.43 | F165: 186.82 | G165: 183.13 | H165: 195.73 | I165: 199.42 | J165: 202.03 | K165: 196.8 | L165: 190.5 | M165: 3.91748
A166: 156 | B166: FSL | C166: 156.05 | D166: 156.60 | E166: 154.55 | F166: 153.05 | G166: 151.00 | H166: 158.10 | I166: 160.15 | J166: 161.65 | K166: 158.65 | L166: 155.1 | M166: 7.08055
A167: 157 | B167: FIVESTAR | C167: 738.9 | D167: 739.95 | E167: 729.90 | F167: 720.90 | G167: 710.85 | H167: 748.95 | I167: 759.00 | J167: 768.00 | K167: 750 | L167: 730.95 | M167: 3.58337
A168: 158 | B168: FORTIS | C168: 322.95 | D168: 323.90 | E168: 319.20 | F168: 315.45 | G168: 310.75 | H168: 327.65 | I168: 332.35 | J168: 336.10 | K168: 328.6 | L168: 320.15 | M168: 3.74266
A169: 159 | B169: NYKAA | C169: 139.35 | D169: 139.65 | E169: 137.80 | F169: 136.25 | G169: 134.40 | H169: 141.20 | I169: 143.05 | J169: 144.60 | K169: 141.5 | L169: 138.1 | M169: 9.40309
A170: 160 | B170: GRINFRA | C170: 1120.15 | D170: 1125.35 | E170: 1111.80 | F170: 1103.45 | G170: 1089.90 | H170: 1133.70 | I170: 1147.25 | J170: 1155.60 | K170: 1138.9 | L170: 1117 | M170: 0.0857
A171: 161 | B171: GAIL | C171: 119.5 | D171: 119.02 | E171: 116.63 | F171: 113.77 | G171: 111.38 | H171: 121.88 | I171: 124.27 | J171: 127.13 | K171: 121.4 | L171: 116.15 | M171: 332.12394
A172: 162 | B172: GALAXYSURF | C172: 2729.75 | D172: 2719.92 | E172: 2609.83 | F172: 2489.92 | G172: 2379.83 | H172: 2839.83 | I172: 2949.92 | J172: 3069.83 | K172: 2830 | L172: 2600 | M172: 1.85907
A173: 163 | B173: GARFIBRES | C173: 3161.75 | D173: 3173.78 | E173: 3126.42 | F173: 3091.08 | G173: 3043.72 | H173: 3209.12 | I173: 3256.48 | J173: 3291.82 | K173: 3221.15 | L173: 3138.45 | M173: 0.20636
A174: 164 | B174: GICRE | C174: 228.05 | D174: 228.82 | E174: 224.73 | F174: 221.42 | G174: 217.33 | H174: 232.13 | I174: 236.22 | J174: 239.53 | K174: 232.9 | L174: 225.5 | M174: 9.85948
A175: 165 | B175: GLAND | C175: 1546 | D175: 1548.73 | E175: 1532.72 | F175: 1519.43 | G175: 1503.42 | H175: 1562.02 | I175: 1578.03 | J175: 1591.32 | K175: 1564.75 | L175: 1535.45 | M175: 1.27442
A176: 166 | B176: GLAXO | C176: 1423.35 | D176: 1424.60 | E176: 1414.40 | F176: 1405.45 | G176: 1395.25 | H176: 1433.55 | I176: 1443.75 | J176: 1452.70 | K176: 1434.8 | L176: 1415.65 | M176: 0.30612
A177: 167 | B177: GLENMARK | C177: 747.75 | D177: 751.20 | E177: 740.55 | F177: 733.35 | G177: 722.70 | H177: 758.40 | I177: 769.05 | J177: 776.25 | K177: 761.85 | L177: 744 | M177: 3.61013
A178: 168 | B178: MEDANTA | C178: 784.6 | D178: 774.20 | E178: 758.40 | F178: 732.20 | G178: 716.40 | H178: 800.40 | I178: 816.20 | J178: 842.40 | K178: 790 | L178: 748 | M178: 2.50168
A179: 169 | B179: GMMPFAUDLR | C179: 1735.05 | D179: 1741.98 | E179: 1719.07 | F179: 1703.08 | G179: 1680.17 | H179: 1757.97 | I179: 1780.88 | J179: 1796.87 | K179: 1764.9 | L179: 1726 | M179: 0.40708
A180: 170 | B180: GMRINFRA | C180: 54.6 | D180: 54.92 | E180: 54.13 | F180: 53.67 | G180: 52.88 | H180: 55.38 | I180: 56.17 | J180: 56.63 | K180: 55.7 | L180: 54.45 | M180: 52.47975
A181: 171 | B181: GOCOLORS | C181: 1239.3 | D181: 1246.70 | E181: 1220.10 | F181: 1200.90 | G181: 1174.30 | H181: 1265.90 | I181: 1292.50 | J181: 1311.70 | K181: 1273.3 | L181: 1227.5 | M181: 1.21541
A182: 172 | B182: GODFRYPHLP | C182: 2264 | D182: 2277.52 | E182: 2230.03 | F182: 2196.07 | G182: 2148.58 | H182: 2311.48 | I182: 2358.97 | J182: 2392.93 | K182: 2325 | L182: 2243.55 | M182: 0.81108
A183: 173 | B183: GODREJAGRO | C183: 464.45 | D183: 466.73 | E183: 460.97 | F183: 457.48 | G183: 451.72 | H183: 470.22 | I183: 475.98 | J183: 479.47 | K183: 472.5 | L183: 463.25 | M183: 0.71814
A184: 174 | B184: GODREJCP | C184: 991.85 | D184: 989.53 | E184: 981.27 | F184: 970.68 | G184: 962.42 | H184: 1000.12 | I184: 1008.38 | J184: 1018.97 | K184: 997.8 | L184: 978.95 | M184: 5.02123
A185: 175 | B185: GODREJIND | C185: 628.75 | D185: 636.17 | E185: 617.33 | F185: 605.92 | G185: 587.08 | H185: 647.58 | I185: 666.42 | J185: 677.83 | K185: 655 | L185: 624.75 | M185: 7.1289
A186: 176 | B186: GODREJPROP | C186: 1659.65 | D186: 1654.22 | E186: 1640.43 | F186: 1621.22 | G186: 1607.43 | H186: 1673.43 | I186: 1687.22 | J186: 1706.43 | K186: 1668 | L186: 1635 | M186: 6.16003
A187: 177 | B187: GRANULES | C187: 325.9 | D187: 324.82 | E187: 322.18 | F187: 318.47 | G187: 315.83 | H187: 328.53 | I187: 331.17 | J187: 334.88 | K187: 327.45 | L187: 321.1 | M187: 4.61624
A188: 178 | B188: GRAPHITE | C188: 466.6 | D188: 467.62 | E188: 460.33 | F188: 454.07 | G188: 446.78 | H188: 473.88 | I188: 481.17 | J188: 487.43 | K188: 474.9 | L188: 461.35 | M188: 8.7537
A189: 179 | B189: GRASIM | C189: 1886.7 | D189: 1881.22 | E189: 1870.48 | F189: 1854.27 | G189: 1843.53 | H189: 1897.43 | I189: 1908.17 | J189: 1924.38 | K189: 1891.95 | L189: 1865 | M189: 2.90022
A190: 180 | B190: GESHIP | C190: 794.25 | D190: 792.62 | E190: 783.63 | F190: 773.02 | G190: 764.03 | H190: 803.23 | I190: 812.22 | J190: 822.83 | K190: 801.6 | L190: 782 | M190: 2.57275
A191: 181 | B191: GREENPANEL | C191: 354.05 | D191: 355.97 | E191: 350.68 | F191: 347.32 | G191: 342.03 | H191: 359.33 | I191: 364.62 | J191: 367.98 | K191: 361.25 | L191: 352.6 | M191: 0.73273
A192: 182 | B192: GRINDWELL | C192: 2144.4 | D192: 2137.77 | E192: 2120.63 | F192: 2096.87 | G192: 2079.73 | H192: 2161.53 | I192: 2178.67 | J192: 2202.43 | K192: 2154.9 | L192: 2114 | M192: 0.50487
A193: 183 | B193: GUJALKALI | C193: 718.5 | D193: 721.27 | E193: 709.73 | F193: 700.97 | G193: 689.43 | H193: 730.03 | I193: 741.57 | J193: 750.33 | K193: 732.8 | L193: 712.5 | M193: 0.7604
A194: 184 | B194: GAEL | C194: 325.1 | D194: 332.15 | E194: 314.10 | F194: 303.10 | G194: 285.05 | H194: 343.15 | I194: 361.20 | J194: 372.20 | K194: 350.2 | L194: 321.15 | M194: 9.19397
A195: 185 | B195: FLUOROCHEM | C195: 2773.6 | D195: 2763.53 | E195: 2728.07 | F195: 2682.53 | G195: 2647.07 | H195: 2809.07 | I195: 2844.53 | J195: 2890.07 | K195: 2799 | L195: 2718 | M195: 0.65786
A196: 186 | B196: GUJGASLTD | C196: 409.05 | D196: 408.82 | E196: 404.33 | F196: 399.62 | G196: 395.13 | H196: 413.53 | I196: 418.02 | J196: 422.73 | K196: 413.3 | L196: 404.1 | M196: 8.69665
A197: 187 | B197: GNFC | C197: 691.45 | D197: 695.57 | E197: 684.13 | F197: 676.82 | G197: 665.38 | H197: 702.88 | I197: 714.32 | J197: 721.63 | K197: 707 | L197: 688.25 | M197: 33.07522
A198: 188 | B198: GPPL | C198: 121.85 | D198: 122.72 | E198: 120.48 | F198: 119.12 | G198: 116.88 | H198: 124.08 | I198: 126.32 | J198: 127.68 | K198: 124.95 | L198: 121.35 | M198: 9.80309
A199: 189 | B199: GSFC | C199: 200.2 | D199: 202.18 | E199: 197.02 | F199: 193.83 | G199: 188.67 | H199: 205.37 | I199: 210.53 | J199: 213.72 | K199: 207.35 | L199: 199 | M199: 73.08627
A200: 190 | B200: GSPL | C200: 267.5 | D200: 270.53 | E200: 263.07 | F200: 258.63 | G200: 251.17 | H200: 274.97 | I200: 282.43 | J200: 286.87 | K200: 278 | L200: 266.1 | M200: 9.93756
A201: 191 | B201: HEG | C201: 1632.25 | D201: 1620.02 | E201: 1587.23 | F201: 1542.22 | G201: 1509.43 | H201: 1665.03 | I201: 1697.82 | J201: 1742.83 | K201: 1652.8 | L201: 1575 | M201: 3.42305
A202: 192 | B202: HAPPSTMNDS | C202: 819.3 | D202: 824.45 | E202: 812.90 | F202: 806.50 | G202: 794.95 | H202: 830.85 | I202: 842.40 | J202: 848.80 | K202: 836 | L202: 818.05 | M202: 1.59935
A203: 193 | B203: HAVELLS | C203: 1246.15 | D203: 1256.50 | E203: 1233.35 | F203: 1220.55 | G203: 1197.40 | H203: 1269.30 | I203: 1292.45 | J203: 1305.25 | K203: 1279.65 | L203: 1243.7 | M203: 11.91513
A204: 194 | B204: HCLTECH | C204: 1276 | D204: 1270.85 | E204: 1261.85 | F204: 1247.70 | G204: 1238.70 | H204: 1285.00 | I204: 1294.00 | J204: 1308.15 | K204: 1279.85 | L204: 1256.7 | M204: 25.2587
A205: 195 | B205: HDFCAMC | C205: 2734 | D205: 2737.30 | E205: 2705.60 | F205: 2677.20 | G205: 2645.50 | H205: 2765.70 | I205: 2797.40 | J205: 2825.80 | K205: 2769 | L205: 2708.9 | M205: 7.46578
A206: 196 | B206: HDFCBANK | C206: 1476.5 | D206: 1484.83 | E206: 1465.67 | F206: 1454.83 | G206: 1435.67 | H206: 1495.67 | I206: 1514.83 | J206: 1525.67 | K206: 1504 | L206: 1474 | M206: 163.17412
... 319 more rows

Sheet Bulk Deals
E6: Back To Main Page
A7: Subject : | B7: BULK DEAL | D7: =Main!B10 -> 2023-11-01
A9: Date | B9: Scrip code | C9: Scrip Name | D9: Client Name | E9: Buy / Sell | F9: Quantity Traded | G9: Trade Price / Wt.Avg.trade price | H9: Exchange
A10: 2023-10-31 | B10: 543941 | C10: AHASOLAR | D10: SAURABHTRIPATHI | E10: SELL | F10: 47,200 | G10: 281.3 | H10: BSE
A11: 2023-10-31 | B11: 540718 | C11: AKM | D11: SKSE SECURITIES LIMITED CORP CM/TM PROP A/C | E11: BUY | F11: 33,000 | G11: 43.66 | H11: BSE
A12: 2023-10-31 | B12: 540718 | C12: AKM | D12: SKSE SECURITIES LIMITED CORP CM/TM PROP A/C | E12: SELL | F12: 9,000 | G12: 44.4 | H12: BSE
A13: 2023-10-31 | B13: 540718 | C13: AKM | D13: INDUBEN MANSUKHBHAI CHAVDA | E13: SELL | F13: 36,000 | G13: 44.37 | H13: BSE
A14: 2023-10-31 | B14: 540718 | C14: AKM | D14: MITHLESH CONSULTANCY LLP | E14: BUY | F14: 33,000 | G14: 44.4 | H14: BSE
A15: 2023-10-31 | B15: 540718 | C15: AKM | D15: PRAKASHBHAI PANCHAL | E15: SELL | F15: 39,000 | G15: 44.22 | H15: BSE
A16: 2023-10-31 | B16: 540718 | C16: AKM | D16: GAURANGKUMAR SONI | E16: BUY | F16: 39,000 | G16: 44.28 | H16: BSE
A17: 2023-10-31 | B17: 540718 | C17: AKM | D17: LALJIBHAI TRIVEDI | E17: SELL | F17: 33,000 | G17: 43.92 | H17: BSE
A18: 2023-10-31 | B18: 539115 | C18: ALAN SCOTT | D18: NIKUNJ KAUSHIK SHAH | E18: BUY | F18: 10,560 | G18: 82.04 | H18: BSE
A19: 2023-10-31 | B19: 508664 | C19: BESTEAST | D19: GCM COMMODITY AND DERIVATIVES LIMITED | E19: SELL | F19: 100,000 | G19: 25.9 | H19: BSE
A20: 2023-10-31 | B20: 542627 | C20: CHANDNIMACH | D20: JIGAR BHAVSAR | E20: SELL | F20: 17,000 | G20: 24.72 | H20: BSE
A21: 2023-10-31 | B21: 540361 | C21: DANUBE | D21: NIRAJ JADGISH PARIKH HUF | E21: SELL | F21: 583,761 | G21: 11.76 | H21: BSE
A22: 2023-10-31 | B22: 543594 | C22: DPL | D22: DIPNA KEYUR SHAH | E22: SELL | F22: 90,000 | G22: 13.54 | H22: BSE
A23: 2023-10-31 | B23: 512443 | C23: GANONPRO | D23: PUNIT AGARWAL HUF | E23: SELL | F23: 49,200 | G23: 13.22 | H23: BSE
A24: 2023-10-31 | B24: 541703 | C24: GFIL | D24: KIRANDEEP KAURR | E24: SELL | F24: 43,200 | G24: 20.37 | H24: BSE
A25: 2023-10-31 | B25: 541703 | C25: GFIL | D25: DHULL TRADING PRIVATE LIMITED | E25: BUY | F25: 24,000 | G25: 20.33 | H25: BSE
A26: 2023-10-31 | B26: 542935 | C26: ICLORGANIC | D26: OPTUME LEGAL PARTNERS LLP | E26: SELL | F26: 50,000 | G26: 48.74 | H26: BSE
A27: 2023-10-31 | B27: 542935 | C27: ICLORGANIC | D27: NIRMALA BHARATKUMAR PATEL | E27: BUY | F27: 62,000 | G27: 48.74 | H27: BSE
A28: 2023-10-31 | B28: 501700 | C28: INDIANVSH | D28: AARTIHINDOCHA | E28: SELL | F28: 197,368 | G28: 17 | H28: BSE
A29: 2023-10-31 | B29: 501700 | C29: INDIANVSH | D29: AARTIHINDOCHA | E29: BUY | F29: 2,908 | G29: 17 | H29: BSE
A30: 2023-10-31 | B30: 501700 | C30: INDIANVSH | D30: RAHUL AGARWAL | E30: BUY | F30: 342,306 | G30: 17 | H30: BSE
A31: 2023-10-31 | B31: 539083 | C31: INOXWIND | D31: SMALL CAP WORLD FUND INC | E31: BUY | F31: 7,451,441 | G31: 211.7 | H31: BSE
A32: 2023-10-31 | B32: 539083 | C32: INOXWIND | D32: ICICI PRUDENTIAL MUTUAL FUND | E32: BUY | F32: 2,406,589 | G32: 209 | H32: BSE
A33: 2023-10-31 | B33: 539083 | C33: INOXWIND | D33: EAST BRIDGE CAPITAL MASTER FUND I LIMITED | E33: BUY | F33: 4,784,689 | G33: 209 | H33: BSE
A34: 2023-10-31 | B34: 539083 | C34: INOXWIND | D34: BNP PARIBAS ARBITRAGE | E34: BUY | F34: 2,392,000 | G34: 209 | H34: BSE
A35: 2023-10-31 | B35: 539083 | C35: INOXWIND | D35: INOX WIND ENERGY LIMITED | E35: SELL | F35: 38,362,000 | G35: 210.23 | H35: BSE
A36: 2023-10-31 | B36: 543286 | C36: JETMALL | D36: JINSURI ELECTROMET LIMITED | E36: BUY | F36: 36,000 | G36: 22.1 | H36: BSE
A37: 2023-10-31 | B37: 543286 | C37: JETMALL | D37: BHARAT KUMAR PUKHRAJJI | E37: SELL | F37: 30,000 | G37: 22 | H37: BSE
A38: 2023-10-31 | B38: 543286 | C38: JETMALL | D38: KANDY KHERA | E38: SELL | F38: 48,000 | G38: 22.15 | H38: BSE
A39: 2023-10-31 | B39: 541161 | C39: KBCGLOBAL | D39: TRINITY OPPORTUNITY FUND I | E39: SELL | F39: 25,000,000 | G39: 2.36 | H39: BSE
A40: 2023-10-31 | B40: 541161 | C40: KBCGLOBAL | D40: LTS INVESTMENT FUND LTD | E40: BUY | F40: 25,000,000 | G40: 2.36 | H40: BSE
A41: 2023-10-31 | B41: 539767 | C41: MNIL | D41: AGROFTER VENTURES PRIVATE LIMITED | E41: SELL | F41: 18,793 | G41: 11.58 | H41: BSE
A42: 2023-10-31 | B42: 540386 | C42: ONTIC | D42: AYUSH RAJENDRA JAIN | E42: SELL | F42: 500,000 | G42: 0.6 | H42: BSE
A43: 2023-10-31 | B43: 543997 | C43: ORGANICREC | D43: VINOD SOMANI | E43: BUY | F43: 40,200 | G43: 267.57 | H43: BSE
A44: 2023-10-31 | B44: 543997 | C44: ORGANICREC | D44: VINOD SOMANI | E44: SELL | F44: 600 | G44: 271.55 | H44: BSE
A45: 2023-10-31 | B45: 543635 | C45: PPLPHARMA | D45: EAST BRIDGE CAPITAL MASTER FUND LIMITED | E45: SELL | F45: 33,643,099 | G45: 102.8 | H45: BSE
A46: 2023-10-31 | B46: 543635 | C46: PPLPHARMA | D46: EAST BRIDGE CAPITAL MASTER FUND I LIMITED | E46: BUY | F46: 33,643,099 | G46: 102.8 | H46: BSE
A47: 2023-10-31 | B47: 511557 | C47: PROFINC | D47: MANISHA ART JEWELLERS P LTD | E47: BUY | F47: 1,900,163 | G47: 1.19 | H47: BSE
A48: 2023-10-31 | B48: 512634 | C48: SAVERA | D48: DEBASHISH NEOGI | E48: BUY | F48: 106,946 | G48: 97.55 | H48: BSE
A49: 2023-10-31 | B49: 543366 | C49: SBLI | D49: HIRAL VAGHELA | E49: SELL | F49: 10,800 | G49: 36.43 | H49: BSE
A50: 2023-10-31 | B50: 543366 | C50: SBLI | D50: HIRAL VAGHELA | E50: BUY | F50: 2,400 | G50: 36.3 | H50: BSE
A51: 2023-10-31 | B51: 540147 | C51: SHASHIJIT | D51: NARESH MANOHARLAL KANDHARI | E51: SELL | F51: 342,151 | G51: 6.43 | H51: BSE
A52: 2023-10-31 | B52: 540072 | C52: SHIVAEXPO | D52: ABHINAV UPADHYAY | E52: SELL | F52: 100,000 | G52: 10.06 | H52: BSE
A53: 2023-10-31 | B53: 544001 | C53: SUNITATOOL | D53: NIKUNJ KAUSHIK SHAH | E53: SELL | F53: 49,000 | G53: 157.18 | H53: BSE
A54: 2023-10-31 | B54: 544001 | C54: SUNITATOOL | D54: NIKUNJ KAUSHIK SHAH | E54: BUY | F54: 49,000 | G54: 154.53 | H54: BSE
A55: 2023-10-31 | B55: 544001 | C55: SUNITATOOL | D55: SAURABHTRIPATHI | E55: BUY | F55: 38,000 | G55: 162.67 | H55: BSE
A56: 2023-10-31 | B56: 537392 | C56: TAAZAINT | D56: ANAND MOHAN | E56: BUY | F56: 90,000 | G56: 10.34 | H56: BSE
A57: 2023-10-31 | B57: 537392 | C57: TAAZAINT | D57: RAMASWAMY ANAND | E57: BUY | F57: 82,000 | G57: 10.34 | H57: BSE
A58: 2023-10-31 | B58: 537392 | C58: TAAZAINT | D58: MEGHNA AMRISH PIPADA | E58: SELL | F58: 63,800 | G58: 10.34 | H58: BSE
A59: 2023-10-31 | B59: 531716 | C59: TRICOMFRU | D59: BIPIN KUMAR SINHA HUF | E59: SELL | F59: 105,468 | G59: 1.16 | H59: BSE
A60: 2023-10-31 | B60: 531716 | C60: TRICOMFRU | D60: CHANDRA MOHAN KHURANA | E60: BUY | F60: 100,000 | G60: 1.16 | H60: BSE
A61: 2023-10-31 | B61: 530057 | C61: VIVANZA | D61: PARTH HEMANT PARIKH | E61: SELL | F61: 300,000 | G61: 12.31 | H61: BSE
A62: 2023-10-31 | B62: 543436 | C62: WITS | D62: RAJENDRA NEMINATH SHETE | E62: SELL | F62: 2,400 | G62: 136.15 | H62: BSE
A63: 2023-10-31 | B63: 543436 | C63: WITS | D63: RADHA RAJENDRA SHETE | E63: BUY | F63: 2,400 | G63: 136.15 | H63: BSE
A64: 2023-10-31 | B64: ANMOL | C64: Anmol India Limited | D64: SECUROCROP SECURITIES INDIA PRIVATE LIMITED | E64: BUY | F64: 319,004 | G64: 49.38 | H64: NSE
A65: 2023-10-31 | B65: APOLLO | C65: Apollo Micro Systems Ltd | D65: GRAVITON RESEARCH CAPITAL LLP | E65: BUY | F65: 1,614,819 | G65: 84.01 | H65: NSE
A66: 2023-10-31 | B66: APOLLO | C66: Apollo Micro Systems Ltd | D66: QE SECURITIES LLP | E66: BUY | F66: 1,499,731 | G66: 85.8 | H66: NSE
A67: 2023-10-31 | B67: ARVIND | C67: Arvind Limited | D67: GRAVITON RESEARCH CAPITAL LLP | E67: BUY | F67: 1,814,753 | G67: 193.33 | H67: NSE
A68: 2023-10-31 | B68: CDSL | C68: Central Depo Ser (I) Ltd | D68: GRAVITON RESEARCH CAPITAL LLP | E68: BUY | F68: 674,469 | G68: 1437.46 | H68: NSE
A69: 2023-10-31 | B69: CLOUDPP | C69: Var Cld Ltd Rs.2.5 ppd up | D69: PRABHATKUMARPANJIAR | E69: BUY | F69: 37,200 | G69: 72.75 | H69: NSE
A70: 2023-10-31 | B70: CTE | C70: Cambridge Technology Ente | D70: SILVER LINE VENTURES PRIVATE LIMITED | E70: BUY | F70: 112,663 | G70: 72.84 | H70: NSE
A71: 2023-10-31 | B71: CUPID | C71: Cupid Limited | D71: GRAVITON RESEARCH CAPITAL LLP | E71: BUY | F71: 78,674 | G71: 629.8 | H71: NSE
A72: 2023-10-31 | B72: CUPID | C72: Cupid Limited | D72: CLIFF TREXIM PRIVATE LIMITED | E72: BUY | F72: 154,234 | G72: 631.22 | H72: NSE
A73: 2023-10-31 | B73: DCXINDIA | C73: DCX Systems Limited | D73: GRAVITON RESEARCH CAPITAL LLP | E73: BUY | F73: 487,547 | G73: 300.27 | H73: NSE
A74: 2023-10-31 | B74: DENORA | C74: De Nora India Limited | D74: GRAVITON RESEARCH CAPITAL LLP | E74: BUY | F74: 54,442 | G74: 1748.93 | H74: NSE
A75: 2023-10-31 | B75: DSSL | C75: Dynacons Sys & Sol. Ltd. | D75: GRAVITON RESEARCH CAPITAL LLP | E75: BUY | F75: 75,013 | G75: 807.36 | H75: NSE
A76: 2023-10-31 | B76: EMKAY | C76: Emkay Global Fin Serv Ltd | D76: INDRA KIRAN VENTURES | E76: BUY | F76: 145,531 | G76: 107.39 | H76: NSE
A77: 2023-10-31 | B77: ESFL | C77: Essen Speciality Films L | D77: CRONY VYAPAR PVT LTD | E77: BUY | F77: 174,000 | G77: 171.6 | H77: NSE
A78: 2023-10-31 | B78: GSTL | C78: Globesecure Techno Ltd | D78: VEENA RAJESH SHAH | E78: BUY | F78: 121,000 | G78: 72.66 | H78: NSE
A79: 2023-10-31 | B79: HITECH | C79: Hi-Tech Pipes Limited | D79: GRAVITON RESEARCH CAPITAL LLP | E79: BUY | F79: 1,153,726 | G79: 107.2 | H79: NSE
A80: 2023-10-31 | B80: INOXWIND | C80: Inox Wind Limited | D80: GRAVITON RESEARCH CAPITAL LLP | E80: BUY | F80: 2,603,892 | G80: 212.93 | H80: NSE
A81: 2023-10-31 | B81: KSHITIJPOL | C81: Kshitij Polyline Limited | D81: ZENAB AIYUB YACOOBALI | E81: BUY | F81: 297,140 | G81: 6.86 | H81: NSE
A82: 2023-10-31 | B82: LIBAS | C82: Libas Consu Products Ltd | D82: QE SECURITIES LLP | E82: BUY | F82: 460,107 | G82: 13.83 | H82: NSE
A83: 2023-10-31 | B83: LIBAS | C83: Libas Consu Products Ltd | D83: PRRSAAR COMMODITIES PVT LTD | E83: BUY | F83: 122,696 | G83: 13.82 | H83: NSE
A84: 2023-10-31 | B84: LIBAS | C84: Libas Consu Products Ltd | D84: JAI VINAYAK SECURITIES | E84: BUY | F84: 484,394 | G84: 13.79 | H84: NSE
A85: 2023-10-31 | B85: LIBAS | C85: Libas Consu Products Ltd | D85: GRAVITON RESEARCH CAPITAL LLP | E85: BUY | F85: 162,634 | G85: 13.84 | H85: NSE
A86: 2023-10-31 | B86: MARSHALL | C86: Marshall Machines Ltd | D86: SHAIL SHARMA | E86: BUY | F86: 100,000 | G86: 58.99 | H86: NSE
A87: 2023-10-31 | B87: MARSHALL | C87: Marshall Machines Ltd | D87: SAGAR BHASKAR PANCHAL | E87: BUY | F87: 105,849 | G87: 58.85 | H87: NSE
A88: 2023-10-31 | B88: MITTAL | C88: Mittal Life Style Limited | D88: ANANT WEALTH CONSULTANTS PRIVATE LIMITED | E88: BUY | F88: 375,969 | G88: 18.42 | H88: NSE
A89: 2023-10-31 | B89: MITTAL | C89: Mittal Life Style Limited | D89: COMFORT CAPITAL PRIVATE LIMITED | E89: BUY | F89: 202,554 | G89: 18.38 | H89: NSE
A90: 2023-10-31 | B90: MITTAL | C90: Mittal Life Style Limited | D90: GLOBALWORTH SECURITIES LIMITED | E90: BUY | F90: 183,257 | G90: 18.31 | H90: NSE
A91: 2023-10-31 | B91: MKPL | C91: M K Proteins Limited | D91: ZEEL SANJAY SONI | E91: BUY | F91: 88,846 | G91: 841.88 | H91: NSE
A92: 2023-10-31 | B92: MONARCH | C92: Monarch Networth Cap Ltd | D92: CITADEL SECURITIES INDIA MARKETS PRIVATE LIMITED | E92: BUY | F92: 219,061 | G92: 411.12 | H92: NSE
A93: 2023-10-31 | B93: NGIL | C93: Nakoda Group of Ind. Ltd | D93: QE SECURITIES LLP | E93: BUY | F93: 156,311 | G93: 38.38 | H93: NSE
A94: 2023-10-31 | B94: NGIL | C94: Nakoda Group of Ind. Ltd | D94: BRONZE SECURITIES PVT LTD | E94: BUY | F94: 166,474 | G94: 38.01 | H94: NSE
A95: 2023-10-31 | B95: RCDL | C95: Rajgor Castor Derivati L | D95: HNS LAND CONSULTANTS LLP | E95: BUY | F95: 135,000 | G95: 59 | H95: NSE
A96: 2023-10-31 | B96: RCDL | C96: Rajgor Castor Derivati L | D96: ANJALI GUPTA | E96: BUY | F96: 150,000 | G96: 59.53 | H96: NSE
A97: 2023-10-31 | B97: RCDL | C97: Rajgor Castor Derivati L | D97: HN FARM LLP | E97: BUY | F97: 357,000 | G97: 59 | H97: NSE
A98: 2023-10-31 | B98: RCDL | C98: Rajgor Castor Derivati L | D98: MAYURI SHRIPAL VORA | E98: BUY | F98: 180,000 | G98: 59 | H98: NSE
A99: 2023-10-31 | B99: RCDL | C99: Rajgor Castor Derivati L | D99: CRAFT EMERGING MARKET FUND PCC- ELITE CAPITAL FUND | E99: BUY | F99: 555,000 | G99: 58.79 | H99: NSE
A100: 2023-10-31 | B100: RCDL | C100: Rajgor Castor Derivati L | D100: BHANSALI VALUE CREATIONS PVT LTD | E100: BUY | F100: 399,000 | G100: 58.62 | H100: NSE
A101: 2023-10-31 | B101: SAGARDEEP | C101: Sagardeep Alloys Limited | D101: DIVYRAJSINH NARENDRASINH SOLANKI | E101: BUY | F101: 259,689 | G101: 28.45 | H101: NSE
A102: 2023-10-31 | B102: SHAKTIPUMP | C102: Shakti Pumps (I) Ltd | D102: GRAVITON RESEARCH CAPITAL LLP | E102: BUY | F102: 134,377 | G102: 1066.09 | H102: NSE
A103: 2023-10-31 | B103: UNIVASTU | C103: Univastu India Limited | D103: JAINAM BROKING LIMITED | E103: BUY | F103: 70,000 | G103: 122.01 | H103: NSE
A104: 2023-10-31 | B104: UNIVASTU | C104: Univastu India Limited | D104: VEENA RAJESH SHAH | E104: BUY | F104: 303,704 | G104: 121.23 | H104: NSE
A105: 2023-10-31 | B105: UNIVASTU | C105: Univastu India Limited | D105: COMPANY SHIVAAY TRADING | E105: BUY | F105: 90,000 | G105: 122.44 | H105: NSE
A106: 2023-10-31 | B106: UNIVASTU | C106: Univastu India Limited | D106: GRAVITON RESEARCH CAPITAL LLP | E106: BUY | F106: 101,880 | G106: 120.94 | H106: NSE
A107: 2023-10-31 | B107: VERTOZ | C107: Vertoz Advertising Ltd | D107: MITHANI INVESTMENT AND TRADING PRIVATE LIMITED | E107: BUY | F107: 154,022 | G107: 324.16 | H107: NSE
A108: 2023-10-31 | B108: VERTOZ | C108: Vertoz Advertising Ltd | D108: SW CAPITAL PRIVATE LIMITED | E108: BUY | F108: 110,461 | G108: 325.03 | H108: NSE
A109: 2023-10-31 | B109: VERTOZ | C109: Vertoz Advertising Ltd | D109: SOHAM FINCARE INDIA LLP | E109: BUY | F109: 72,073 | G109: 321.07 | H109: NSE
A110: 2023-10-31 | B110: VIKASLIFE | C110: Vikas Lifecare Limited | D110: VISHWAS FINCAP SERVICES PRIVATE LIMITED | E110: BUY | F110: 7,892,209 | G110: 4.75 | H110: NSE
A111: 2023-10-31 | B111: VISHNUINFR | C111: Vishnusurya Proj N Infr L | D111: UMESH PARASMAL PAGARIYA | E111: BUY | F111: 198,000 | G111: 151.46 | H111: NSE
A112: 2023-10-31 | B112: WOMANCART | C112: Womancart Limited | D112: STATSOL RESEARCH LLP | E112: BUY | F112: 32,000 | G112: 135.35 | H112: NSE
A113: 2023-10-31 | B113: WOMANCART | C113: Womancart Limited | D113: SETU SECURITIES PVT LTD | E113: BUY | F113: 28,800 | G113: 135.35 | H113: NSE
A114: 2023-10-31 | B114: ANMOL | C114: Anmol India Limited | D114: SECUROCROP SECURITIES INDIA PRIVATE LIMITED | E114: SELL | F114: 19,063 | G114: 49.06 | H114: NSE
A115: 2023-10-31 | B115: APOLLO | C115: Apollo Micro Systems Ltd | D115: GRAVITON RESEARCH CAPITAL LLP | E115: SELL | F115: 1,614,819 | G115: 84.01 | H115: NSE
A116: 2023-10-31 | B116: APOLLO | C116: Apollo Micro Systems Ltd | D116: QE SECURITIES LLP | E116: SELL | F116: 1,800,831 | G116: 85.6 | H116: NSE
A117: 2023-10-31 | B117: ARVIND | C117: Arvind Limited | D117: GRAVITON RESEARCH CAPITAL LLP | E117: SELL | F117: 1,814,753 | G117: 193.45 | H117: NSE
A118: 2023-10-31 | B118: CDSL | C118: Central Depo Ser (I) Ltd | D118: GRAVITON RESEARCH CAPITAL LLP | E118: SELL | F118: 674,469 | G118: 1438.33 | H118: NSE
A119: 2023-10-31 | B119: CLOUDPP | C119: Var Cld Ltd Rs.2.5 ppd up | D119: MULTIPLIER SHARE & STOCK ADVISORS PRIVATE LIMITED | E119: SELL | F119: 72,000 | G119: 72.75 | H119: NSE
A120: 2023-10-31 | B120: CTE | C120: Cambridge Technology Ente | D120: SILVER LINE VENTURES PRIVATE LIMITED | E120: SELL | F120: 62,663 | G120: 73.83 | H120: NSE
A121: 2023-10-31 | B121: CUPID | C121: Cupid Limited | D121: GRAVITON RESEARCH CAPITAL LLP | E121: SELL | F121: 78,674 | G121: 630.52 | H121: NSE
A122: 2023-10-31 | B122: DCXINDIA | C122: DCX Systems Limited | D122: GRAVITON RESEARCH CAPITAL LLP | E122: SELL | F122: 487,547 | G122: 300.78 | H122: NSE
A123: 2023-10-31 | B123: DENORA | C123: De Nora India Limited | D123: GRAVITON RESEARCH CAPITAL LLP | E123: SELL | F123: 54,442 | G123: 1752.29 | H123: NSE
A124: 2023-10-31 | B124: DSSL | C124: Dynacons Sys & Sol. Ltd. | D124: GRAVITON RESEARCH CAPITAL LLP | E124: SELL | F124: 75,013 | G124: 807.51 | H124: NSE
A125: 2023-10-31 | B125: EMKAY | C125: Emkay Global Fin Serv Ltd | D125: INDRA KIRAN VENTURES | E125: SELL | F125: 145,531 | G125: 107.85 | H125: NSE
A126: 2023-10-31 | B126: ESFL | C126: Essen Speciality Films L | D126: CRONY VYAPAR PVT LTD | E126: SELL | F126: 174,000 | G126: 170.51 | H126: NSE
A127: 2023-10-31 | B127: GODHA | C127: Godha Cabcon Insulat Ltd | D127: AJAY SALVI | E127: SELL | F127: 8,471,286 | G127: 0.65 | H127: NSE
A128: 2023-10-31 | B128: GSTL | C128: Globesecure Techno Ltd | D128: ROLY YOGENDRA KAUSHIK | E128: SELL | F128: 54,000 | G128: 71.87 | H128: NSE
A129: 2023-10-31 | B129: GSTL | C129: Globesecure Techno Ltd | D129: VEENA RAJESH SHAH | E129: SELL | F129: 121,000 | G129: 72.34 | H129: NSE
A130: 2023-10-31 | B130: HITECH | C130: Hi-Tech Pipes Limited | D130: GRAVITON RESEARCH CAPITAL LLP | E130: SELL | F130: 1,153,726 | G130: 107.15 | H130: NSE
A131: 2023-10-31 | B131: INOXWIND | C131: Inox Wind Limited | D131: GRAVITON RESEARCH CAPITAL LLP | E131: SELL | F131: 2,603,892 | G131: 213.17 | H131: NSE
A132: 2023-10-31 | B132: KSHITIJPOL | C132: Kshitij Polyline Limited | D132: ZENAB AIYUB YACOOBALI | E132: SELL | F132: 543,641 | G132: 7.06 | H132: NSE
A133: 2023-10-31 | B133: KSHITIJPOL | C133: Kshitij Polyline Limited | D133: BHARAT HEMRAJ GALA | E133: SELL | F133: 2,000,000 | G133: 7.05 | H133: NSE
A134: 2023-10-31 | B134: LIBAS | C134: Libas Consu Products Ltd | D134: JAI VINAYAK SECURITIES | E134: SELL | F134: 484,394 | G134: 13.82 | H134: NSE
A135: 2023-10-31 | B135: LIBAS | C135: Libas Consu Products Ltd | D135: PRRSAAR COMMODITIES PVT LTD | E135: SELL | F135: 138,570 | G135: 13.85 | H135: NSE
A136: 2023-10-31 | B136: LIBAS | C136: Libas Consu Products Ltd | D136: GRAVITON RESEARCH CAPITAL LLP | E136: SELL | F136: 162,634 | G136: 13.81 | H136: NSE
A137: 2023-10-31 | B137: LIBAS | C137: Libas Consu Products Ltd | D137: QE SECURITIES LLP | E137: SELL | F137: 460,107 | G137: 13.78 | H137: NSE
A138: 2023-10-31 | B138: MARSHALL | C138: Marshall Machines Ltd | D138: SAGAR BHASKAR PANCHAL | E138: SELL | F138: 82,144 | G138: 58.78 | H138: NSE
A139: 2023-10-31 | B139: MITTAL | C139: Mittal Life Style Limited | D139: ANANT WEALTH CONSULTANTS PRIVATE LIMITED | E139: SELL | F139: 139,936 | G139: 18.42 | H139: NSE
A140: 2023-10-31 | B140: MITTAL | C140: Mittal Life Style Limited | D140: GLOBALWORTH SECURITIES LIMITED | E140: SELL | F140: 79,257 | G140: 18.39 | H140: NSE
A141: 2023-10-31 | B141: MITTAL | C141: Mittal Life Style Limited | D141: COMFORT CAPITAL PRIVATE LIMITED | E141: SELL | F141: 374,471 | G141: 18.31 | H141: NSE
A142: 2023-10-31 | B142: MKPL | C142: M K Proteins Limited | D142: ZEEL SANJAY SONI | E142: SELL | F142: 69,309 | G142: 840.59 | H142: NSE
A143: 2023-10-31 | B143: MONARCH | C143: Monarch Networth Cap Ltd | D143: CITADEL SECURITIES INDIA MARKETS PRIVATE LIMITED | E143: SELL | F143: 257,124 | G143: 409.76 | H143: NSE
A144: 2023-10-31 | B144: NGIL | C144: Nakoda Group of Ind. Ltd | D144: BRONZE SECURITIES PVT LTD | E144: SELL | F144: 165,787 | G144: 38.32 | H144: NSE
A145: 2023-10-31 | B145: NGIL | C145: Nakoda Group of Ind. Ltd | D145: QE SECURITIES LLP | E145: SELL | F145: 156,311 | G145: 38.01 | H145: NSE
A146: 2023-10-31 | B146: ORTINLAB | C146: Ortin Laboratories Ltd | D146: REKHA MALHOTRA | E146: SELL | F146: 50,000 | G146: 17.52 | H146: NSE
A147: 2023-10-31 | B147: RCDL | C147: Rajgor Castor Derivati L | D147: RAJASTHAN GLOBAL SECURITIES PVT LTD | E147: SELL | F147: 198,000 | G147: 59 | H147: NSE
A148: 2023-10-31 | B148: RCDL | C148: Rajgor Castor Derivati L | D148: LRSD SECURITIES PRIVATE LIMITED | E148: SELL | F148: 198,000 | G148: 59 | H148: NSE
A149: 2023-10-31 | B149: RCDL | C149: Rajgor Castor Derivati L | D149: ABSOLUTE RETURNS SCHEME | E149: SELL | F149: 198,000 | G149: 59 | H149: NSE
A150: 2023-10-31 | B150: RCDL | C150: Rajgor Castor Derivati L | D150: STCI PRIMARY DELAER LTD | E150: SELL | F150: 198,000 | G150: 59 | H150: NSE
A151: 2023-10-31 | B151: RCDL | C151: Rajgor Castor Derivati L | D151: NEOMILE GROWTH FUND - SERIES I | E151: SELL | F151: 183,000 | G151: 59 | H151: NSE
A152: 2023-10-31 | B152: RCDL | C152: Rajgor Castor Derivati L | D152: NAVI FINSERV PRIVATE LIMITED | E152: SELL | F152: 198,000 | G152: 59 | H152: NSE
A153: 2023-10-31 | B153: SAGARDEEP | C153: Sagardeep Alloys Limited | D153: DIVYRAJSINH NARENDRASINH SOLANKI | E153: SELL | F153: 259,689 | G153: 28.48 | H153: NSE
A154: 2023-10-31 | B154: SAHANA | C154: Sahana System Limited | D154: SW CAPITAL PRIVATE LIMITED | E154: SELL | F154: 194,500 | G154: 385.1 | H154: NSE
A155: 2023-10-31 | B155: SHAKTIPUMP | C155: Shakti Pumps (I) Ltd | D155: GRAVITON RESEARCH CAPITAL LLP | E155: SELL | F155: 134,377 | G155: 1066.55 | H155: NSE
A156: 2023-10-31 | B156: SILGO | C156: Silgo Retail Limited | D156: AMISHA CHORDIA | E156: SELL | F156: 65,000 | G156: 24.97 | H156: NSE
A157: 2023-10-31 | B157: UCL | C157: Ushanti Colour Chem Ltd | D157: RAVI KHANT | E157: SELL | F157: 78,000 | G157: 55.82 | H157: NSE
A158: 2023-10-31 | B158: UNIVASTU | C158: Univastu India Limited | D158: VEENA RAJESH SHAH | E158: SELL | F158: 303,704 | G158: 121.95 | H158: NSE
A159: 2023-10-31 | B159: UNIVASTU | C159: Univastu India Limited | D159: COMPANY SHIVAAY TRADING | E159: SELL | F159: 50,000 | G159: 124.44 | H159: NSE
A160: 2023-10-31 | B160: UNIVASTU | C160: Univastu India Limited | D160: GRAVITON RESEARCH CAPITAL LLP | E160: SELL | F160: 101,880 | G160: 120.43 | H160: NSE
A161: 2023-10-31 | B161: UNIVASTU | C161: Univastu India Limited | D161: PRINCE KETAN SHAH | E161: SELL | F161: 147,561 | G161: 117.75 | H161: NSE
A162: 2023-10-31 | B162: UNIVASTU | C162: Univastu India Limited | D162: JAINAM BROKING LIMITED | E162: SELL | F162: 70,000 | G162: 124.4 | H162: NSE
A163: 2023-10-31 | B163: VERTOZ | C163: Vertoz Advertising Ltd | D163: SW CAPITAL PRIVATE LIMITED | E163: SELL | F163: 112,121 | G163: 324.19 | H163: NSE
A164: 2023-10-31 | B164: VERTOZ | C164: Vertoz Advertising Ltd | D164: MITHANI INVESTMENT AND TRADING PRIVATE LIMITED | E164: SELL | F164: 154,022 | G164: 323.09 | H164: NSE
A165: 2023-10-31 | B165: VERTOZ | C165: Vertoz Advertising Ltd | D165: SOHAM FINCARE INDIA LLP | E165: SELL | F165: 56,393 | G165: 320.87 | H165: NSE
A166: 2023-10-31 | B166: VIKASLIFE | C166: Vikas Lifecare Limited | D166: VISHWAS FINCAP SERVICES PRIVATE LIMITED | E166: SELL | F166: 7,892,209 | G166: 4.71 | H166: NSE

Sheet Call Tracker (Equity & F&O)
M5: Back To Main Page
A6: Retail Research Technical Calls & Fundamental Performance Report for the month of October-2023
M7: =Main!B10 -> 2023-11-01
B8: Positional Call
A9: Sr.no | B9: Date | D9: Company | E9: Rec | F9: Rec Price | G9: Stop Loss*** | H9: Call Closed At | I9: Target | J9: Remark | K9: Profit / Loss per Share | L9: All charges | M9: Net Gain / Loss % | N9: Status | O9: Closed Date | P9: Market Closing Price | Q9: Second Buying Date
A10: 1 | B10: 2023-09-05 | D10: FLUOROCHEM | E10: Accu <> | F10: 2963 | G10: 2785 | H10: 2785 | I10: 3200-3400 | J10: Loss of Rs.178/- | K10: =H10-F10 -> -178 | L10: =(F10*-0.3)/100 -> -8.89 | M10: =(K10+L10)/F10 -> -6.31% | N10: Unsuccessful | O10: 2023-10-16 | Q10: 2023-10-04 | S10: H
A11: 2 | B11: 2023-09-12 | D11: ARE&M | E11: Accu | F11: 629-649 | G11: 608 | I11: 690-720 | J11: Open | P11: =VLOOKUP(D11,'MidCap Intra'!$B$11:$C$568,2,0) -> 613.20 | Q11: 2023-10-20 | S11: H
A12: 3 | B12: 2023-09-12 | D12: TATAMOTORS | E12: Accu | F12: 621 | G12: 584 | H12: 661 | I12: 660-700 | J12: Profit of Rs.40/- | K12: =H12-F12 -> 40 | L12: =(F12*-0.3)/100 -> -1.86 | M12: =(K12+L12)/F12 -> 6.14% | N12: Successful | O12: 2023-10-13 | Q12: - | S12: H
A13: 4 | B13: 2023-09-18 | D13: MTARTECH | E13: Accu | F13: 2525 | G13: 2380 | H13: 2665 | I13: 2800-2950 | J13: Profit of Rs.140/- | K13: =H13-F13 -> 140 | L13: =(F13*-0.3)/100 -> -7.58 | M13: =(K13+L13)/F13 -> 5.24% | N13: Successful | O13: 2023-10-04 | Q13: 2023-09-25 | S13: H
A14: 5 | B14: 2023-09-20 | D14: RELIANCE | E14: Accu | F14: 2285-2385 | G14: 2235 | I14: 2550-2700 | J14: Open | P14: =VLOOKUP(D14,'MidCap Intra'!$B$11:$C$568,2,0) -> 2287.90 | Q14: 2023-10-04 | S14: H
A15: 6 | B15: 2023-09-20 | D15: PIIND | E15: Accu | F15: 3480 | G15: 3370 | H15: 3345 | I15: 3700-3900 | J15: Loss of Rs.135/- | K15: =H15-F15 -> -135 | L15: =(F15*-0.3)/100 -> -10.44 | M15: =(K15+L15)/F15 -> -4.18% | N15: Unsuccessful | O15: 2023-10-25 | Q15: 2023-09-22 | S15: H
A16: 7 | B16: 2023-09-21 | D16: VGUARD | E16: Accu | F16: 285-305 | G16: 276 | I16: 330-350 | J16: Open | P16: =VLOOKUP(D16,'MidCap Intra'!$B$11:$C$568,2,0) -> 299.60 | Q16: 2023-10-09 | S16: K
A17: 8 | B17: 2023-09-22 | D17: EIDPARRY | E17: Accu | F17: 516 | G17: 485 | H17: 472.5 | I17: 565-600 | J17: Loss of Rs.43.5/- | K17: =H17-F17 -> -43.5 | L17: =(F17*-0.3)/100 -> -1.55 | M17: =(K17+L17)/F17 -> -8.73% | N17: Unsuccessful | O17: 2023-10-23 | S17: H
A18: 9 | B18: 2023-09-25 | D18: JAMNAAUTO | E18: Accu | F18: 114 | G18: 108 | H18: 107.5 | I18: 124-130 | J18: Loss of Rs.6.5/- | K18: =H18-F18 -> -6.5 | L18: =(F18*-0.3)/100 -> -0.34 | M18: =(K18+L18)/F18 -> -6.00% | N18: Unsuccessful | O18: 2023-10-25 | Q18: 2023-10-23 | S18: H
A19: 10 | B19: 2023-09-29 | D19: EIHOTEL | E19: Accu | F19: 222 | G19: 204 | H19: 234.5 | I19: 240-260 | J19: Profit of Rs.12.50/- | K19: =H19-F19 -> 12.5 | L19: =(F19*-0.3)/100 -> -0.67 | M19: =(K19+L19)/F19 -> 5.33% | N19: Successful | O19: 2023-10-03 | Q19: - | S19: H
A20: 11 | B20: 2023-10-04 | D20: SANSERA | E20: Accu | F20: 909 | G20: 845 | H20: 845 | I20: 1000-1080 | J20: Loss of Rs.64/- | K20: -64 | L20: =(F20*-0.3)/100 -> -2.73 | M20: -7.34% | N20: Unsuccessful | O20: 2023-10-30 | Q20: 2023-10-17 | S20: H
A21: 12 | B21: 2023-10-09 | D21: TATASTEEL | E21: Accu | F21: 120-124 | G21: 117 | I21: 132-140 | J21: Open | P21: =VLOOKUP(D21,'MidCap Intra'!$B$11:$C$568,2,0) -> 118.75 | Q21: 2023-10-23 | S21: H
A22: 13 | B22: 2023-10-09 | D22: CARBORUNIV | E22: Accu | F22: 1120 | G22: 1070 | H22: 1147.5 | I22: 1215-1275 | J22: Profit of Rs.27.5/- | K22: =H22-F22 -> 27.5 | L22: =(F22*-0.3)/100 -> -3.36 | M22: =(K22+L22)/F22 -> 2.16% | N22: Successful | O22: 2023-10-27 | Q22: 2023-10-23 | S22: H
A23: 14 | B23: 2023-10-13 | D23: TCS | E23: Accu | F23: 3450-3550 | G23: 3330 | I23: 3800-4000 | J23: Open | P23: =VLOOKUP(D23,'MidCap Intra'!$B$11:$C$568,2,0) -> 3368.75 | Q23: 2023-10-19 | S23: H
A24: 15 | B24: 2023-10-19 | D24: EIHOTEL | E24: Buy | F24: 218 | G24: 204 | H24: 229.75 | I24: 245-265 | J24: Profit of Rs.11.75/- | K24: =H24-F24 -> 11.75 | L24: =(F24*-0.3)/100 -> -0.65 | M24: =(K24+L24)/F24 -> 5.09% | N24: Successful | O24: 2023-10-30 | Q24: 2023-10-25 | S24: H
A25: 16 | B25: 2023-10-19 | D25: TATAMTRDVR | E25: Buy | F25: 417-437 | G25: 408 | I25: 465-495 | J25: Open | P25: =VLOOKUP(D25,'MidCap Intra'!$B$11:$C$568,2,0) -> 420.10 | Q25: 2023-10-25 | S25: H
A26: 17 | B26: 2023-10-20 | D26: TATAPOWER | E26: Buy | F26: 234.5-246.5 | G26: 227 | I26: 265-285 | J26: Open | P26: =VLOOKUP(D26,'MidCap Intra'!$B$11:$C$568,2,0) -> 239.35 | Q26: 2023-10-25 | S26: H
A27: 18 | B27: 2023-10-25 | D27: ICICIBANK | E27: Buy | F27: 903-929 | G27: 870 | I27: 990-1050 | J27: Open | P27: =VLOOKUP(D27,'MidCap Intra'!$B$11:$C$568,2,0) -> 915.35 | Q27: 2023-10-26 | S27: H
A32: CLBS = Closing Basis ***
A33: Dividend adjusted <> | F33: Reinitiated $
A34: Part book {} | D34: s | F34: Revised stoploss #
A38: Master Trade High Risk
A39: Sr.no | B39: Date | D39: Company | E39: Rec | F39: Rec Price | G39: Stop Loss | H39: Call Closed At | I39: Target | J39: Remark | K39: Profit / Loss per share | L39: All charges | M39: Gain / Loss per Lot | N39: Lot | O39: Status | P39: Closed Date
A40: 1 | B40: 2023-10-03 | D40: HCLTECH OCT FUT | E40: Buy | F40: 1232 | G40: 1218 | H40: 1245.5 | I40: 1247-1262 | J40: Profit of Rs.13.5/- | K40: =H40-F40 -> 13.5 | L40: =(H40*N40)*0.03% -> 261.56 | M40: =(K40*N40)-L40 -> 9188.4 | N40: 700 | O40: Successful | P40: 2023-10-03 | S40: N
A41: 2 | B41: 2023-10-03 | D41: LALPATHLAB OCT FUT | E41: Buy | F41: 2516 | G41: 2483 | H41: 2542.5 | I41: 2551-2586 | J41: Profit of Rs.26.5/- | K41: =H41-F41 -> 26.5 | L41: =(H41*N41)*0.03% -> 228.83 | M41: =(K41*N41)-L41 -> 7721.2 | N41: 300 | O41: Successful | P41: 2023-10-04 | S41: H
A42: 3 | B42: 2023-10-03 | D42: DIXON OCT FUT | E42: Buy | F42: 5300 | G42: 5250 | H42: 5250 | I42: 5353-5405 | J42: Loss of Rs 50/- | K42: =H42-F42 -> -50 | L42: =(H42*N42)*0.03% -> 315.00 | M42: =(K42*N42)-L42 -> -10315.0 | N42: 200 | O42: Unsuccessful | P42: 2023-10-04 | S42: N
A43: 4 | B43: 2023-10-04 | D43: PIDILITIND OCT FUT | E43: Buy | F43: 2430 | G43: 2390 | H43: 2460 | I43: 2472-2514 | J43: Profit of Rs.30/- | K43: 30 | L43: 184.50 | M43: 7315.5 | N43: 250 | O43: Successful | P43: 2023-10-06 | S43: N
A44: 5 | B44: 2023-10-04 | D44: LALPATHLAB OCT FUT | E44: Buy | F44: 2506 | G44: 2473 | H44: 2473 | I44: 2540-2575 | J44: Loss of Rs 33/- | K44: =H44-F44 -> -33 | L44: =(H44*N44)*0.03% -> 222.57 | M44: =(K44*N44)-L44 -> -10122.6 | N44: 300 | O44: Unsuccessful | P44: 2023-10-04 | S44: H
A45: 6 | B45: 2023-10-04 | D45: HCLTECH OCT FUT | E45: Buy | F45: 1226 | G45: 1212 | H45: 1226.5 | I45: 1241-1256 | J45: Profit of Rs.0.5/- | K45: 0.5 | L45: 257.57 | M45: 92.4 | N45: 700 | O45: Neutral | P45: 2023-10-04 | S45: H
A46: 7 | B46: 2023-10-04 | D46: ABBOTINDIA OCT FUT | E46: Buy | F46: 22875 | G46: 22600 | H46: 23085 | I46: 23150-23400 | J46: Profit of Rs.210/- | K46: 210 | L46: 277.02 | M46: 8123.0 | N46: 40 | O46: Successful | P46: 2023-10-06 | S46: N
A47: 8 | B47: 2023-10-05 | D47: HINDUNILVR OCT FUT | E47: Buy | F47: 2503 | G47: 2470 | H47: 2525 | I47: 2539-2574 | J47: Profit of Rs.22/- | K47: =H47-F47 -> 22 | L47: =(H47*N47)*0.03% -> 227.25 | M47: =(K47*N47)-L47 -> 6372.8 | N47: 300 | O47: Successful | P47: 2023-10-10 | S47: H
A48: 9 | B48: 2023-10-05 | D48: AXISBANK OCT FUT | E48: Sell | F48: 1006 | G48: 1022 | H48: 1005 | I48: 989-972 | J48: Profit of Rs.1/- | K48: =F48-H48 -> 1 | L48: =(H48*N48)*0.03% -> 188.44 | M48: =(K48*N48)-L48 -> 436.6 | N48: 625 | O48: Neutral | P48: 2023-10-06 | S48: H
A49: 10 | B49: 2023-10-05 | D49: OBEROIRLTY OCT FUT | E49: Buy | F49: 1099 | G49: 1085 | H49: 1087 | I49: 1114-1129 | J49: Loss of Rs 12/- | K49: =H49-F49 -> -12 | L49: =(H49*N49)*0.03% -> 228.27 | M49: =(K49*N49)-L49 -> -8628.3 | N49: 700 | O49: Unsuccessful | P49: 2023-10-05 | S49: N
A50: 11 | B50: 2023-10-06 | D50: LUPIN OCT FUT | E50: Buy | F50: 1161 | G50: 1148 | H50: 1161 | I50: 1172-1184 | J50: No Profit No Loss | K50: 0 | L50: 296.06 | M50: -296.1 | N50: 850 | O50: Neutral | P50: 2023-10-09 | S50: N
A51: 12 | B51: 2023-10-06 | D51: HCLTECH OCT FUT | E51: Buy | F51: 1230 | G51: 1215 | H51: 1245 | I51: 1244-1259 | J51: Profit of Rs.15/- | K51: =H51-F51 -> 15 | L51: =(H51*N51)*0.03% -> 261.45 | M51: =(K51*N51)-L51 -> 10238.6 | N51: 700 | O51: Successful | P51: 2023-10-09 | S51: H
A52: 13 | B52: 2023-10-09 | D52: GUJGASLTD OCT FUT | E52: Buy | F52: 419 | G52: 410 | H52: 427.5 | I52: 428-436 | J52: Profit of Rs.8.5/- | K52: =H52-F52 -> 8.5 | L52: =(H52*N52)*0.03% -> 160.31 | M52: =(K52*N52)-L52 -> 10464.7 | N52: 1250 | O52: Successful | P52: 2023-10-10 | S52: N
A53: 14 | B53: 2023-10-10 | D53: DALBHARAT OCT FUT | E53: Sell | F53: 2250 | G53: 2272 | H53: 2252 | I53: 2230-2210 | J53: Loss of Rs.2/- | K53: =F53-H53 -> -2 | L53: 337.80 | M53: -1337.8 | N53: 500 | O53: Neutral | P53: 2023-10-10 | S53: N
A54: 15 | B54: 2023-10-10 | D54: ABBOTINDIA OCT FUT | E54: Buy | F54: 22820 | G54: 22550 | H54: 23050 | I54: 23100-23350 | J54: Profit of Rs.230/- | K54: =H54-F54 -> 230 | L54: =(H54*N54)*0.03% -> 276.60 | M54: =(K54*N54)-L54 -> 8923.4 | N54: 40 | O54: Successful | P54: 2023-10-11 | S54: N
A55: 16 | B55: 2023-10-11 | D55: INDIACEM OCT FUT | E55: Buy | F55: 230.5 | G55: 226.5 | H55: 234.75 | I55: 235-238 | J55: Profit of Rs.4.25/- | K55: =H55-F55 -> 4.25 | L55: =(H55*N55)*0.03% -> 204.23 | M55: =(K55*N55)-L55 -> 12120.8 | N55: 2900 | O55: Successful | P55: 2023-10-11 | S55: N
A56: 17 | B56: 2023-10-11 | D56: AARTIIND OCT FUT | E56: Buy | F56: 485 | G56: 475 | H56: 495.5 | I56: 495-505 | J56: Profit of Rs.10.5/- | K56: =H56-F56 -> 10.5 | L56: =(H56*N56)*0.03% -> 148.65 | M56: =(K56*N56)-L56 -> 10351.4 | N56: 1000 | O56: Successful | P56: 2023-10-16 | S56: N
A57: 18 | B57: 2023-10-12 | D57: BAJFINANCE OCT FUT | E57: Buy | F57: 8092.5 | G57: 8010 | H57: 8010 | I57: 8174-8258 | J57: Loss of Rs 82.5/- | K57: =H57-F57 -> -82.5 | L57: =(H57*N57)*0.03% -> 300.38 | M57: =(K57*N57)-L57 -> -10612.9 | N57: 125 | O57: Unsuccessful | P57: 2023-10-13 | S57: H
A58: 19 | B58: 2023-10-12 | D58: UBL OCT FUT | E58: Buy | F58: 1591 | G58: 1565 | H58: 1569 | I58: 1616-1643 | J58: Loss of Rs 22/- | K58: =H58-F58 -> -22 | L58: =(H58*N58)*0.03% -> 188.28 | M58: =(K58*N58)-L58 -> -8988.3 | N58: 400 | O58: Unsuccessful | P58: 2023-10-16 | S58: N
A59: 20 | B59: 2023-10-13 | D59: LAURUSLABS OCT FUT | E59: Buy | F59: 400 | G59: 394 | H59: 408.5 | I59: 407-413 | J59: Profit of Rs.8.5/- | K59: =H59-F59 -> 8.5 | L59: =(H59*N59)*0.03% -> 208.34 | M59: =(K59*N59)-L59 -> 14241.7 | N59: 1700 | O59: Successful | P59: 2023-10-16 | S59: N
A60: 21 | B60: 2023-10-16 | D60: LAURUSLABS OCT FUT | E60: Buy | F60: 397.5 | G60: 390 | H60: 391 | I60: 407-413 | J60: Loss of Rs 6.5/- | K60: -6.5 | L60: 199.41 | M60: -11249.4 | N60: 1700 | O60: Unsuccessful | P60: 2023-10-20 | S60: N
A61: 22 | B61: 2023-10-16 | D61: IPCALAB OCT FUT | E61: Buy | F61: 958 | G61: 942 | H61: 971 | I61: 974-990 | J61: Profit of Rs.13/- | K61: =H61-F61 -> 13 | L61: =(H61*N61)*0.03% -> 189.35 | M61: =(K61*N61)-L61 -> 8260.7 | N61: 650 | O61: Successful | P61: 2023-10-17 | S61: N
A62: 23 | B62: 2023-10-18 | D62: IRCTC OCT FUT | E62: Buy | F62: 708 | G62: 696 | H62: 696 | I62: 720-732 | J62: Loss of Rs 12/- | K62: -12 | L62: 182.70 | M62: -10682.7 | N62: 875 | O62: Unsuccessful | P62: 2023-10-19 | S62: N
A63: 24 | B63: 2023-10-18 | D63: TATAPOWER OCT FUT | E63: Buy | F63: 254.25 | G63: 250.75 | H63: 251.25 | I63: 258-261 | J63: Loss of Rs 3/- | K63: =H63-F63 -> -3 | L63: =(H63*N63)*0.03% -> 254.39 | M63: =(K63*N63)-L63 -> -10379.4 | N63: 3375 | O63: Unsuccessful | P63: 2023-10-19 | S63: N
A64: 25 | B64: 2023-10-19 | D64: ABBOTINDIA OCT FUT | E64: Buy | F64: 22325 | G64: 22050 | H64: 22560 | I64: 22588-22850 | J64: Profit of Rs.235/- | K64: 235 | L64: 270.72 | M64: 9129.3 | N64: 40 | O64: Successful | P64: 2023-10-19 | S64: N
A65: 26 | B65: 2023-10-19 | D65: ABB OCT FUT | E65: Buy | F65: 4085 | G65: 4045 | H65: 4132 | I65: 4127-4169 | J65: Profit of Rs.47/- | K65: =H65-F65 -> 47 | L65: =(H65*N65)*0.03% -> 309.90 | M65: =(K65*N65)-L65 -> 11440.1 | N65: 250 | O65: Successful | P65: 2023-10-19 | S65: N
A66: 27 | B66: 2023-10-20 | D66: GUJGASLTD NOV FUT | E66: Buy | F66: 419 | G66: 411.5 | H66: 411.5 | I66: 428-436 | J66: Loss of Rs 7.5/- | K66: -7.5 | L66: 154.31 | M66: -9529.3 | N66: 1250 | O66: Unsuccessful | P66: 2023-10-23 | S66: N
A67: 28 | B67: 2023-10-20 | D67: ABB NOV FUT | E67: Buy | F67: 4085 | G67: 4045 | H67: 4045 | I67: 4127-4169 | J67: Loss of Rs 40/- | K67: =H67-F67 -> -40 | L67: =(H67*N67)*0.03% -> 303.38 | M67: =(K67*N67)-L67 -> -10303.4 | N67: 250 | O67: Unsuccessful | P67: 2023-10-20 | S67: N
A68: 29 | B68: 2023-10-23 | D68: TATAMOTORS NOV FUT | E68: Buy | F68: 666 | G68: 659 | H68: 659 | I68: 673-681 | J68: Loss of Rs 7/- | K68: -7 | L68: 281.72 | M68: -10256.7 | N68: 1425 | O68: Unsuccessful | P68: 2023-10-23 | S68: H
A69: 30 | B69: 2023-10-26 | D69: ABBOTINDIA NOV FUT | E69: Buy | F69: 22325 | G69: 22050 | H69: 22500 | I69: 22588-22850 | J69: Profit of Rs.175/- | K69: =H69-F69 -> 175 | L69: =(H69*N69)*0.03% -> 270.00 | M69: =(K69*N69)-L69 -> 6730.0 | N69: 40 | O69: Successful | P69: 2023-10-26 | S69: N
A70: 31 | B70: 2023-10-27 | D70: DIXON NOV FUT | E70: Buy | F70: 5455 | G70: 5355 | H70: 5355 | I70: 5560-5665 | J70: Loss of Rs 100/- | K70: -100 | L70: 160.65 | M70: -10160.7 | N70: 100 | O70: Unsuccessful | P70: 2023-10-27 | S70: N
A71: 32 | B71: 2023-10-30 | D71: ABBOTINDIA NOV FUT | E71: Buy | F71: 22600-22650 | G71: 22350 | I71: 22888-23150 | J71: Open | S71: N
A72: 33 | B72: 2023-10-31 | D72: LUPIN NOV FUT | E72: Buy | F72: 1136 | G72: 1124 | H72: 1146 | I72: 1148-1161 | J72: Profit of Rs.10/- | K72: =H72-F72 -> 10 | L72: =(H72*N72)*0.03% -> 292.23 | M72: =(K72*N72)-L72 -> 8207.8 | N72: 850 | O72: Successful | P72: 2023-10-31 | S72: N
A77: Master Trade Medium Risk
A78: Sr.no | B78: Date | D78: Company | E78: Rec | F78: Rec Price | G78: Stop Loss | H78: Call Closed At | I78: Target | J78: Remark | K78: Profit/ Loss per lot | L78: All charges | M78: Gain / Loss per Lot | N78: Lot | O78: Status | P78: Closed Date
A79: 1 | B79: 2023-09-29 | D79: NIFTY 18900 PE 26-OCT | E79: Sell | F79: 51 | H79: 46 | J79: Profit of Rs.20/- | K79: =F79-H79 -> 5 | L79: 50.00 | M79: 900.0 | N79: 50 | O79: Successful | P79: 2023-10-03 | S79: H
D80: NIFTY 20200 CE 26-OCT | E80: Sell | F80: 47 | H80: 32 | K80: =F80-H80 -> 15 | L80: 50.00 | N80: 50
A81: 2 | B81: 2023-09-29 | D81: BANKNIFTY 44600 PE 04-OCT | E81: Buy | F81: 175 | H81: 325 | J81: Profit of Rs.60/- | K81: =H81-F81 -> 150 | L81: 50.00 | M81: 800.0 | N81: 15 | O81: Successful | P81: 2023-10-03 | S81: N
D82: BANKNIFTY 44400 PE 04-OCT | E82: Sell | F82: 115 | H82: 205 | K82: =F82-H82 -> -90 | L82: 50.00 | N82: 15 | O82: Successful
A83: 3 | B83: 2023-09-29 | D83: FINNIFTY 19850 CE 03-OCT | E83: Sell | F83: 64 | H83: 10 | J83: Loss of Rs.0.5/- | K83: =F83-H83 -> 54 | L83: 50.00 | M83: -120.0 | N83: 40 | O83: Unsuccessful | P83: 2023-10-03 | S83: H
D84: FINNIFTY 19850 PE 03-OCT | E84: Sell | F84: 45.5 | H84: 100 | K84: =F84-H84 -> -54.5 | L84: 50.00 | N84: 40
A85: 4 | B85: 2023-10-03 | D85: FINNIFTY 19700 CE 03-OCT | E85: Buy | F85: 24 | H85: 35 | J85: Loss of Rs.7/- | K85: 11 | L85: 50.00 | M85: -380.0 | N85: 40 | O85: Unsuccessful | P85: 2023-10-03 | S85: N
D86: FINNIFTY 19850 PE 03-OCT | E86: Buy | F86: 33 | H86: 15 | K86: -18 | L86: 50.00 | N86: 40 | O86: Unsuccessful
A87: 5 | B87: 2023-10-05 | D87: BANKNIFTY 44100 PE 18-OCT | E87: Buy | F87: 292.5 | H87: 435 | J87: Profit of Rs.60/- | K87: =H87-F87 -> 142.5 | L87: 50.00 | M87: 800.0 | N87: 15 | O87: Successful | P87: 2023-10-09 | S87: N
D88: BANKNIFTY 43800 PE 11-OCT | E88: Sell | F88: 107.5 | H88: 190 | K88: =F88-H88 -> -82.5 | L88: 50.00 | N88: 15 | O88: Successful
A89: 6 | B89: 2023-10-06 | D89: FINNIFTY 19750 PE 10-OCT | E89: Buy | F89: 80 | H89: 105 | J89: Profit of Rs.17.5/- | K89: =H89-F89 -> 25 | L89: 50.00 | M89: 600.0 | N89: 40 | O89: Successful | P89: 2023-10-09 | S89: H
D90: FINNIFTY 19650 PE 10-OCT | E90: Sell | F90: 45 | H90: 52.5 | K90: =F90-H90 -> -7.5 | L90: 50.00 | N90: 40 | O90: Successful
A91: 7 | B91: 2023-10-09 | D91: NIFTY 19500 CE 12-OCT | E91: Buy | F91: 94 | H91: 151 | J91: Profit of Rs.26.5/- | K91: =H91-F91 -> 57 | L91: 50.00 | M91: 1225.0 | N91: 50 | O91: Successful | P91: 2023-10-10 | S91: H
D92: NIFTY 19600 CE 12-OCT | E92: Sell | F92: 52 | H92: 82.5 | K92: =F92-H92 -> -30.5 | L92: 50.00 | N92: 50 | O92: Successful
A93: 8 | B93: 2023-10-09 | D93: FINNIFTY 19650 CE 10-Oct | E93: Buy | F93: 22 | G93: 0 | H93: 47.5 | I93: 45-65 | J93: Profit of Rs.25.5/- | K93: =H93-F93 -> 25.5 | L93: 50.00 | M93: =(K93*N93)-L93 -> 970.0 | N93: 40 | O93: Successful | P93: 2023-10-10 | S93: N
A94: 9 | B94: 2023-10-10 | D94: FINNIFTY 19750 PE 10-OCT | E94: Buy | F94: 18 | H94: 0 | J94: Loss of Rs.8/- | K94: =H94-F94 -> -18 | L94: 25.00 | M94: -370.0 | N94: 40 | O94: Unsuccessful | P94: 2023-10-10 | S94: N
D95: FINNIFTY 19700 PE 10-OCT | E95: Sell | F95: 10 | H95: 0 | K95: =F95-H95 -> 10 | L95: 25.00 | N95: 40
A96: 10 | B96: 2023-10-10 | D96: NIFTY 19700 CE 12-OCT | E96: Sell | F96: 78 | H96: 118 | J96: Profit of Rs.13/- | K96: =F96-H96 -> -40 | L96: 50.00 | M96: 550.0 | N96: 50 | O96: Successful | P96: 2023-10-11 | S96: H
D97: NIFTY 19700 PE 12-OCT | E97: Sell | F97: 73 | H97: 20 | K97: =F97-H97 -> 53 | L97: 50.00 | N97: 50
A98: 11 | B98: 2023-10-11 | D98: FINNIFTY 20000 CE 17-OCT | E98: Buy | F98: 89 | G98: 65 | H98: 71 | I98: 115-140 | J98: Loss of Rs.18/- | K98: =H98-F98 -> -18 | L98: 50.00 | M98: =(K98*N98)-L98 -> -770.0 | N98: 40 | O98: Unsuccessful | P98: 2023-10-11 | S98: N
A99: 12 | B99: 2023-10-13 | D99: TATAMOTORS 670 CE OCT | E99: Buy | F99: 11.75 | H99: 17 | J99: Profit of Rs.1.25/- | K99: 1.25 | L99: 50.00 | M99: 1681.3 | N99: 1425 | O99: Successful | P99: 2023-10-16 | S99: H
D100: TATAMOTORS 680 CE OCT | E100: Sell | F100: 8 | H100: 12 | L100: 50.00 | N100: 1425
A101: 13 | B101: 2023-10-18 | D101: BANKNIFTY 44300 CE 18-OCT | E101: Buy | F101: 62.5 | G101: 0 | H101: 120 | I101: 120-160 | J101: Profit of Rs.57.5/- | K101: =H101-F101 -> 57.5 | L101: 50.00 | M101: =(K101*N101)-L101 -> 812.5 | N101: 15 | O101: Successful | P101: 2023-10-18 | S101: N
A102: 14 | B102: 2023-10-18 | D102: BANKNIFTY 43900 CE 18-OCT | E102: Buy | F102: 60 | G102: 0 | H102: 25 | I102: 120-180 | J102: Loss of Rs.35/- | K102: -35 | L102: 50.00 | M102: -575.0 | N102: 15 | O102: Unsuccessful | P102: 2023-10-18 | S102: H
A103: 15 | B103: 2023-10-19 | D103: NIFTY 19650 PE 19-OCT | E103: Buy | F103: 19 | G103: 0 | H103: 20 | I103: 40-60 | J103: Profit of Rs.1/- | K103: =H103-F103 -> 1 | L103: 50.00 | M103: =(K103*N103)-L103 -> 0.0 | N103: 50 | O103: Neutral | P103: 2023-10-19 | S103: N
A104: 16 | B104: 2023-10-19 | D104: BANKNIFTY 44000 CE 26-OCT | E104: Buy | F104: 285 | H104: 0 | J104: Loss of Rs.180/- | K104: -285 | L104: 25.00 | M104: -2750.0 | N104: 15 | O104: Unsuccessful | P104: 2023-10-26 | S104: H
D105: BANKNIFTY 44500 CE 26-OCT | E105: Sell | F105: 105 | H105: 0 | K105: =F105-H105 -> 105 | L105: 25.00 | N105: 15
A106: 17 | B106: 2023-10-20 | D106: FINNIFTY 19550 PE 23-OCT | E106: Buy | F106: 52.5 | G106: 10 | H106: 52.5 | I106: 80-110 | J106: No Profit No Loss | K106: =H106-F106 -> 0 | L106: 50.00 | M106: =(K106*N106)-L106 -> -50.0 | N106: 40 | O106: Neutral | P106: 2023-10-20 | S106: N
A107: 18 | B107: 2023-10-20 | D107: FINNIFTY 19700 CE 23-OCT | E107: Sell | F107: 29 | H107: 16 | J107: Profit of Rs. 43/- | K107: =F107-H107 -> 13 | L107: 50.00 | M107: =(43*40)-100 -> 1620.0 | N107: 40 | O107: Successful | P107: 2023-10-23 | S107: N
D108: FINNIFTY19500 PE 23-OCT | E108: Sell | F108: 34 | H108: 4 | K108: =F108-H108 -> 30 | L108: 50.00 | N108: 40
A109: 19 | B109: 2023-10-25 | D109: FINNIFTY 19500 CE 31-OCT | E109: Buy | F109: 112.5 | H109: 0 | J109: Loss of Rs.64.5/- | K109: =H109-F109 -> -112.5 | L109: 25.00 | M109: =(K109*N109)-L109 -> -4525.0 | N109: 40 | O109: Unsuccessful | P109: 2023-10-31 | S109: N
D110: FINNIFTY19700 CE 31-OCT | E110: Sell | F110: 48 | H110: 0 | K110: =F110-H110 -> 48 | L110: 25.00 | M110: 1895.0 | N110: 40
A111: 20 | B111: 2023-10-26 | D111: NIFTY 19000 CE 02-NOV | E111: Buy | F111: 122 | H111: 148 | J111: Profit of Rs.25/- | K111: =H111-F111 -> 26 | L111: 50.00 | M111: 1150.0 | N111: 50 | O111: Successful | P111: 2023-10-27 | S111: H
D112: NIFTY 19200 CE 02-NOV | E112: Sell | F112: 50 | H112: 51 | K112: =F112-H112 -> -1 | L112: 50.00 | N112: 50
A113: 21 | B113: 2023-10-26 | D113: NIFTY 18850 CE 26-OCT | E113: Buy | F113: 17 | H113: 8.5 | J113: Loss of Rs.750/- | K113: =H113-F113 -> -8.5 | L113: 50.00 | M113: =(K113*N113)-L113 -> -475.0 | N113: 50 | O113: Unsuccessful | P113: 2023-10-26 | S113: N
D114: NIFTY 18900 PE 26-OCT | E114: Buy | F114: 47 | H114: 42.5 | K114: -4.5 | L114: 50.00 | M114: -275.0 | N114: 50
A115: 22 | B115: 2023-10-26 | D115: TATAMOTORS 640 CE 30-NOV | E115: Buy | F115: 18 | H115: 23.25 | J115: Profit of Rs.3/- | K115: 3 | L115: 50.00 | M115: 4175.0 | N115: 1425 | O115: Successful | P115: 2023-10-27 | S115: H
D116: TATAMOTORS 670 CE 30-NOV | E116: Sell | F116: 9 | H116: 11.25 | L116: 50.00 | N116: 1425
A117: 23 | B117: 2023-10-27 | D117: NIFTY 18950 PE 02-NOV | E117: Buy | F117: 59-61 | S117: H
A118: 24 | B118: 2023-10-27 | D118: NIFTY 18850 PE 02-NOV (2 Lots) | E118: Sell | F118: 37 | H118: 24 | P118: 2023-10-30
A119: 25 | B119: 2023-10-30 | D119: TATAMOTORS 640 CE 30-NOV | E119: Buy | F119: 15 | H119: 20.5 | J119: Profit of Rs.3/- | K119: =H119-F119 -> 5.5 | L119: 50.00 | M119: 4175.0 | N119: 1425 | O119: Successful | P119: 2023-10-31 | S119: H
D120: TATAMOTORS 670 CE 30-NOV | E120: Sell | F120: 7 | H120: 9.5 | K120: =F120-H120 -> -2.5 | L120: 50.00 | N120: 1425
A121: 26 | B121: 2023-10-30 | D121: TCS 3400 CE 30-NOV | E121: Buy | F121: 57 | J121: Open | S121: H
D122: TCS 3480 CE 30-NOV | E122: Sell | F122: 27
A123: 27 | B123: 2023-10-30 | D123: FINNIFTY 19300 CE 31-OCT | E123: Sell | F123: 27 | H123: 60 | J123: Loss of Rs.16/- | K123: =F123-H123 -> -33 | L123: 50.00 | M123: -740.0 | N123: 40 | O123: Unsuccessful | P123: 2023-10-31 | S123: N
D124: FINNIFTY 19100 PE 31-OCT | E124: Sell | F124: 19 | H124: 2 | K124: =F124-H124 -> 17 | L124: 50.00 | N124: 40
A125: 28 | B125: 2023-10-31 | D125: BANKNIFTY 42500 PE 1-NOV | E125: Sell | F125: 59 | G125: 105 | H125: 25 | I125: 0.1 | J125: Profit of Rs.34/- | K125: =F125-H125 -> 34 | L125: 50.00 | M125: =(K125*N125)-L125 -> 460.0 | N125: 15 | O125: Successful | P125: 2023-10-31 | S125: H
A126: 29 | B126: 2023-10-31 | D126: TATAMOTORS 640 CE 30-NOV | E126: Buy | F126: 17-18 | J126: Open | S126: H
D127: TATAMOTORS 670 CE 30-NOV | E127: Sell | F127: 08-09
A132: Techno -Funda (positional)
A133: Sr.no | B133: Date | D133: Company | E133: Rec | F133: Rec Price | G133: Stop Loss*** | H133: Call Closed At | I133: Target | J133: Remark | K133: Profit / Loss per Share/Lot | L133: All charges | M133: Net Gain / Loss % | N133: Status | O133: Closed Date | P133: Market Closing Price | Q133: Second Buying Date
A134: 1 | B134: 2023-08-31 | D134: LATENTVIEW | E134: Buy | F134: 380-425 | G134: 350 | I134: 500-550 | J134: Open | S134: H
A135: 2 | B135: 2023-09-04 | D135: LTIM | E135: Buy | F135: 5020-5270 | G135: 4790 | I135: 5700-6000 | J135: Open | Q135: 2023-10-18 | S135: H
A138: CLBS = Closing Basis *** | F138: Reinitiated $
A139: Dividend adjusted <> | F139: Revised stoploss # | H139: .................
B148: Investment Idea
A149: Sr.no | B149: Date | D149: Company | E149: Rec | F149: Rec Price | G149: Point of Review | H149: Close Rate | I149: Target | J149: Remark | K149: Profit / Loss per Share | L149: Gain / Loss % | M149: Status | N149: Closed Date
A150: 1 | B150: 2013-11-01 | D150: L&T Finance Holding | E150: Accu | F150: 82.00 | G150: - | H150: 100 | I150: 100.00 | J150: Target Achieved | K150: =H150-F150 -> 18.00 | L150: =K150/F150 -> 21.95% | M150: Successful | N150: 2016-10-14
A151: 2 | B151: 2014-06-04 | D151: Finolex Inds | E151: Buy | F151: 257.00 | G151: - | H151: 300 | I151: 300.00 | J151: Target Achieved | K151: 43.00 | L151: 16.73% | M151: Successful | N151: 2014-07-02
A152: 3 | B152: 2014-07-08 | D152: JK Cement | E152: Buy | F152: 393.00 | G152: - | H152: 468 | I152: 468.00 | J152: Target Achieved | K152: 75.00 | L152: 19.08% | M152: Successful | N152: 2014-08-12
A153: 4 | B153: 2014-08-06 | D153: Finolex Cables | E153: Buy | F153: 205.00 | G153: - | H153: 275 | I153: 250.00 | J153: Target Achieved | K153: 70.00 | L153: 34.15% | M153: Successful | N153: 2014-11-19
A154: 5 | B154: 2014-09-04 | D154: Exide Inds | E154: Buy | F154: 162.00 | G154: - | H154: 190 | I154: 190.00 | J154: Target Achieved | K154: 28.00 | L154: 17.28% | M154: Successful | N154: 2015-01-02
A155: 6 | B155: 2014-09-04 | D155: Deepak Nitrite | E155: Buy | F155: 75.00 | G155: - | H155: 91.5 | I155: 95-100 | J155: Profit of Rs.16.50/- | K155: 16.50 | L155: 22.00% | M155: Successful | N155: 2014-11-11
A156: 7 | B156: 2014-10-01 | D156: Mercks | E156: Buy | F156: 850.00 | G156: - | H156: 982.5 | I156: 1050.00 | J156: Profit of Rs.132.50/- | K156: 132.50 | L156: 15.59% | M156: Successful | N156: 2015-02-04
A157: 8 | B157: 2014-10-01 | D157: Grindwell Norton | E157: Buy | F157: 475.00 | G157: - | H157: 515 | I157: 600.00 | J157: Profit of Rs.40/- | K157: 40.00 | L157: 8.42% | M157: Successful | N157: 2014-10-27
A158: 9 | B158: 2014-10-01 | D158: Snowman Logistics | E158: Buy | F158: 86.00 | G158: - | H158: 99 | I158: 140.00 | J158: Profit of Rs.13.00/- | K158: 13.00 | L158: 15.12% | M158: Successful | N158: 2014-10-27
A159: 10 | B159: 2014-10-14 | D159: Birla Corp | E159: Buy | F159: 496.60 | G159: - | H159: 621 | I159: 580.00 | J159: Target Achieved | K159: 124.40 | L159: 25.05% | M159: Successful | N159: 2016-08-23
A160: 11 | B160: 2014-10-14 | D160: Ultratech Cem | E160: Buy | F160: 2481.90 | G160: - | H160: 2840 | I160: 2870.00 | J160: Profit of Rs.358.10/- | K160: 358.10 | L160: 14.43% | M160: Successful | N160: 2015-01-13
A161: 12 | B161: 2014-10-16 | D161: Sintex Inds | E161: Buy | F161: 84.50 | G161: - | H161: 93 | I161: 110.00 | J161: Profit of Rs.8.50/- | K161: 8.50 | L161: 10.06% | M161: Successful | N161: 2014-10-27
A162: 13 | B162: 2014-10-16 | D162: HSIL | E162: Buy | F162: 401.00 | G162: - | H162: 428 | I162: 450.00 | J162: Profit of Rs.27.00/- | K162: 27.00 | L162: 6.73% | M162: Successful | N162: 2015-01-16
A163: 14 | B163: 2014-10-16 | D163: Eveready Inds | E163: Buy | F163: 101.00 | G163: - | H163: 112 | I163: 120.00 | J163: Profit of Rs.11.00/- | K163: 11.00 | L163: 10.89% | M163: Successful | N163: 2014-10-27
A164: 15 | B164: 2014-11-11 | D164: Pennar Inds | E164: Buy | F164: 59.00 | G164: - | H164: 76 | I164: 76.00 | J164: Target Achieved | K164: 17.00 | L164: 28.81% | M164: Successful | N164: 2017-10-24
A165: 16 | B165: 2014-11-11 | D165: Snowman Logistics | E165: Buy | F165: 99.00 | G165: - | H165: 120 | I165: 120.00 | J165: Profit of Rs.21/- | K165: 21.00 | L165: 21.21% | M165: Successful | N165: 2014-11-17
A166: 17 | B166: 2014-11-13 | D166: Dharamsi Morarji Chem | E166: Buy | F166: 22.00 | G166: - | H166: 33.55 | I166: 32.00 | J166: Profit of Rs 11.55/- | K166: 11.55 | L166: 52.50% | M166: Successful | N166: 2015-07-03
A167: 18 | B167: 2014-12-03 | D167: Tatachem | E167: Buy | F167: 440.00 | G167: - | H167: 520 | I167: 520.00 | J167: Profit of Rs 80.00/- | K167: 80.00 | L167: 18.18% | M167: Successful | N167: 2015-07-23
A168: 19 | B168: 2014-12-03 | D168: Advanta | E168: Buy | F168: 360.00 | G168: - | H168: 427 | I168: 425.00 | J168: Profit of Rs.67.00/- | K168: 67.00 | L168: 18.61% | M168: Successful | N168: 2015-02-23
A169: 20 | B169: 2015-01-08 | D169: GDL | E169: Buy | F169: 360.00 | G169: - | H169: 455 | I169: 420.00 | J169: Profit of Rs.95.00/- | K169: 95.00 | L169: 26.39% | M169: Successful | N169: 2015-01-20
A170: 21 | B170: 2015-01-08 | D170: NRB Bearing | E170: Buy | F170: 130.00 | H170: 175.5 | I170: 165.00 | J170: Profit of Rs 45.50/- | K170: 45.50 | L170: 35.00% | M170: Successful | N170: 2017-12-19
A171: 22 | B171: 2015-02-05 | D171: GSFC | E171: Accu | F171: 98.00 | H171: 120 | I171: 120.00 | J171: Target Achieved | K171: 22.00 | L171: 22.45% | M171: Successful | N171: 2017-01-18
A172: 23 | B172: 2015-02-05 | D172: Sundrmfast | E172: Accu | F172: 196.00 | H172: 262 | I172: 255.00 | J172: Target Achieved | K172: 66.00 | L172: 33.67% | M172: Successful | N172: 2016-08-17
A173: 24 | B173: 2015-03-04 | D173: GPPL | E173: Accu | F173: 235 | H173: 77.00 | I173: 280-285 | J173: Loss of Rs.158/- | K173: -158.00 | L173: -67.23% | M173: Unsuccessful | N173: 2019-02-26
A174: 25 | B174: 2015-03-04 | D174: ORIENTCEM | E174: Accu | F174: 185.00 | H174: 224 | I174: 220-225 | J174: Target Achieved | K174: 39.00 | L174: 21.08% | M174: Successful | N174: 2016-10-04
A175: 26 | B175: 2015-03-27 | D175: PFS | E175: Accu | F175: 49.5 | H175: 15.85 | I175: 67.00 | J175: Loss of Rs.33.65/- | K175: -33.65 | L175: -68% | M175: Unsuccessful | N175: 2019-06-11
A176: 27 | B176: 2015-03-30 | D176: Walchandnagar Ind Ltd | E176: Accu | F176: 183.50 | H176: 219 | I176: 218.00 | J176: Profit of Rs.35.50/- | K176: 35.50 | L176: 19.35% | M176: Successful | N176: 2015-04-09
A177: 28 | B177: 2015-04-20 | D177: Kalpataru Power Transmission Ltd | E177: Accu | F177: =(227+237)/2 -> 232.00 | H177: 298 | I177: 298.00 | J177: Target Achieved | K177: 66.00 | L177: 28.45% | M177: Successful | N177: 2017-03-29
A178: 29 | B178: 2015-05-04 | D178: Mastek Ltd | E178: Buy | F178: 385.00 | H178: =212.5+331 -> 543.5 | I178: 510.00 | J178: Profit of Rs 158.50/- | K178: 158.50 | L178: 41.17% | M178: Successful | N178: 2015-08-19
A179: 30 | B179: 2015-05-04 | D179: Suprajit Eng | E179: Buy | F179: 115.50 | H179: 146 | I179: 142.00 | J179: Profit of Rs 30.50/- | K179: 30.50 | L179: 26.41% | M179: Successful | N179: 2015-07-17
A180: 31 | B180: 2015-05-27 | D180: TCI | E180: Buy | F180: 237.50 | H180: 279.5 | I180: 278.00 | J180: Target Achieved | K180: 42.00 | L180: 17.68% | M180: Successful | N180: 2015-08-06
A181: 32 | B181: 2015-06-19 | D181: HSIL | E181: Accu | F181: 340.00 | H181: 448 | I181: 448.00 | J181: Target Achieved | K181: 108.00 | L181: 31.76% | M181: Successful | N181: 2017-10-10
A182: 33 | B182: 2015-07-06 | D182: Capital First | E182: Accu | F182: 390.00 | H182: 460 | I182: 460.00 | J182: Target Achieved | K182: 70.00 | L182: 17.95% | M182: Successful | N182: 2016-04-18
A183: 34 | B183: 2015-07-10 | D183: Dolphin OffShore | E183: Accu | F183: 122.5 | H183: 61.00 | I183: 172.00 | J183: Loss of Rs.61.50/- | K183: -61.50 | L183: -50.20% | M183: Unsuccessful | N183: 2018-08-21
A184: 35 | B184: 2015-08-03 | D184: Allcargo logistics | E184: Accu | F184: 297.50 | H184: 350 | I184: 360.00 | J184: Profit of Rs 52.50/- | K184: 52.50 | L184: 17.65% | M184: Successful | N184: 2015-08-16
A185: 36 | B185: 2015-08-03 | D185: Camline Fine | E185: Accu | F185: 115.50 | H185: 149 | I185: 140.00 | J185: Profit of Rs 33.50/- | K185: 33.50 | L185: 29.00% | M185: Successful | N185: 2017-01-05
A186: 37 | B186: 2015-09-04 | D186: TCI | E186: Accu | F186: 226.00 | H186: 292 | I186: 292.00 | J186: Target Achieved | K186: 66.00 | L186: 29.20% | M186: Successful | N186: 2015-10-09
A187: 38 | B187: 2015-09-07 | D187: Kalpataru Power Transmission Ltd | E187: Accu | F187: 232.50 | H187: 312.5 | I187: 310.00 | J187: Target Achieved | K187: 80.00 | L187: 34.41% | M187: Successful | N187: 2017-03-29
A188: 39 | B188: 2015-09-21 | D188: LLOYD ELECTRIC & ENG LTD | E188: Accu | F188: 196.50 | H188: 238 | I188: 238.00 | J188: Target Achieved | K188: 41.50 | L188: 21.12% | M188: Successful | N188: 2015-10-14
A189: 40 | B189: 2015-09-24 | D189: L&T Finance Holding | E189: Accu | F189: 65.00 | H189: 82 | I189: 82.00 | J189: Target Achieved | K189: 17.00 | L189: 26.15% | M189: Successful | N189: 2016-07-27
A190: 41 | B190: 2015-10-14 | D190: KEC International ltd | E190: Accu | F190: 144.00 | H190: 182.5 | I190: 181.00 | J190: Target Achieved | K190: 38.50 | L190: 26.74% | M190: Successful | N190: 2017-03-23
A191: 42 | B191: 2015-10-14 | D191: Gruh Finance | E191: Accu | F191: 264.00 | H191: 311 | I191: 311.00 | J191: Target Achieved | K191: 47.00 | L191: 17.80% | M191: Successful | N191: 2016-08-22
A192: 43 | B192: 2015-11-10 | D192: Pidilitind | E192: Buy | F192: 549.50 | H192: 630 | I192: 630.00 | J192: Target Achieved | K192: 80.50 | L192: 14.65% | M192: Successful | N192: 2016-02-19
A193: 44 | B193: 2015-12-04 | D193: Zensar Technology | E193: Accu | F193: 1027.50 | H193: 1315 | I193: 1250.00 | J193: Target Achieved | K193: 287.50 | L193: 27.98% | M193: Successful | N193: 2018-05-24
A194: 45 | B194: 2015-12-29 | D194: Vinati Organics Ltd | E194: Accu | F194: 465.00 | H194: 540 | I194: 540.00 | J194: Target Achieved | K194: 75.00 | L194: 16.13% | M194: Successful | N194: 2016-06-09
A195: 46 | B195: 2016-01-11 | D195: GSFC | E195: Buy | F195: 81.00 | H195: 110 | I195: 110.00 | J195: Target Achieved | K195: 29.00 | L195: 35.80% | M195: Successful | N195: 2017-01-10
A196: 47 | B196: 2016-01-13 | D196: SSWL | E196: Buy | F196: 417.50 | H196: 547 | I196: 535.00 | J196: Target Achieved | K196: 129.50 | L196: 31.02% | M196: Successful | N196: 2016-07-27
A197: 48 | B197: 2016-02-08 | D197: Persistent System Ltd | E197: Accu | F197: 650.00 | H197: 800 | I197: 800.00 | J197: Target Achieved | K197: 150.00 | L197: 23.08% | M197: Successful | N197: 2018-02-23
A198: 49 | B198: 2016-03-04 | D198: UPL | E198: Accu | F198: 437.50 | H198: 504.5 | I198: 522.00 | J198: Profit of Rs.67/- | K198: 67.00 | L198: 15.31% | M198: Successful | N198: 2016-04-20
A199: 50 | B199: 2016-03-09 | D199: Ashoka Buildcon Ltd | E199: Accu | F199: 189.50 | H199: 218 | I199: 218.00 | J199: Target Achieved | K199: 28.50 | L199: 15.04% | M199: Successful | N199: 2017-10-26
A200: 51 | B200: 2016-04-11 | D200: PTC INDIA FIN SERV LTD | E200: Accu | F200: 36.5 | H200: 15.85 | I200: 60.00 | J200: Loss of Rs.20.65/- | K200: -20.65 | L200: -56.58% | M200: Unsuccessful | N200: 2019-06-11
A201: 52 | B201: 2016-04-12 | D201: CAMLINFINE $ | E201: Accu | F201: 93.00 | H201: 149 | I201: 140.00 | J201: Profit of Rs 56/- | K201: 56.00 | L201: 60.22% | M201: Successful | N201: 2017-01-05
A202: 53 | B202: 2016-04-12 | D202: Greaves Cotton Ltd. | E202: Accu | F202: 130.00 | H202: 150 | I202: 150-155 | J202: Target Achieved | K202: 20.00 | L202: 15.38% | M202: Successful | N202: 2016-07-13
A203: 54 | B203: 2016-04-13 | D203: DHFL | E203: Accu | F203: 196.00 | H203: 299 | I203: 299.00 | J203: Target Achieved | K203: 103.00 | L203: 52.55% | M203: Successful | N203: 2016-09-07
A204: 55 | B204: 2016-04-13 | D204: Magma | E204: Accu | F204: 88.00 | H204: 103 | I204: 103.00 | J204: Target Achieved | K204: 15.00 | L204: 17.05% | M204: Successful | N204: 2016-06-09
A205: 56 | B205: 2016-05-02 | D205: KEC International ltd $ | E205: Accu | F205: 127.50 | H205: 148 | I205: 148-150 | J205: Target Achieved | K205: =H205-F205 -> 20.50 | L205: =K205/F205 -> 16.08% | M205: Successful | N205: 2016-07-13
A206: 57 | B206: 2016-05-03 | D206: Mindtree | E206: Accu | F206: 675.00 | H206: 815 | I206: 790-800 | J206: Target Achieved | K206: 140.00 | L206: 20.74% | M206: Successful | N206: 2018-02-23
A207: 58 | B207: 2016-06-01 | D207: Atulauto | E207: Accu | F207: 500 | H207: 232.50 | I207: 565-570 | J207: Loss of Rs.267.50 /- | K207: -267.50 | L207: -53.50% | M207: Unsuccessful | N207: 2019-09-27
A208: 59 | B208: 2016-06-06 | D208: TRITURBINE | E208: Accu | F208: 110.00 | H208: 126.5 | I208: 125.00 | J208: Profit of Rs.16.50/- | K208: 16.50 | L208: 15.00% | M208: Successful | N208: 2016-07-01
A209: 60 | B209: 2016-06-17 | D209: Pennar Industries Ltd | E209: Accu | F209: 44.00 | H209: 69.5 | I209: 69.50 | J209: Profit of Rs.25.50/- | K209: 25.50 | L209: 57.95% | M209: Successful | N209: 2017-08-30
A210: 61 | B210: 2016-06-28 | D210: EVEREADY | E210: Accu | F210: 262.50 | H210: 340 | I210: 333.00 | J210: Profit of Rs.77.50/- | K210: 77.50 | L210: 29.52% | M210: Successful | N210: 2017-10-09
A211: 62 | B211: 2016-06-28 | D211: FIEMIND | E211: Accu | F211: 840.00 | H211: 1230 | I211: 1230.00 | J211: Target Achieved | K211: 390.00 | L211: 46.43% | M211: Successful | N211: 2016-10-06
A212: 63 | B212: 2016-07-05 | D212: Bajaj Corp Ltd | E212: Accu | F212: 395 | H212: =(468.5+342.5)/2 -> 405.50 | I212: 510.00 | J212: Profit of Rs.10.50/- | K212: =H212-F212 -> 10.50 | L212: =K212/F212 -> 3% | M212: Neutral | N212: 2019-05-21
A213: 64 | B213: 2016-08-02 | D213: GPPL $ | E213: Buy | F213: =169.5-12.8 -> 156.7 | H213: 77.00 | I213: 198-200 | J213: Loss of Rs.79.7/- | K213: -79.70 | L213: -50.86% | M213: Unsuccessful | N213: 2019-02-26
A214: 65 | B214: 2016-08-04 | D214: WONDERLA HOLIDAYS LTD | E214: Accu | F214: 400 | H214: 305.00 | I214: 475.00 | J214: Loss of Rs.95/- | K214: -95.00 | L214: -23.75% | M214: Unsuccessful | N214: 2019-05-21
A215: 66 | B215: 2016-08-11 | D215: CAMLINFINE | E215: Accu | F215: 86.50 | H215: 130 | I215: 130.00 | J215: Profit of Rs.43.50/- | K215: 43.50 | L215: 50.29% | M215: Successful | N215: 2017-12-22
A216: 67 | B216: 2016-08-18 | D216: GRANULES | E216: Accu | F216: 133.5 | H216: 126.50 | I216: 178.00 | J216: Exit | K216: -7.00 | L216: -5.24% | M216: Unsuccessful | N216: 2016-09-02
A217: 68 | B217: 2016-08-31 | D217: VA TECH WABAG | E217: Accu | F217: 560.00 | H217: 725 | I217: 725.00 | J217: Target Achieved | K217: 165.00 | L217: 29.46% | M217: Successful | N217: 2016-03-27
A218: 69 | B218: 2016-09-01 | D218: SKIPPER LIMITED | E218: Accu | F218: 160.50 | H218: 210 | I218: 210.00 | J218: Target Achieved | K218: 49.50 | L218: 30.84% | M218: Successful | N218: 2017-05-16
A219: 70 | B219: 2016-10-03 | D219: IFBIND | E219: Accu | F219: 430.00 | H219: 596 | I219: 575.00 | J219: Profit of Rs.166/- | K219: 166.00 | L219: 38.60% | M219: Successful | N219: 2017-02-03
A220: 71 | B220: 2016-10-14 | D220: ASIANTILES | E220: Accu | F220: 280.00 | H220: 345 | I220: 345.00 | J220: Target Achieved | K220: =H220-F220 -> 65.00 | L220: =K220/F220 -> 23.21% | M220: Successful | N220: 2017-03-20
A221: 72 | B221: 2016-10-14 | D221: DEEPIND | E221: Accu | F221: 245.00 | H221: 325.5 | I221: 330.00 | J221: Profit of Rs.80.5/- | K221: 80.50 | L221: 32.86% | M221: Successful | N221: 2017-02-03
A222: 73 | B222: 2016-10-17 | D222: DCBBANK | E222: Accu | F222: 125.00 | H222: 160 | I222: 160.00 | J222: Target Achieved | K222: 35.00 | L222: 28.00% | M222: Successful | N222: 2017-03-09
A223: 74 | B223: 2016-10-17 | D223: ORIENTREF | E223: Accu | F223: 114.00 | H223: 145 | I223: 145.00 | J223: Target Achieved | K223: 31.00 | L223: =K223/F223 -> 27.19% | M223: Successful | N223: 2017-05-04
A224: 75 | B224: 2016-10-17 | D224: GANECOS | E224: Accu | F224: 212.00 | H224: 280 | I224: 276.00 | J224: Profit of Rs.68/- | K224: 68.00 | L224: 32.08% | M224: Successful | N224: 2017-05-03
A225: 76 | B225: 2016-11-04 | D225: NBCC | E225: Accu | F225: 155.00 | H225: 210 | I225: 210.00 | J225: Profit of Rs.55/- | K225: 55.00 | L225: 35.48% | M225: Successful | N225: 2017-07-28
A226: 77 | B226: 2016-12-06 | D226: PRECAM | E226: Accu | F226: 150.5 | H226: 72.50 | I226: 174.00 | J226: Loss of Rs.78/- | K226: -78.00 | L226: -51.83% | M226: Unsuccessful | N226: 2018-08-21
A227: 78 | B227: 2016-12-08 | D227: INFRATEL | E227: Accu | F227: 380.00 | H227: 478 | I227: 468.00 | J227: Target Achieved | K227: =H227-F227 -> 98.00 | L227: =K227/F227 -> 25.79% | M227: Successful | N227: 2017-10-17
A228: 79 | B228: 2016-12-30 | D228: GODREJPROP | E228: Accu | F228: 305.00 | H228: 375 | I228: 375.00 | J228: Target Achieved | K228: 70.00 | L228: 22.95% | M228: Successful | N228: 2017-02-02
A229: 80 | B229: 2017-01-04 | D229: DEEPAKNTR | E229: Accu | F229: 99.50 | H229: 158 | I229: 158.00 | J229: Target Achieved | K229: 58.50 | L229: 58.79% | M229: Successful | N229: 2017-06-12
... 118 more rows
